{"text_format":"3","workbook":"xlsx","n_sheets":15,"sheets":["Útmutató","Diákok listája","Augusztus","Szeptember","Október","November","December","Január","Február","Március","Április","Május","Június","Július","Jelenléti kimutatás"],"not_rendered":{"defined_names":16},"read":"whole","date_system":"1900"}

{"sheet":"Útmutató","index":0,"n_rows":25,"n_cols":5,"rows_kept":25,"merged":[[3,2,3,12],[4,4,4,12],[5,4,5,12],[6,4,6,12],[7,4,7,12],[8,4,8,7],[11,2,11,12],[12,4,12,12],[13,4,13,12],[14,4,14,12],[17,2,17,12],[18,4,18,12],[19,4,19,12],[20,4,20,12],[21,4,21,12],[24,2,24,12]]}
["ÚTMUTATÓ A SABLON HASZNÁLATÁHOZ"]
[]
[null,"HOL KEZDJEM?"]
[null,null,"Mielőtt megkezdené a diákok jelenlétének rögzítését, el kell végeznie néhány műveletet:"]
[{"$nulls":3},"1.","Diákok felvétele: Adja meg a Diákok listája munkalapon mindegyik diák adatait, többek között a szülő/gondviselő nevét és kapcsolatfelvételi adatait. Fontos bejegyzés a Diák azonosítója, mivel ez biztosítja az egyes diákok egyedi azonosítását a Diákok azonosítója legördülő listákban, amelyek a munkafüzet több munkalapján megkönnyítik az adatbevitelt. A Diákok listája munkalapon megadott információk szintén szerepelnek más munkalapokon, például a jelenléti kimutatáson és a havi jelenléti nyilvántartásokon."]
[{"$nulls":3},"2.","Az iskolaév beállítása: Kattintson az Augusztus jelenléti munkalap léptető vezérlőjére, amely a fejléc jobb szélén látható, és állítsa be az iskolaévet. Ez a módosítás a munkafüzet minden havi jelenléti nyilvántartásának fejlécén érvényesül. (A léptető gombok nem jelennek meg a nyomtatott íveken.)"]
[{"$nulls":3},"3.","(Nem kötelező) A munkafüzet színeinek módosítása:  Nyissa meg az utolsó, Jelenléti kimutatás munkalapot, és kattintson a Véleményezés lap Változások csoportjában a Lapvédelem feloldása gombra. Ezután kattintson a Lapelrendezés lap Témák csoportjának Színek gombjára, és válasszon egy másik színösszeállítást a színgyűjteményből. A színek módosítása és az egyéb témabeállítások után térjen vissza a Jelenléti kimutatás munkalapra, és kattintson a Véleményezés lap Változások csoportjának Lapvédelem gombjára, majd az OK gombra."]
[{"$nulls":4},"Tipp: Készítsen az iskola színeihez igazodó egyéni színösszeállítást. Kattintson a Lap elrendezése lap Témák csoportjának Színek gombjára, majd a színgyűjtemény alján kattintson a Színösszeállítás megadása parancsra. Az egyéni színösszeállítások létrehozásával kapcsolatos további tudnivalók a következő súgótémakörben olvashatók: "]
[{"$nulls":4},"Dokumentumtéma testreszabása."]
[]
[null,"FELVETTEM A DIÁKOKAT, MI A KÖVETKEZŐ LÉPÉS?"]
[null,null,"Miután megadta a diákokat a Diákok listája munkalapon, a következő lépésekkel kezdheti meg jelenlétük rögzítését az iskolaév során:"]
[{"$nulls":3},"1.","A diákok jelenléti nyilvántartásba történő bejegyzéséhez kattintson a Diák azonosítója alatti cellára, és válasszon egy azonosítót a listából. A diák neve automatikusan megjelenik, amikor kiválasztja az azonosítót. "]
[{"$nulls":4},"Tipp: Mentse a munkafüzetet minden adatbevitel után. Ha végzett az első hónap diákjainak felvételével, akkor jelölje ki a diákazonosítókat, másolja a vágólapra, majd illessze be a többi hónap jelenléti nyilvántartásának Diák azonosítója oszlopába. "]
[{"$nulls":3},"2.","Ezután adja meg az egyes napok jelenléti értékét a színmagyarázat szerint megadott jelenléti kategóriák segítségével. Az Összesen oszlop automatikusan összesíti a diákok jelenlétét a beírt kategóriák szerint. Az egyes napok összes hiányzása automatikusan megjelenik a táblázat alján, az Összesen sorban."]
[]
[null,"HOGYAN VEHETEK FEL DIÁKOKAT A HAVI JELENLÉTI NYILVÁNTARTÁSBA?"]
[null,null,"A havi jelenléti nyilvántartó lapok és a diákok listája egy-egy Excel-táblázat. Ha bármelyik Excel-táblázatba új sort szeretne felvenni, akkor válasszon az alábbi lehetőségek közül:"]
[{"$nulls":3},"● ","Ha a táblázatnak nincs Összesen sora, akkor kezdje el beírni az adatokat a táblázat alatt, és a táblázat automatikusan kibővül, amikor lenyomja az Enter vagy a Tab billentyűt."]
[{"$nulls":3},"● ","Vigye a cellamutatót az Összesen sor feletti sor utolsó cellájára, például a Hiányzott napok száma cellára, és nyomja le a Tab billentyűt."]
[{"$nulls":3},"● ","Kattintson a jobb gombbal a táblázatra, és mutasson a helyi menü Beszúrás pontjára, ezután kattintson a Táblázatsorok fölé vagy Táblázatsorok alá parancsra. "]
[{"$nulls":3},"● ","Vigye az egérmutatót a táblázat jobb alsó sarkában látható táblaméretező jelölőre, és a jelölő húzásával növelje meg a táblázatot a kívánt számú sorral."]
[]
[null,"HOGYAN TEKINTHETEM MEG A DIÁKOK EGÉSZ ÉVES JELENLÉTI NYILVÁNTARTÁSÁT?"]
[null,null,"A munkafüzet utolsó, Jelenléti kimutatás című munkalapján láthatók az adott év összesített jelenléti számai. Ha egy adott diákra vonatkozó jelentést szeretne megtekinteni, akkor kattintson a Diák azonosítója alatti cellára, és válasszon egy azonosítót a legördülő listából. A táblázatban automatikusan megjelennek a kiválasztott diák adatai, amelyeket korábban a Diákok listája munkalapon rögzített. Fontos, hogy a Jelenléti kimutatás első használatakor meg kell adnia az Iskola, az Osztály, a Tanár és a Terem alatti cellák értékét. Ezek az információk nem változnak, amikor másik diákot választ. "]

{"sheet":"Diákok listája","index":1,"n_rows":8,"n_cols":19,"rows_kept":8}
["DIÁKOK LISTÁJA"]
[]
[null,"Diák azonosítója","Diák vezetékneve","Diák utóneve","Nem","Születési dátum","1. szülő vagy gondviselő","1. szülő/gondviselő rokoni kapcsolata","1. szülő/gondviselő munkahelyi telefonszáma","1. szülő/gondviselő otthoni telefonszáma","2. szülő vagy gondviselő","2. szülő/gondviselő rokoni kapcsolata","2. szülő/gondviselő munkahelyi telefonszáma","2. szülő/gondviselő otthoni telefonszáma","Sürgős esetben értesítendő","Sürgős esetben értesítendő rokoni kapcsolata","Sürgős esetben értesítendő munkahelyi telefonszáma","Sürgős esetben értesítendő otthoni telefonszáma","Diák teljes neve"]
[null,"D001","Ambrus","Zsolt","F","1997-03-28","Balázs Erzsébet","Zsolt",1235550134,2345550134,"Barkóczi Miklós","Apa",1235550134,2345550134,"Belinszki Balázs","Nagyapa",7895550189,7895550134,{"$f":"DiákLista[[#This Row],[Diák vezetékneve]]&\" \" &DiákLista[[#This Row],[Diák utóneve]]","v":"Ambrus Zsolt"}]
[null,"D002","Diák",2,{"$nulls":14},{"$f":"DiákLista[[#This Row],[Diák vezetékneve]]&\" \" &DiákLista[[#This Row],[Diák utóneve]]","v":"Diák 2"}]
[null,"D003","Diák",3,{"$nulls":14},{"$f":"DiákLista[[#This Row],[Diák vezetékneve]]&\" \" &DiákLista[[#This Row],[Diák utóneve]]","v":"Diák 3"}]
[null,"D004","Diák",4,{"$nulls":14},{"$f":"DiákLista[[#This Row],[Diák vezetékneve]]&\" \" &DiákLista[[#This Row],[Diák utóneve]]","v":"Diák 4"}]
[null,"D005","Diák",5,{"$nulls":14},{"$f":"DiákLista[[#This Row],[Diák vezetékneve]]&\" \" &DiákLista[[#This Row],[Diák utóneve]]","v":"Diák 5"}]

{"sheet":"Augusztus","index":2,"n_rows":12,"n_cols":39,"rows_kept":12,"merged":[[4,34,4,38]]}
["DIÁKJELENLÉTI NYILVÁNTARTÁS",{"$nulls":36},"Iskolaév kezdete:",2012]
[]
[null,null,"SZÍNMAGYARÁZAT","K","Késett",null,null,"I","Igazolt",null,null,"T","Igazolatlan",null,null,"J","Jelen",null,null,"N","Nincs tanítás"]
[]
[null,{"$f":"DATE(NaptáriÉv,8,1)","v":"2012-08-01"},null,{"$f":"TEXT(WEEKDAY(DATE(NaptáriÉv,8,1),1),\"aaa\")","v":"Sze"},{"$f":"TEXT(WEEKDAY(DATE(NaptáriÉv,8,2),1),\"aaa\")","v":"Cs"},{"$f":"TEXT(WEEKDAY(DATE(NaptáriÉv,8,3),1),\"aaa\")","v":"P"},{"$f":"TEXT(WEEKDAY(DATE(NaptáriÉv,8,4),1),\"aaa\")","v":"Szo"},{"$f":"TEXT(WEEKDAY(DATE(NaptáriÉv,8,5),1),\"aaa\")","v":"V"},{"$f":"TEXT(WEEKDAY(DATE(NaptáriÉv,8,6),1),\"aaa\")","v":"H"},{"$f":"TEXT(WEEKDAY(DATE(NaptáriÉv,8,7),1),\"aaa\")","v":"K"},{"$f":"TEXT(WEEKDAY(DATE(NaptáriÉv,8,8),1),\"aaa\")","v":"Sze"},{"$f":"TEXT(WEEKDAY(DATE(NaptáriÉv,8,9),1),\"aaa\")","v":"Cs"},{"$f":"TEXT(WEEKDAY(DATE(NaptáriÉv,8,10),1),\"aaa\")","v":"P"},{"$f":"TEXT(WEEKDAY(DATE(NaptáriÉv,8,11),1),\"aaa\")","v":"Szo"},{"$f":"TEXT(WEEKDAY(DATE(NaptáriÉv,8,12),1),\"aaa\")","v":"V"},{"$f":"TEXT(WEEKDAY(DATE(NaptáriÉv,8,13),1),\"aaa\")","v":"H"},{"$f":"TEXT(WEEKDAY(DATE(NaptáriÉv,8,14),1),\"aaa\")","v":"K"},{"$f":"TEXT(WEEKDAY(DATE(NaptáriÉv,8,15),1),\"aaa\")","v":"Sze"},{"$f":"TEXT(WEEKDAY(DATE(NaptáriÉv,8,16),1),\"aaa\")","v":"Cs"},{"$f":"TEXT(WEEKDAY(DATE(NaptáriÉv,8,17),1),\"aaa\")","v":"P"},{"$f":"TEXT(WEEKDAY(DATE(NaptáriÉv,8,18),1),\"aaa\")","v":"Szo"},{"$f":"TEXT(WEEKDAY(DATE(NaptáriÉv,8,19),1),\"aaa\")","v":"V"},{"$f":"TEXT(WEEKDAY(DATE(NaptáriÉv,8,20),1),\"aaa\")","v":"H"},{"$f":"TEXT(WEEKDAY(DATE(NaptáriÉv,8,21),1),\"aaa\")","v":"K"},{"$f":"TEXT(WEEKDAY(DATE(NaptáriÉv,8,22),1),\"aaa\")","v":"Sze"},{"$f":"TEXT(WEEKDAY(DATE(NaptáriÉv,8,23),1),\"aaa\")","v":"Cs"},{"$f":"TEXT(WEEKDAY(DATE(NaptáriÉv,8,24),1),\"aaa\")","v":"P"},{"$f":"TEXT(WEEKDAY(DATE(NaptáriÉv,8,25),1),\"aaa\")","v":"Szo"},{"$f":"TEXT(WEEKDAY(DATE(NaptáriÉv,8,26),1),\"aaa\")","v":"V"},{"$f":"TEXT(WEEKDAY(DATE(NaptáriÉv,8,27),1),\"aaa\")","v":"H"},{"$f":"TEXT(WEEKDAY(DATE(NaptáriÉv,8,28),1),\"aaa\")","v":"K"},{"$f":"TEXT(WEEKDAY(DATE(NaptáriÉv,8,29),1),\"aaa\")","v":"Sze"},{"$f":"TEXT(WEEKDAY(DATE(NaptáriÉv,8,30),1),\"aaa\")","v":"Cs"},{"$f":"TEXT(WEEKDAY(DATE(NaptáriÉv,8,31),1),\"aaa\")","v":"P"},"Összesen"]
[null,"Diák azonosítója","Diák neve","1","2","3","4","5","6","7","8","9","10","11","12","13","14","15","16","17","18","19","20","21","22","23","24","25","26","27","28","29","30","31","K","I","T","J","Hiányzott napok száma"]
[null,"D001",{"$f":"IFERROR(VLOOKUP(AugusztusiJelenlét[[#This Row],[Diák azonosítója]],DiákLista[],18,FALSE),\"\")","v":"Ambrus Zsolt"},"J","J","K","K","J","N","N","J","J","I","J","J","N","N","J","J","J","J","J","N","N","J","J","J","J","J","N","N","J","J","J",2,1,0,20,{"$f":"SUM(AugusztusiJelenlét[[#This Row],[I]:[T]])","v":1}]
[null,"D002",{"$f":"IFERROR(VLOOKUP(AugusztusiJelenlét[[#This Row],[Diák azonosítója]],DiákLista[],18,FALSE),\"\")","v":"Diák 2"},"J","T","J","J","J","N","N","J","I","I","I","I","N","N","J","J","J","J","J","N","N","J","J","J","K","K","N","N","J","J","J",2,4,1,16,{"$f":"SUM(AugusztusiJelenlét[[#This Row],[I]:[T]])","v":5}]
[null,"D003",{"$f":"IFERROR(VLOOKUP(AugusztusiJelenlét[[#This Row],[Diák azonosítója]],DiákLista[],18,FALSE),\"\")","v":"Diák 3"},"J","I","J","J","J","N","N","J","J","T","J","J","N","N","J","J","J","J","J","N","N","J","J","I","I","J","N","N","J","J","J",0,3,1,19,{"$f":"SUM(AugusztusiJelenlét[[#This Row],[I]:[T]])","v":4}]
[null,"D004",{"$f":"IFERROR(VLOOKUP(AugusztusiJelenlét[[#This Row],[Diák azonosítója]],DiákLista[],18,FALSE),\"\")","v":"Diák 4"},"J","J","J","J","J","N","N","J","J","J","J","J","N","N","J","J","J","J","J","N","N","J","T","J","J","I","N","N","J","I","J",0,2,1,20,{"$f":"SUM(AugusztusiJelenlét[[#This Row],[I]:[T]])","v":3}]
[null,"D005",{"$f":"IFERROR(VLOOKUP(AugusztusiJelenlét[[#This Row],[Diák azonosítója]],DiákLista[],18,FALSE),\"\")","v":"Diák 5"},"J","J","J","J","J","N","N","J","J","J","J","J","N","N","J","J","J","J","J","N","N","J","J","J","J","J","N","N","J","J","J",0,0,0,23,{"$f":"SUM(AugusztusiJelenlét[[#This Row],[I]:[T]])","v":0}]
[null,null,"Összes hiányzás",{"$f":"COUNTIF(AugusztusiJelenlét[1],\"T\")+COUNTIF(AugusztusiJelenlét[1],\"I\")","v":0},{"$f":"COUNTIF(AugusztusiJelenlét[2],\"T\")+COUNTIF(AugusztusiJelenlét[2],\"I\")","v":2},{"$f":"COUNTIF(AugusztusiJelenlét[3],\"T\")+COUNTIF(AugusztusiJelenlét[3],\"I\")","v":0},{"$f":"COUNTIF(AugusztusiJelenlét[4],\"T\")+COUNTIF(AugusztusiJelenlét[4],\"I\")","v":0},{"$f":"COUNTIF(AugusztusiJelenlét[5],\"T\")+COUNTIF(AugusztusiJelenlét[5],\"I\")","v":0},{"$f":"COUNTIF(AugusztusiJelenlét[6],\"T\")+COUNTIF(AugusztusiJelenlét[6],\"I\")","v":0},{"$f":"COUNTIF(AugusztusiJelenlét[7],\"T\")+COUNTIF(AugusztusiJelenlét[7],\"I\")","v":0},{"$f":"COUNTIF(AugusztusiJelenlét[8],\"T\")+COUNTIF(AugusztusiJelenlét[8],\"I\")","v":0},{"$f":"COUNTIF(AugusztusiJelenlét[9],\"T\")+COUNTIF(AugusztusiJelenlét[9],\"I\")","v":1},{"$f":"COUNTIF(AugusztusiJelenlét[10],\"T\")+COUNTIF(AugusztusiJelenlét[10],\"I\")","v":3},{"$f":"COUNTIF(AugusztusiJelenlét[11],\"T\")+COUNTIF(AugusztusiJelenlét[11],\"I\")","v":1},{"$f":"COUNTIF(AugusztusiJelenlét[12],\"T\")+COUNTIF(AugusztusiJelenlét[12],\"I\")","v":1},{"$f":"COUNTIF(AugusztusiJelenlét[13],\"T\")+COUNTIF(AugusztusiJelenlét[13],\"I\")","v":0},{"$f":"COUNTIF(AugusztusiJelenlét[14],\"T\")+COUNTIF(AugusztusiJelenlét[14],\"I\")","v":0},{"$f":"COUNTIF(AugusztusiJelenlét[15],\"T\")+COUNTIF(AugusztusiJelenlét[15],\"I\")","v":0},{"$f":"COUNTIF(AugusztusiJelenlét[16],\"T\")+COUNTIF(AugusztusiJelenlét[16],\"I\")","v":0},{"$f":"COUNTIF(AugusztusiJelenlét[17],\"T\")+COUNTIF(AugusztusiJelenlét[17],\"I\")","v":0},{"$f":"COUNTIF(AugusztusiJelenlét[18],\"T\")+COUNTIF(AugusztusiJelenlét[18],\"I\")","v":0},{"$f":"COUNTIF(AugusztusiJelenlét[19],\"T\")+COUNTIF(AugusztusiJelenlét[19],\"I\")","v":0},{"$f":"COUNTIF(AugusztusiJelenlét[20],\"T\")+COUNTIF(AugusztusiJelenlét[20],\"I\")","v":0},{"$f":"COUNTIF(AugusztusiJelenlét[21],\"T\")+COUNTIF(AugusztusiJelenlét[21],\"I\")","v":0},{"$f":"COUNTIF(AugusztusiJelenlét[22],\"T\")+COUNTIF(AugusztusiJelenlét[22],\"I\")","v":0},{"$f":"COUNTIF(AugusztusiJelenlét[23],\"T\")+COUNTIF(AugusztusiJelenlét[23],\"I\")","v":1},{"$f":"COUNTIF(AugusztusiJelenlét[24],\"T\")+COUNTIF(AugusztusiJelenlét[24],\"I\")","v":1},{"$f":"COUNTIF(AugusztusiJelenlét[25],\"T\")+COUNTIF(AugusztusiJelenlét[25],\"I\")","v":1},{"$f":"COUNTIF(AugusztusiJelenlét[26],\"T\")+COUNTIF(AugusztusiJelenlét[26],\"I\")","v":1},{"$f":"COUNTIF(AugusztusiJelenlét[27],\"T\")+COUNTIF(AugusztusiJelenlét[27],\"I\")","v":0},{"$f":"COUNTIF(AugusztusiJelenlét[28],\"T\")+COUNTIF(AugusztusiJelenlét[28],\"I\")","v":0},{"$f":"COUNTIF(AugusztusiJelenlét[29],\"T\")+COUNTIF(AugusztusiJelenlét[29],\"I\")","v":0},{"$f":"COUNTIF(AugusztusiJelenlét[30],\"T\")+COUNTIF(AugusztusiJelenlét[30],\"I\")","v":1},{"$f":"COUNTIF(AugusztusiJelenlét[31],\"T\")+COUNTIF(AugusztusiJelenlét[31],\"I\")","v":0},{"$f":"SUBTOTAL(109,AugusztusiJelenlét[K])","v":4},{"$f":"SUBTOTAL(109,AugusztusiJelenlét[I])","v":10},{"$f":"SUBTOTAL(109,AugusztusiJelenlét[T])","v":3},{"$f":"SUBTOTAL(109,AugusztusiJelenlét[J])","v":98},{"$f":"SUBTOTAL(109,AugusztusiJelenlét[Hiányzott napok száma])","v":13}]

{"sheet":"Szeptember","index":3,"n_rows":12,"n_cols":39,"rows_kept":12,"merged":[[4,34,4,38]]}
["DIÁKJELENLÉTI NYILVÁNTARTÁS",{"$nulls":36},"Iskolaév kezdete:",{"$f":"NaptáriÉv","v":2012}]
[]
[null,null,{"$f":"SzínkulcsSzöveg","v":"SZÍNMAGYARÁZAT"},"K","Késett",null,null,"I","Igazolt",null,null,"T","Igazolatlan",null,null,"J","Jelen",null,null,"N","Nincs tanítás"]
[]
[null,{"$f":"DATE(NaptáriÉv,9,1)","v":"2012-09-01"},null,{"$f":"TEXT(WEEKDAY(DATE(NaptáriÉv,9,1),1),\"aaa\")","v":"Szo"},{"$f":"TEXT(WEEKDAY(DATE(NaptáriÉv,9,2),1),\"aaa\")","v":"V"},{"$f":"TEXT(WEEKDAY(DATE(NaptáriÉv,9,3),1),\"aaa\")","v":"H"},{"$f":"TEXT(WEEKDAY(DATE(NaptáriÉv,9,4),1),\"aaa\")","v":"K"},{"$f":"TEXT(WEEKDAY(DATE(NaptáriÉv,9,5),1),\"aaa\")","v":"Sze"},{"$f":"TEXT(WEEKDAY(DATE(NaptáriÉv,9,6),1),\"aaa\")","v":"Cs"},{"$f":"TEXT(WEEKDAY(DATE(NaptáriÉv,9,7),1),\"aaa\")","v":"P"},{"$f":"TEXT(WEEKDAY(DATE(NaptáriÉv,9,8),1),\"aaa\")","v":"Szo"},{"$f":"TEXT(WEEKDAY(DATE(NaptáriÉv,9,9),1),\"aaa\")","v":"V"},{"$f":"TEXT(WEEKDAY(DATE(NaptáriÉv,9,10),1),\"aaa\")","v":"H"},{"$f":"TEXT(WEEKDAY(DATE(NaptáriÉv,9,11),1),\"aaa\")","v":"K"},{"$f":"TEXT(WEEKDAY(DATE(NaptáriÉv,9,12),1),\"aaa\")","v":"Sze"},{"$f":"TEXT(WEEKDAY(DATE(NaptáriÉv,9,13),1),\"aaa\")","v":"Cs"},{"$f":"TEXT(WEEKDAY(DATE(NaptáriÉv,9,14),1),\"aaa\")","v":"P"},{"$f":"TEXT(WEEKDAY(DATE(NaptáriÉv,9,15),1),\"aaa\")","v":"Szo"},{"$f":"TEXT(WEEKDAY(DATE(NaptáriÉv,9,16),1),\"aaa\")","v":"V"},{"$f":"TEXT(WEEKDAY(DATE(NaptáriÉv,9,17),1),\"aaa\")","v":"H"},{"$f":"TEXT(WEEKDAY(DATE(NaptáriÉv,9,18),1),\"aaa\")","v":"K"},{"$f":"TEXT(WEEKDAY(DATE(NaptáriÉv,9,19),1),\"aaa\")","v":"Sze"},{"$f":"TEXT(WEEKDAY(DATE(NaptáriÉv,9,20),1),\"aaa\")","v":"Cs"},{"$f":"TEXT(WEEKDAY(DATE(NaptáriÉv,9,21),1),\"aaa\")","v":"P"},{"$f":"TEXT(WEEKDAY(DATE(NaptáriÉv,9,22),1),\"aaa\")","v":"Szo"},{"$f":"TEXT(WEEKDAY(DATE(NaptáriÉv,9,23),1),\"aaa\")","v":"V"},{"$f":"TEXT(WEEKDAY(DATE(NaptáriÉv,9,24),1),\"aaa\")","v":"H"},{"$f":"TEXT(WEEKDAY(DATE(NaptáriÉv,9,25),1),\"aaa\")","v":"K"},{"$f":"TEXT(WEEKDAY(DATE(NaptáriÉv,9,26),1),\"aaa\")","v":"Sze"},{"$f":"TEXT(WEEKDAY(DATE(NaptáriÉv,9,27),1),\"aaa\")","v":"Cs"},{"$f":"TEXT(WEEKDAY(DATE(NaptáriÉv,9,28),1),\"aaa\")","v":"P"},{"$f":"TEXT(WEEKDAY(DATE(NaptáriÉv,9,29),1),\"aaa\")","v":"Szo"},{"$f":"TEXT(WEEKDAY(DATE(NaptáriÉv,9,30),1),\"aaa\")","v":"V"},null,"Összesen"]
[null,"Diák azonosítója","Diák neve","1","2","3","4","5","6","7","8","9","10","11","12","13","14","15","16","17","18","19","20","21","22","23","24","25","26","27","28","29","30"," ","K","I","T","J","Hiányzott napok száma"]
[null,null,{"$f":"IFERROR(VLOOKUP(DochádzkaVSeptembri[[#This Row],[Diák azonosítója]],DiákLista[],18,FALSE),\"\")","v":""},{"$nulls":31},0,0,0,0,{"$f":"SUM(DochádzkaVSeptembri[[#This Row],[I]:[T]])","v":0}]
[null,null,{"$f":"IFERROR(VLOOKUP(DochádzkaVSeptembri[[#This Row],[Diák azonosítója]],DiákLista[],18,FALSE),\"\")","v":""},{"$nulls":31},0,0,0,0,{"$f":"SUM(DochádzkaVSeptembri[[#This Row],[I]:[T]])","v":0}]
[null,null,{"$f":"IFERROR(VLOOKUP(DochádzkaVSeptembri[[#This Row],[Diák azonosítója]],DiákLista[],18,FALSE),\"\")","v":""},{"$nulls":31},0,0,0,0,{"$f":"SUM(DochádzkaVSeptembri[[#This Row],[I]:[T]])","v":0}]
[null,null,{"$f":"IFERROR(VLOOKUP(DochádzkaVSeptembri[[#This Row],[Diák azonosítója]],DiákLista[],18,FALSE),\"\")","v":""},{"$nulls":31},0,0,0,0,{"$f":"SUM(DochádzkaVSeptembri[[#This Row],[I]:[T]])","v":0}]
[null,null,{"$f":"IFERROR(VLOOKUP(DochádzkaVSeptembri[[#This Row],[Diák azonosítója]],DiákLista[],18,FALSE),\"\")","v":""},{"$nulls":31},0,0,0,0,{"$f":"SUM(DochádzkaVSeptembri[[#This Row],[I]:[T]])","v":0}]
[null,null,"Összes hiányzás",{"$f":"COUNTIF(DochádzkaVSeptembri[1],\"T\")+COUNTIF(DochádzkaVSeptembri[1],\"I\")","v":0},{"$f":"COUNTIF(DochádzkaVSeptembri[2],\"T\")+COUNTIF(DochádzkaVSeptembri[2],\"I\")","v":0},{"$f":"COUNTIF(DochádzkaVSeptembri[3],\"T\")+COUNTIF(DochádzkaVSeptembri[3],\"I\")","v":0},{"$f":"COUNTIF(DochádzkaVSeptembri[4],\"T\")+COUNTIF(DochádzkaVSeptembri[4],\"I\")","v":0},{"$f":"COUNTIF(DochádzkaVSeptembri[5],\"T\")+COUNTIF(DochádzkaVSeptembri[5],\"I\")","v":0},{"$f":"COUNTIF(DochádzkaVSeptembri[6],\"T\")+COUNTIF(DochádzkaVSeptembri[6],\"I\")","v":0},{"$f":"COUNTIF(DochádzkaVSeptembri[7],\"T\")+COUNTIF(DochádzkaVSeptembri[7],\"I\")","v":0},{"$f":"COUNTIF(DochádzkaVSeptembri[8],\"T\")+COUNTIF(DochádzkaVSeptembri[8],\"I\")","v":0},{"$f":"COUNTIF(DochádzkaVSeptembri[9],\"T\")+COUNTIF(DochádzkaVSeptembri[9],\"I\")","v":0},{"$f":"COUNTIF(DochádzkaVSeptembri[10],\"T\")+COUNTIF(DochádzkaVSeptembri[10],\"I\")","v":0},{"$f":"COUNTIF(DochádzkaVSeptembri[11],\"T\")+COUNTIF(DochádzkaVSeptembri[11],\"I\")","v":0},{"$f":"COUNTIF(DochádzkaVSeptembri[12],\"T\")+COUNTIF(DochádzkaVSeptembri[12],\"I\")","v":0},{"$f":"COUNTIF(DochádzkaVSeptembri[13],\"T\")+COUNTIF(DochádzkaVSeptembri[13],\"I\")","v":0},{"$f":"COUNTIF(DochádzkaVSeptembri[14],\"T\")+COUNTIF(DochádzkaVSeptembri[14],\"I\")","v":0},{"$f":"COUNTIF(DochádzkaVSeptembri[15],\"T\")+COUNTIF(DochádzkaVSeptembri[15],\"I\")","v":0},{"$f":"COUNTIF(DochádzkaVSeptembri[16],\"T\")+COUNTIF(DochádzkaVSeptembri[16],\"I\")","v":0},{"$f":"COUNTIF(DochádzkaVSeptembri[17],\"T\")+COUNTIF(DochádzkaVSeptembri[17],\"I\")","v":0},{"$f":"COUNTIF(DochádzkaVSeptembri[18],\"T\")+COUNTIF(DochádzkaVSeptembri[18],\"I\")","v":0},{"$f":"COUNTIF(DochádzkaVSeptembri[19],\"T\")+COUNTIF(DochádzkaVSeptembri[19],\"I\")","v":0},{"$f":"COUNTIF(DochádzkaVSeptembri[20],\"T\")+COUNTIF(DochádzkaVSeptembri[20],\"I\")","v":0},{"$f":"COUNTIF(DochádzkaVSeptembri[21],\"T\")+COUNTIF(DochádzkaVSeptembri[21],\"I\")","v":0},{"$f":"COUNTIF(DochádzkaVSeptembri[22],\"T\")+COUNTIF(DochádzkaVSeptembri[22],\"I\")","v":0},{"$f":"COUNTIF(DochádzkaVSeptembri[23],\"T\")+COUNTIF(DochádzkaVSeptembri[23],\"I\")","v":0},{"$f":"COUNTIF(DochádzkaVSeptembri[24],\"T\")+COUNTIF(DochádzkaVSeptembri[24],\"I\")","v":0},{"$f":"COUNTIF(DochádzkaVSeptembri[25],\"T\")+COUNTIF(DochádzkaVSeptembri[25],\"I\")","v":0},{"$f":"COUNTIF(DochádzkaVSeptembri[26],\"T\")+COUNTIF(DochádzkaVSeptembri[26],\"I\")","v":0},{"$f":"COUNTIF(DochádzkaVSeptembri[27],\"T\")+COUNTIF(DochádzkaVSeptembri[27],\"I\")","v":0},{"$f":"COUNTIF(DochádzkaVSeptembri[28],\"T\")+COUNTIF(DochádzkaVSeptembri[28],\"I\")","v":0},{"$f":"COUNTIF(DochádzkaVSeptembri[29],\"T\")+COUNTIF(DochádzkaVSeptembri[29],\"I\")","v":0},{"$f":"COUNTIF(DochádzkaVSeptembri[30],\"T\")+COUNTIF(DochádzkaVSeptembri[30],\"I\")","v":0},{"$f":"COUNTIF(DochádzkaVSeptembri[[ ]],\"T\")+COUNTIF(DochádzkaVSeptembri[[ ]],\"I\")","v":0},{"$f":"SUBTOTAL(109,DochádzkaVSeptembri[K])","v":0},{"$f":"SUBTOTAL(109,DochádzkaVSeptembri[I])","v":0},{"$f":"SUBTOTAL(109,DochádzkaVSeptembri[T])","v":0},{"$f":"SUBTOTAL(109,DochádzkaVSeptembri[J])","v":0},{"$f":"SUBTOTAL(109,DochádzkaVSeptembri[Hiányzott napok száma])","v":0}]

{"sheet":"Október","index":4,"n_rows":12,"n_cols":39,"rows_kept":12,"merged":[[4,34,4,38]]}
["DIÁKJELENLÉTI NYILVÁNTARTÁS",{"$nulls":36},"Iskolaév kezdete:",{"$f":"NaptáriÉv","v":2012}]
[]
[null,null,{"$f":"SzínkulcsSzöveg","v":"SZÍNMAGYARÁZAT"},"K","Késett",null,null,"I","Igazolt",null,null,"T","Igazolatlan",null,null,"J","Jelen",null,null,"N","Nincs tanítás"]
[]
[null,{"$f":"DATE(NaptáriÉv,10,1)","v":"2012-10-01"},null,{"$f":"TEXT(WEEKDAY(DATE(NaptáriÉv,10,1),1),\"aaa\")","v":"H"},{"$f":"TEXT(WEEKDAY(DATE(NaptáriÉv,10,2),1),\"aaa\")","v":"K"},{"$f":"TEXT(WEEKDAY(DATE(NaptáriÉv,10,3),1),\"aaa\")","v":"Sze"},{"$f":"TEXT(WEEKDAY(DATE(NaptáriÉv,10,4),1),\"aaa\")","v":"Cs"},{"$f":"TEXT(WEEKDAY(DATE(NaptáriÉv,10,5),1),\"aaa\")","v":"P"},{"$f":"TEXT(WEEKDAY(DATE(NaptáriÉv,10,6),1),\"aaa\")","v":"Szo"},{"$f":"TEXT(WEEKDAY(DATE(NaptáriÉv,10,7),1),\"aaa\")","v":"V"},{"$f":"TEXT(WEEKDAY(DATE(NaptáriÉv,10,8),1),\"aaa\")","v":"H"},{"$f":"TEXT(WEEKDAY(DATE(NaptáriÉv,10,9),1),\"aaa\")","v":"K"},{"$f":"TEXT(WEEKDAY(DATE(NaptáriÉv,10,10),1),\"aaa\")","v":"Sze"},{"$f":"TEXT(WEEKDAY(DATE(NaptáriÉv,10,11),1),\"aaa\")","v":"Cs"},{"$f":"TEXT(WEEKDAY(DATE(NaptáriÉv,10,12),1),\"aaa\")","v":"P"},{"$f":"TEXT(WEEKDAY(DATE(NaptáriÉv,10,13),1),\"aaa\")","v":"Szo"},{"$f":"TEXT(WEEKDAY(DATE(NaptáriÉv,10,14),1),\"aaa\")","v":"V"},{"$f":"TEXT(WEEKDAY(DATE(NaptáriÉv,10,15),1),\"aaa\")","v":"H"},{"$f":"TEXT(WEEKDAY(DATE(NaptáriÉv,10,16),1),\"aaa\")","v":"K"},{"$f":"TEXT(WEEKDAY(DATE(NaptáriÉv,10,17),1),\"aaa\")","v":"Sze"},{"$f":"TEXT(WEEKDAY(DATE(NaptáriÉv,10,18),1),\"aaa\")","v":"Cs"},{"$f":"TEXT(WEEKDAY(DATE(NaptáriÉv,10,19),1),\"aaa\")","v":"P"},{"$f":"TEXT(WEEKDAY(DATE(NaptáriÉv,10,20),1),\"aaa\")","v":"Szo"},{"$f":"TEXT(WEEKDAY(DATE(NaptáriÉv,10,21),1),\"aaa\")","v":"V"},{"$f":"TEXT(WEEKDAY(DATE(NaptáriÉv,10,22),1),\"aaa\")","v":"H"},{"$f":"TEXT(WEEKDAY(DATE(NaptáriÉv,10,23),1),\"aaa\")","v":"K"},{"$f":"TEXT(WEEKDAY(DATE(NaptáriÉv,10,24),1),\"aaa\")","v":"Sze"},{"$f":"TEXT(WEEKDAY(DATE(NaptáriÉv,10,25),1),\"aaa\")","v":"Cs"},{"$f":"TEXT(WEEKDAY(DATE(NaptáriÉv,10,26),1),\"aaa\")","v":"P"},{"$f":"TEXT(WEEKDAY(DATE(NaptáriÉv,10,27),1),\"aaa\")","v":"Szo"},{"$f":"TEXT(WEEKDAY(DATE(NaptáriÉv,10,28),1),\"aaa\")","v":"V"},{"$f":"TEXT(WEEKDAY(DATE(NaptáriÉv,10,29),1),\"aaa\")","v":"H"},{"$f":"TEXT(WEEKDAY(DATE(NaptáriÉv,10,30),1),\"aaa\")","v":"K"},{"$f":"TEXT(WEEKDAY(DATE(NaptáriÉv,10,31),1),\"aaa\")","v":"Sze"},"Összesen"]
[null,"Diák azonosítója","Diák neve","1","2","3","4","5","6","7","8","9","10","11","12","13","14","15","16","17","18","19","20","21","22","23","24","25","26","27","28","29","30","31","K","I","T","J","Hiányzott napok száma"]
[null,null,{"$f":"IFERROR(VLOOKUP(OktóberiJelenlét[[#This Row],[Diák azonosítója]],DiákLista[],18,FALSE),\"\")","v":""},{"$nulls":31},0,0,0,0,{"$f":"SUM(OktóberiJelenlét[[#This Row],[I]:[T]])","v":0}]
[null,null,{"$f":"IFERROR(VLOOKUP(OktóberiJelenlét[[#This Row],[Diák azonosítója]],DiákLista[],18,FALSE),\"\")","v":""},{"$nulls":31},0,0,0,0,{"$f":"SUM(OktóberiJelenlét[[#This Row],[I]:[T]])","v":0}]
[null,null,{"$f":"IFERROR(VLOOKUP(OktóberiJelenlét[[#This Row],[Diák azonosítója]],DiákLista[],18,FALSE),\"\")","v":""},{"$nulls":31},0,0,0,0,{"$f":"SUM(OktóberiJelenlét[[#This Row],[I]:[T]])","v":0}]
[null,null,{"$f":"IFERROR(VLOOKUP(OktóberiJelenlét[[#This Row],[Diák azonosítója]],DiákLista[],18,FALSE),\"\")","v":""},{"$nulls":31},0,0,0,0,{"$f":"SUM(OktóberiJelenlét[[#This Row],[I]:[T]])","v":0}]
[null,null,{"$f":"IFERROR(VLOOKUP(OktóberiJelenlét[[#This Row],[Diák azonosítója]],DiákLista[],18,FALSE),\"\")","v":""},{"$nulls":31},0,0,0,0,{"$f":"SUM(OktóberiJelenlét[[#This Row],[I]:[T]])","v":0}]
[null,null,"Összes hiányzás",{"$f":"COUNTIF(OktóberiJelenlét[1],\"T\")+COUNTIF(OktóberiJelenlét[1],\"I\")","v":0},{"$f":"COUNTIF(OktóberiJelenlét[2],\"T\")+COUNTIF(OktóberiJelenlét[2],\"I\")","v":0},{"$f":"COUNTIF(OktóberiJelenlét[3],\"T\")+COUNTIF(OktóberiJelenlét[3],\"I\")","v":0},{"$f":"COUNTIF(OktóberiJelenlét[4],\"T\")+COUNTIF(OktóberiJelenlét[4],\"I\")","v":0},{"$f":"COUNTIF(OktóberiJelenlét[5],\"T\")+COUNTIF(OktóberiJelenlét[5],\"I\")","v":0},{"$f":"COUNTIF(OktóberiJelenlét[6],\"T\")+COUNTIF(OktóberiJelenlét[6],\"I\")","v":0},{"$f":"COUNTIF(OktóberiJelenlét[7],\"T\")+COUNTIF(OktóberiJelenlét[7],\"I\")","v":0},{"$f":"COUNTIF(OktóberiJelenlét[8],\"T\")+COUNTIF(OktóberiJelenlét[8],\"I\")","v":0},{"$f":"COUNTIF(OktóberiJelenlét[9],\"T\")+COUNTIF(OktóberiJelenlét[9],\"I\")","v":0},{"$f":"COUNTIF(OktóberiJelenlét[10],\"T\")+COUNTIF(OktóberiJelenlét[10],\"I\")","v":0},{"$f":"COUNTIF(OktóberiJelenlét[11],\"T\")+COUNTIF(OktóberiJelenlét[11],\"I\")","v":0},{"$f":"COUNTIF(OktóberiJelenlét[12],\"T\")+COUNTIF(OktóberiJelenlét[12],\"I\")","v":0},{"$f":"COUNTIF(OktóberiJelenlét[13],\"T\")+COUNTIF(OktóberiJelenlét[13],\"I\")","v":0},{"$f":"COUNTIF(OktóberiJelenlét[14],\"T\")+COUNTIF(OktóberiJelenlét[14],\"I\")","v":0},{"$f":"COUNTIF(OktóberiJelenlét[15],\"T\")+COUNTIF(OktóberiJelenlét[15],\"I\")","v":0},{"$f":"COUNTIF(OktóberiJelenlét[16],\"T\")+COUNTIF(OktóberiJelenlét[16],\"I\")","v":0},{"$f":"COUNTIF(OktóberiJelenlét[17],\"T\")+COUNTIF(OktóberiJelenlét[17],\"I\")","v":0},{"$f":"COUNTIF(OktóberiJelenlét[18],\"T\")+COUNTIF(OktóberiJelenlét[18],\"I\")","v":0},{"$f":"COUNTIF(OktóberiJelenlét[19],\"T\")+COUNTIF(OktóberiJelenlét[19],\"I\")","v":0},{"$f":"COUNTIF(OktóberiJelenlét[20],\"T\")+COUNTIF(OktóberiJelenlét[20],\"I\")","v":0},{"$f":"COUNTIF(OktóberiJelenlét[21],\"T\")+COUNTIF(OktóberiJelenlét[21],\"I\")","v":0},{"$f":"COUNTIF(OktóberiJelenlét[22],\"T\")+COUNTIF(OktóberiJelenlét[22],\"I\")","v":0},{"$f":"COUNTIF(OktóberiJelenlét[23],\"T\")+COUNTIF(OktóberiJelenlét[23],\"I\")","v":0},{"$f":"COUNTIF(OktóberiJelenlét[24],\"T\")+COUNTIF(OktóberiJelenlét[24],\"I\")","v":0},{"$f":"COUNTIF(OktóberiJelenlét[25],\"T\")+COUNTIF(OktóberiJelenlét[25],\"I\")","v":0},{"$f":"COUNTIF(OktóberiJelenlét[26],\"T\")+COUNTIF(OktóberiJelenlét[26],\"I\")","v":0},{"$f":"COUNTIF(OktóberiJelenlét[27],\"T\")+COUNTIF(OktóberiJelenlét[27],\"I\")","v":0},{"$f":"COUNTIF(OktóberiJelenlét[28],\"T\")+COUNTIF(OktóberiJelenlét[28],\"I\")","v":0},{"$f":"COUNTIF(OktóberiJelenlét[29],\"T\")+COUNTIF(OktóberiJelenlét[29],\"I\")","v":0},{"$f":"COUNTIF(OktóberiJelenlét[30],\"T\")+COUNTIF(OktóberiJelenlét[30],\"I\")","v":0},{"$f":"COUNTIF(OktóberiJelenlét[31],\"T\")+COUNTIF(OktóberiJelenlét[31],\"I\")","v":0},{"$f":"SUBTOTAL(109,OktóberiJelenlét[K])","v":0},{"$f":"SUBTOTAL(109,OktóberiJelenlét[I])","v":0},{"$f":"SUBTOTAL(109,OktóberiJelenlét[T])","v":0},{"$f":"SUBTOTAL(109,OktóberiJelenlét[J])","v":0},{"$f":"SUBTOTAL(109,OktóberiJelenlét[Hiányzott napok száma])","v":0}]

{"sheet":"November","index":5,"n_rows":12,"n_cols":39,"rows_kept":12,"merged":[[4,34,4,38]]}
["DIÁKJELENLÉTI NYILVÁNTARTÁS",{"$nulls":36},"Iskolaév kezdete:",{"$f":"NaptáriÉv","v":2012}]
[]
[null,null,{"$f":"SzínkulcsSzöveg","v":"SZÍNMAGYARÁZAT"},"K","Késett",null,null,"I","Igazolt",null,null,"T","Igazolatlan",null,null,"J","Jelen",null,null,"N","Nincs tanítás"]
[]
[null,{"$f":"DATE(NaptáriÉv,11,1)","v":"2012-11-01"},null,{"$f":"TEXT(WEEKDAY(DATE(NaptáriÉv,11,1),1),\"aaa\")","v":"Cs"},{"$f":"TEXT(WEEKDAY(DATE(NaptáriÉv,11,2),1),\"aaa\")","v":"P"},{"$f":"TEXT(WEEKDAY(DATE(NaptáriÉv,11,3),1),\"aaa\")","v":"Szo"},{"$f":"TEXT(WEEKDAY(DATE(NaptáriÉv,11,4),1),\"aaa\")","v":"V"},{"$f":"TEXT(WEEKDAY(DATE(NaptáriÉv,11,5),1),\"aaa\")","v":"H"},{"$f":"TEXT(WEEKDAY(DATE(NaptáriÉv,11,6),1),\"aaa\")","v":"K"},{"$f":"TEXT(WEEKDAY(DATE(NaptáriÉv,11,7),1),\"aaa\")","v":"Sze"},{"$f":"TEXT(WEEKDAY(DATE(NaptáriÉv,11,8),1),\"aaa\")","v":"Cs"},{"$f":"TEXT(WEEKDAY(DATE(NaptáriÉv,11,9),1),\"aaa\")","v":"P"},{"$f":"TEXT(WEEKDAY(DATE(NaptáriÉv,11,10),1),\"aaa\")","v":"Szo"},{"$f":"TEXT(WEEKDAY(DATE(NaptáriÉv,11,11),1),\"aaa\")","v":"V"},{"$f":"TEXT(WEEKDAY(DATE(NaptáriÉv,11,12),1),\"aaa\")","v":"H"},{"$f":"TEXT(WEEKDAY(DATE(NaptáriÉv,11,13),1),\"aaa\")","v":"K"},{"$f":"TEXT(WEEKDAY(DATE(NaptáriÉv,11,14),1),\"aaa\")","v":"Sze"},{"$f":"TEXT(WEEKDAY(DATE(NaptáriÉv,11,15),1),\"aaa\")","v":"Cs"},{"$f":"TEXT(WEEKDAY(DATE(NaptáriÉv,11,16),1),\"aaa\")","v":"P"},{"$f":"TEXT(WEEKDAY(DATE(NaptáriÉv,11,17),1),\"aaa\")","v":"Szo"},{"$f":"TEXT(WEEKDAY(DATE(NaptáriÉv,11,18),1),\"aaa\")","v":"V"},{"$f":"TEXT(WEEKDAY(DATE(NaptáriÉv,11,19),1),\"aaa\")","v":"H"},{"$f":"TEXT(WEEKDAY(DATE(NaptáriÉv,11,20),1),\"aaa\")","v":"K"},{"$f":"TEXT(WEEKDAY(DATE(NaptáriÉv,11,21),1),\"aaa\")","v":"Sze"},{"$f":"TEXT(WEEKDAY(DATE(NaptáriÉv,11,22),1),\"aaa\")","v":"Cs"},{"$f":"TEXT(WEEKDAY(DATE(NaptáriÉv,11,23),1),\"aaa\")","v":"P"},{"$f":"TEXT(WEEKDAY(DATE(NaptáriÉv,11,24),1),\"aaa\")","v":"Szo"},{"$f":"TEXT(WEEKDAY(DATE(NaptáriÉv,11,25),1),\"aaa\")","v":"V"},{"$f":"TEXT(WEEKDAY(DATE(NaptáriÉv,11,26),1),\"aaa\")","v":"H"},{"$f":"TEXT(WEEKDAY(DATE(NaptáriÉv,11,27),1),\"aaa\")","v":"K"},{"$f":"TEXT(WEEKDAY(DATE(NaptáriÉv,11,28),1),\"aaa\")","v":"Sze"},{"$f":"TEXT(WEEKDAY(DATE(NaptáriÉv,11,29),1),\"aaa\")","v":"Cs"},{"$f":"TEXT(WEEKDAY(DATE(NaptáriÉv,11,30),1),\"aaa\")","v":"P"},null,"Összesen"]
[null,"Diák azonosítója","Diák neve","1","2","3","4","5","6","7","8","9","10","11","12","13","14","15","16","17","18","19","20","21","22","23","24","25","26","27","28","29","30"," ","K","I","T","J","Hiányzott napok száma"]
[null,null,{"$f":"IFERROR(VLOOKUP(NovemberiJelenlét[[#This Row],[Diák azonosítója]],DiákLista[],18,FALSE),\"\")","v":""},{"$nulls":31},0,0,0,0,{"$f":"SUM(NovemberiJelenlét[[#This Row],[I]:[T]])","v":0}]
[null,null,{"$f":"IFERROR(VLOOKUP(NovemberiJelenlét[[#This Row],[Diák azonosítója]],DiákLista[],18,FALSE),\"\")","v":""},{"$nulls":31},0,0,0,0,{"$f":"SUM(NovemberiJelenlét[[#This Row],[I]:[T]])","v":0}]
[null,null,{"$f":"IFERROR(VLOOKUP(NovemberiJelenlét[[#This Row],[Diák azonosítója]],DiákLista[],18,FALSE),\"\")","v":""},{"$nulls":31},0,0,0,0,{"$f":"SUM(NovemberiJelenlét[[#This Row],[I]:[T]])","v":0}]
[null,null,{"$f":"IFERROR(VLOOKUP(NovemberiJelenlét[[#This Row],[Diák azonosítója]],DiákLista[],18,FALSE),\"\")","v":""},{"$nulls":31},0,0,0,0,{"$f":"SUM(NovemberiJelenlét[[#This Row],[I]:[T]])","v":0}]
[null,null,{"$f":"IFERROR(VLOOKUP(NovemberiJelenlét[[#This Row],[Diák azonosítója]],DiákLista[],18,FALSE),\"\")","v":""},{"$nulls":31},0,0,0,0,{"$f":"SUM(NovemberiJelenlét[[#This Row],[I]:[T]])","v":0}]
[null,null,"Összes hiányzás",{"$f":"COUNTIF(NovemberiJelenlét[1],\"T\")+COUNTIF(NovemberiJelenlét[1],\"I\")","v":0},{"$f":"COUNTIF(NovemberiJelenlét[2],\"T\")+COUNTIF(NovemberiJelenlét[2],\"I\")","v":0},{"$f":"COUNTIF(NovemberiJelenlét[3],\"T\")+COUNTIF(NovemberiJelenlét[3],\"I\")","v":0},{"$f":"COUNTIF(NovemberiJelenlét[4],\"T\")+COUNTIF(NovemberiJelenlét[4],\"I\")","v":0},{"$f":"COUNTIF(NovemberiJelenlét[5],\"T\")+COUNTIF(NovemberiJelenlét[5],\"I\")","v":0},{"$f":"COUNTIF(NovemberiJelenlét[6],\"T\")+COUNTIF(NovemberiJelenlét[6],\"I\")","v":0},{"$f":"COUNTIF(NovemberiJelenlét[7],\"T\")+COUNTIF(NovemberiJelenlét[7],\"I\")","v":0},{"$f":"COUNTIF(NovemberiJelenlét[8],\"T\")+COUNTIF(NovemberiJelenlét[8],\"I\")","v":0},{"$f":"COUNTIF(NovemberiJelenlét[9],\"T\")+COUNTIF(NovemberiJelenlét[9],\"I\")","v":0},{"$f":"COUNTIF(NovemberiJelenlét[10],\"T\")+COUNTIF(NovemberiJelenlét[10],\"I\")","v":0},{"$f":"COUNTIF(NovemberiJelenlét[11],\"T\")+COUNTIF(NovemberiJelenlét[11],\"I\")","v":0},{"$f":"COUNTIF(NovemberiJelenlét[12],\"T\")+COUNTIF(NovemberiJelenlét[12],\"I\")","v":0},{"$f":"COUNTIF(NovemberiJelenlét[13],\"T\")+COUNTIF(NovemberiJelenlét[13],\"I\")","v":0},{"$f":"COUNTIF(NovemberiJelenlét[14],\"T\")+COUNTIF(NovemberiJelenlét[14],\"I\")","v":0},{"$f":"COUNTIF(NovemberiJelenlét[15],\"T\")+COUNTIF(NovemberiJelenlét[15],\"I\")","v":0},{"$f":"COUNTIF(NovemberiJelenlét[16],\"T\")+COUNTIF(NovemberiJelenlét[16],\"I\")","v":0},{"$f":"COUNTIF(NovemberiJelenlét[17],\"T\")+COUNTIF(NovemberiJelenlét[17],\"I\")","v":0},{"$f":"COUNTIF(NovemberiJelenlét[18],\"T\")+COUNTIF(NovemberiJelenlét[18],\"I\")","v":0},{"$f":"COUNTIF(NovemberiJelenlét[19],\"T\")+COUNTIF(NovemberiJelenlét[19],\"I\")","v":0},{"$f":"COUNTIF(NovemberiJelenlét[20],\"T\")+COUNTIF(NovemberiJelenlét[20],\"I\")","v":0},{"$f":"COUNTIF(NovemberiJelenlét[21],\"T\")+COUNTIF(NovemberiJelenlét[21],\"I\")","v":0},{"$f":"COUNTIF(NovemberiJelenlét[22],\"T\")+COUNTIF(NovemberiJelenlét[22],\"I\")","v":0},{"$f":"COUNTIF(NovemberiJelenlét[23],\"T\")+COUNTIF(NovemberiJelenlét[23],\"I\")","v":0},{"$f":"COUNTIF(NovemberiJelenlét[24],\"T\")+COUNTIF(NovemberiJelenlét[24],\"I\")","v":0},{"$f":"COUNTIF(NovemberiJelenlét[25],\"T\")+COUNTIF(NovemberiJelenlét[25],\"I\")","v":0},{"$f":"COUNTIF(NovemberiJelenlét[26],\"T\")+COUNTIF(NovemberiJelenlét[26],\"I\")","v":0},{"$f":"COUNTIF(NovemberiJelenlét[27],\"T\")+COUNTIF(NovemberiJelenlét[27],\"I\")","v":0},{"$f":"COUNTIF(NovemberiJelenlét[28],\"T\")+COUNTIF(NovemberiJelenlét[28],\"I\")","v":0},{"$f":"COUNTIF(NovemberiJelenlét[29],\"T\")+COUNTIF(NovemberiJelenlét[29],\"I\")","v":0},{"$f":"COUNTIF(NovemberiJelenlét[30],\"T\")+COUNTIF(NovemberiJelenlét[30],\"I\")","v":0},{"$f":"COUNTIF(NovemberiJelenlét[[ ]],\"T\")+COUNTIF(NovemberiJelenlét[[ ]],\"I\")","v":0},{"$f":"SUBTOTAL(109,NovemberiJelenlét[K])","v":0},{"$f":"SUBTOTAL(109,NovemberiJelenlét[I])","v":0},{"$f":"SUBTOTAL(109,NovemberiJelenlét[T])","v":0},{"$f":"SUBTOTAL(109,NovemberiJelenlét[J])","v":0},{"$f":"SUBTOTAL(109,NovemberiJelenlét[])","v":0}]

{"sheet":"December","index":6,"n_rows":12,"n_cols":39,"rows_kept":12,"merged":[[4,34,4,38]]}
["DIÁKJELENLÉTI NYILVÁNTARTÁS",{"$nulls":36},"Iskolaév kezdete:",{"$f":"NaptáriÉv","v":2012}]
[]
[null,null,{"$f":"SzínkulcsSzöveg","v":"SZÍNMAGYARÁZAT"},"K","Késett",null,null,"I","Igazolt",null,null,"T","Igazolatlan",null,null,"J","Jelen",null,null,"N","Nincs tanítás"]
[]
[null,{"$f":"DATE(NaptáriÉv,12,1)","v":"2012-12-01"},null,{"$f":"TEXT(WEEKDAY(DATE(NaptáriÉv,12,1),1),\"aaa\")","v":"Szo"},{"$f":"TEXT(WEEKDAY(DATE(NaptáriÉv,12,2),1),\"aaa\")","v":"V"},{"$f":"TEXT(WEEKDAY(DATE(NaptáriÉv,12,3),1),\"aaa\")","v":"H"},{"$f":"TEXT(WEEKDAY(DATE(NaptáriÉv,12,4),1),\"aaa\")","v":"K"},{"$f":"TEXT(WEEKDAY(DATE(NaptáriÉv,12,5),1),\"aaa\")","v":"Sze"},{"$f":"TEXT(WEEKDAY(DATE(NaptáriÉv,12,6),1),\"aaa\")","v":"Cs"},{"$f":"TEXT(WEEKDAY(DATE(NaptáriÉv,12,7),1),\"aaa\")","v":"P"},{"$f":"TEXT(WEEKDAY(DATE(NaptáriÉv,12,8),1),\"aaa\")","v":"Szo"},{"$f":"TEXT(WEEKDAY(DATE(NaptáriÉv,12,9),1),\"aaa\")","v":"V"},{"$f":"TEXT(WEEKDAY(DATE(NaptáriÉv,12,10),1),\"aaa\")","v":"H"},{"$f":"TEXT(WEEKDAY(DATE(NaptáriÉv,12,11),1),\"aaa\")","v":"K"},{"$f":"TEXT(WEEKDAY(DATE(NaptáriÉv,12,12),1),\"aaa\")","v":"Sze"},{"$f":"TEXT(WEEKDAY(DATE(NaptáriÉv,12,13),1),\"aaa\")","v":"Cs"},{"$f":"TEXT(WEEKDAY(DATE(NaptáriÉv,12,14),1),\"aaa\")","v":"P"},{"$f":"TEXT(WEEKDAY(DATE(NaptáriÉv,12,15),1),\"aaa\")","v":"Szo"},{"$f":"TEXT(WEEKDAY(DATE(NaptáriÉv,12,16),1),\"aaa\")","v":"V"},{"$f":"TEXT(WEEKDAY(DATE(NaptáriÉv,12,17),1),\"aaa\")","v":"H"},{"$f":"TEXT(WEEKDAY(DATE(NaptáriÉv,12,18),1),\"aaa\")","v":"K"},{"$f":"TEXT(WEEKDAY(DATE(NaptáriÉv,12,19),1),\"aaa\")","v":"Sze"},{"$f":"TEXT(WEEKDAY(DATE(NaptáriÉv,12,20),1),\"aaa\")","v":"Cs"},{"$f":"TEXT(WEEKDAY(DATE(NaptáriÉv,12,21),1),\"aaa\")","v":"P"},{"$f":"TEXT(WEEKDAY(DATE(NaptáriÉv,12,22),1),\"aaa\")","v":"Szo"},{"$f":"TEXT(WEEKDAY(DATE(NaptáriÉv,12,23),1),\"aaa\")","v":"V"},{"$f":"TEXT(WEEKDAY(DATE(NaptáriÉv,12,24),1),\"aaa\")","v":"H"},{"$f":"TEXT(WEEKDAY(DATE(NaptáriÉv,12,25),1),\"aaa\")","v":"K"},{"$f":"TEXT(WEEKDAY(DATE(NaptáriÉv,12,26),1),\"aaa\")","v":"Sze"},{"$f":"TEXT(WEEKDAY(DATE(NaptáriÉv,12,27),1),\"aaa\")","v":"Cs"},{"$f":"TEXT(WEEKDAY(DATE(NaptáriÉv,12,28),1),\"aaa\")","v":"P"},{"$f":"TEXT(WEEKDAY(DATE(NaptáriÉv,12,29),1),\"aaa\")","v":"Szo"},{"$f":"TEXT(WEEKDAY(DATE(NaptáriÉv,12,30),1),\"aaa\")","v":"V"},{"$f":"TEXT(WEEKDAY(DATE(NaptáriÉv,12,31),1),\"aaa\")","v":"H"},"Összesen"]
[null,"Diák azonosítója","Diák neve","1","2","3","4","5","6","7","8","9","10","11","12","13","14","15","16","17","18","19","20","21","22","23","24","25","26","27","28","29","30","31","K","I","T","J","Hiányzott napok száma"]
[null,null,{"$f":"IFERROR(VLOOKUP(DecemberiJelenlét[[#This Row],[Diák azonosítója]],DiákLista[],18,FALSE),\"\")","v":""},{"$nulls":31},0,0,0,0,{"$f":"SUM(DecemberiJelenlét[[#This Row],[I]:[T]])","v":0}]
[null,null,{"$f":"IFERROR(VLOOKUP(DecemberiJelenlét[[#This Row],[Diák azonosítója]],DiákLista[],18,FALSE),\"\")","v":""},{"$nulls":31},0,0,0,0,{"$f":"SUM(DecemberiJelenlét[[#This Row],[I]:[T]])","v":0}]
[null,null,{"$f":"IFERROR(VLOOKUP(DecemberiJelenlét[[#This Row],[Diák azonosítója]],DiákLista[],18,FALSE),\"\")","v":""},{"$nulls":31},0,0,0,0,{"$f":"SUM(DecemberiJelenlét[[#This Row],[I]:[T]])","v":0}]
[null,null,{"$f":"IFERROR(VLOOKUP(DecemberiJelenlét[[#This Row],[Diák azonosítója]],DiákLista[],18,FALSE),\"\")","v":""},{"$nulls":31},0,0,0,0,{"$f":"SUM(DecemberiJelenlét[[#This Row],[I]:[T]])","v":0}]
[null,null,{"$f":"IFERROR(VLOOKUP(DecemberiJelenlét[[#This Row],[Diák azonosítója]],DiákLista[],18,FALSE),\"\")","v":""},{"$nulls":31},0,0,0,0,{"$f":"SUM(DecemberiJelenlét[[#This Row],[I]:[T]])","v":0}]
[null,null,"Összes hiányzás",{"$f":"COUNTIF(DecemberiJelenlét[1],\"T\")+COUNTIF(DecemberiJelenlét[1],\"I\")","v":0},{"$f":"COUNTIF(DecemberiJelenlét[2],\"T\")+COUNTIF(DecemberiJelenlét[2],\"I\")","v":0},{"$f":"COUNTIF(DecemberiJelenlét[3],\"T\")+COUNTIF(DecemberiJelenlét[3],\"I\")","v":0},{"$f":"COUNTIF(DecemberiJelenlét[4],\"T\")+COUNTIF(DecemberiJelenlét[4],\"I\")","v":0},{"$f":"COUNTIF(DecemberiJelenlét[5],\"T\")+COUNTIF(DecemberiJelenlét[5],\"I\")","v":0},{"$f":"COUNTIF(DecemberiJelenlét[6],\"T\")+COUNTIF(DecemberiJelenlét[6],\"I\")","v":0},{"$f":"COUNTIF(DecemberiJelenlét[7],\"T\")+COUNTIF(DecemberiJelenlét[7],\"I\")","v":0},{"$f":"COUNTIF(DecemberiJelenlét[8],\"T\")+COUNTIF(DecemberiJelenlét[8],\"I\")","v":0},{"$f":"COUNTIF(DecemberiJelenlét[9],\"T\")+COUNTIF(DecemberiJelenlét[9],\"I\")","v":0},{"$f":"COUNTIF(DecemberiJelenlét[10],\"T\")+COUNTIF(DecemberiJelenlét[10],\"I\")","v":0},{"$f":"COUNTIF(DecemberiJelenlét[11],\"T\")+COUNTIF(DecemberiJelenlét[11],\"I\")","v":0},{"$f":"COUNTIF(DecemberiJelenlét[12],\"T\")+COUNTIF(DecemberiJelenlét[12],\"I\")","v":0},{"$f":"COUNTIF(DecemberiJelenlét[13],\"T\")+COUNTIF(DecemberiJelenlét[13],\"I\")","v":0},{"$f":"COUNTIF(DecemberiJelenlét[14],\"T\")+COUNTIF(DecemberiJelenlét[14],\"I\")","v":0},{"$f":"COUNTIF(DecemberiJelenlét[15],\"T\")+COUNTIF(DecemberiJelenlét[15],\"I\")","v":0},{"$f":"COUNTIF(DecemberiJelenlét[16],\"T\")+COUNTIF(DecemberiJelenlét[16],\"I\")","v":0},{"$f":"COUNTIF(DecemberiJelenlét[17],\"T\")+COUNTIF(DecemberiJelenlét[17],\"I\")","v":0},{"$f":"COUNTIF(DecemberiJelenlét[18],\"T\")+COUNTIF(DecemberiJelenlét[18],\"I\")","v":0},{"$f":"COUNTIF(DecemberiJelenlét[19],\"T\")+COUNTIF(DecemberiJelenlét[19],\"I\")","v":0},{"$f":"COUNTIF(DecemberiJelenlét[20],\"T\")+COUNTIF(DecemberiJelenlét[20],\"I\")","v":0},{"$f":"COUNTIF(DecemberiJelenlét[21],\"T\")+COUNTIF(DecemberiJelenlét[21],\"I\")","v":0},{"$f":"COUNTIF(DecemberiJelenlét[22],\"T\")+COUNTIF(DecemberiJelenlét[22],\"I\")","v":0},{"$f":"COUNTIF(DecemberiJelenlét[23],\"T\")+COUNTIF(DecemberiJelenlét[23],\"I\")","v":0},{"$f":"COUNTIF(DecemberiJelenlét[24],\"T\")+COUNTIF(DecemberiJelenlét[24],\"I\")","v":0},{"$f":"COUNTIF(DecemberiJelenlét[25],\"T\")+COUNTIF(DecemberiJelenlét[25],\"I\")","v":0},{"$f":"COUNTIF(DecemberiJelenlét[26],\"T\")+COUNTIF(DecemberiJelenlét[26],\"I\")","v":0},{"$f":"COUNTIF(DecemberiJelenlét[27],\"T\")+COUNTIF(DecemberiJelenlét[27],\"I\")","v":0},{"$f":"COUNTIF(DecemberiJelenlét[28],\"T\")+COUNTIF(DecemberiJelenlét[28],\"I\")","v":0},{"$f":"COUNTIF(DecemberiJelenlét[29],\"T\")+COUNTIF(DecemberiJelenlét[29],\"I\")","v":0},{"$f":"COUNTIF(DecemberiJelenlét[30],\"T\")+COUNTIF(DecemberiJelenlét[30],\"I\")","v":0},{"$f":"COUNTIF(DecemberiJelenlét[31],\"T\")+COUNTIF(DecemberiJelenlét[31],\"I\")","v":0},{"$f":"SUBTOTAL(109,DecemberiJelenlét[K])","v":0},{"$f":"SUBTOTAL(109,DecemberiJelenlét[I])","v":0},{"$f":"SUBTOTAL(109,DecemberiJelenlét[T])","v":0},{"$f":"SUBTOTAL(109,DecemberiJelenlét[J])","v":0},{"$f":"SUBTOTAL(109,DecemberiJelenlét[Hiányzott napok száma])","v":0}]

{"sheet":"Január","index":7,"n_rows":12,"n_cols":39,"rows_kept":12,"merged":[[4,34,4,38]]}
["DIÁKJELENLÉTI NYILVÁNTARTÁS",{"$nulls":36},"Iskolaév kezdete:",{"$f":"NaptáriÉv","v":2012}]
[]
[null,null,{"$f":"SzínkulcsSzöveg","v":"SZÍNMAGYARÁZAT"},"K","Késett",null,null,"I","Igazolt",null,null,"T","Igazolatlan",null,null,"J","Jelen",null,null,"N","Nincs tanítás"]
[]
[null,{"$f":"DATE(NaptáriÉv+1,1,1)","v":"2013-01-01"},null,{"$f":"TEXT(WEEKDAY(DATE(NaptáriÉv+1,1,1),1),\"aaa\")","v":"K"},{"$f":"TEXT(WEEKDAY(DATE(NaptáriÉv+1,1,2),1),\"aaa\")","v":"Sze"},{"$f":"TEXT(WEEKDAY(DATE(NaptáriÉv+1,1,3),1),\"aaa\")","v":"Cs"},{"$f":"TEXT(WEEKDAY(DATE(NaptáriÉv+1,1,4),1),\"aaa\")","v":"P"},{"$f":"TEXT(WEEKDAY(DATE(NaptáriÉv+1,1,5),1),\"aaa\")","v":"Szo"},{"$f":"TEXT(WEEKDAY(DATE(NaptáriÉv+1,1,6),1),\"aaa\")","v":"V"},{"$f":"TEXT(WEEKDAY(DATE(NaptáriÉv+1,1,7),1),\"aaa\")","v":"H"},{"$f":"TEXT(WEEKDAY(DATE(NaptáriÉv+1,1,8),1),\"aaa\")","v":"K"},{"$f":"TEXT(WEEKDAY(DATE(NaptáriÉv+1,1,9),1),\"aaa\")","v":"Sze"},{"$f":"TEXT(WEEKDAY(DATE(NaptáriÉv+1,1,10),1),\"aaa\")","v":"Cs"},{"$f":"TEXT(WEEKDAY(DATE(NaptáriÉv+1,1,11),1),\"aaa\")","v":"P"},{"$f":"TEXT(WEEKDAY(DATE(NaptáriÉv+1,1,12),1),\"aaa\")","v":"Szo"},{"$f":"TEXT(WEEKDAY(DATE(NaptáriÉv+1,1,13),1),\"aaa\")","v":"V"},{"$f":"TEXT(WEEKDAY(DATE(NaptáriÉv+1,1,14),1),\"aaa\")","v":"H"},{"$f":"TEXT(WEEKDAY(DATE(NaptáriÉv+1,1,15),1),\"aaa\")","v":"K"},{"$f":"TEXT(WEEKDAY(DATE(NaptáriÉv+1,1,16),1),\"aaa\")","v":"Sze"},{"$f":"TEXT(WEEKDAY(DATE(NaptáriÉv+1,1,17),1),\"aaa\")","v":"Cs"},{"$f":"TEXT(WEEKDAY(DATE(NaptáriÉv+1,1,18),1),\"aaa\")","v":"P"},{"$f":"TEXT(WEEKDAY(DATE(NaptáriÉv+1,1,19),1),\"aaa\")","v":"Szo"},{"$f":"TEXT(WEEKDAY(DATE(NaptáriÉv+1,1,20),1),\"aaa\")","v":"V"},{"$f":"TEXT(WEEKDAY(DATE(NaptáriÉv+1,1,21),1),\"aaa\")","v":"H"},{"$f":"TEXT(WEEKDAY(DATE(NaptáriÉv+1,1,22),1),\"aaa\")","v":"K"},{"$f":"TEXT(WEEKDAY(DATE(NaptáriÉv+1,1,23),1),\"aaa\")","v":"Sze"},{"$f":"TEXT(WEEKDAY(DATE(NaptáriÉv+1,1,24),1),\"aaa\")","v":"Cs"},{"$f":"TEXT(WEEKDAY(DATE(NaptáriÉv+1,1,25),1),\"aaa\")","v":"P"},{"$f":"TEXT(WEEKDAY(DATE(NaptáriÉv+1,1,26),1),\"aaa\")","v":"Szo"},{"$f":"TEXT(WEEKDAY(DATE(NaptáriÉv+1,1,27),1),\"aaa\")","v":"V"},{"$f":"TEXT(WEEKDAY(DATE(NaptáriÉv+1,1,28),1),\"aaa\")","v":"H"},{"$f":"TEXT(WEEKDAY(DATE(NaptáriÉv+1,1,29),1),\"aaa\")","v":"K"},{"$f":"TEXT(WEEKDAY(DATE(NaptáriÉv+1,1,30),1),\"aaa\")","v":"Sze"},{"$f":"TEXT(WEEKDAY(DATE(NaptáriÉv+1,1,31),1),\"aaa\")","v":"Cs"},"Összesen"]
[null,"Diák azonosítója","Diák neve","1","2","3","4","5","6","7","8","9","10","11","12","13","14","15","16","17","18","19","20","21","22","23","24","25","26","27","28","29","30","31","K","I","T","J","Hiányzott napok száma"]
[null,null,{"$f":"IFERROR(VLOOKUP(JanuáriJelenlét[[#This Row],[Diák azonosítója]],DiákLista[],18,FALSE),\"\")","v":""},{"$nulls":31},0,0,0,0,{"$f":"SUM(JanuáriJelenlét[[#This Row],[I]:[T]])","v":0}]
[null,null,{"$f":"IFERROR(VLOOKUP(JanuáriJelenlét[[#This Row],[Diák azonosítója]],DiákLista[],18,FALSE),\"\")","v":""},{"$nulls":31},0,0,0,0,{"$f":"SUM(JanuáriJelenlét[[#This Row],[I]:[T]])","v":0}]
[null,null,{"$f":"IFERROR(VLOOKUP(JanuáriJelenlét[[#This Row],[Diák azonosítója]],DiákLista[],18,FALSE),\"\")","v":""},{"$nulls":31},0,0,0,0,{"$f":"SUM(JanuáriJelenlét[[#This Row],[I]:[T]])","v":0}]
[null,null,{"$f":"IFERROR(VLOOKUP(JanuáriJelenlét[[#This Row],[Diák azonosítója]],DiákLista[],18,FALSE),\"\")","v":""},{"$nulls":31},0,0,0,0,{"$f":"SUM(JanuáriJelenlét[[#This Row],[I]:[T]])","v":0}]
[null,null,{"$f":"IFERROR(VLOOKUP(JanuáriJelenlét[[#This Row],[Diák azonosítója]],DiákLista[],18,FALSE),\"\")","v":""},{"$nulls":31},0,0,0,0,{"$f":"SUM(JanuáriJelenlét[[#This Row],[I]:[T]])","v":0}]
[null,null,"Összes hiányzás",{"$f":"COUNTIF(JanuáriJelenlét[1],\"T\")+COUNTIF(JanuáriJelenlét[1],\"I\")","v":0},{"$f":"COUNTIF(JanuáriJelenlét[2],\"T\")+COUNTIF(JanuáriJelenlét[2],\"I\")","v":0},{"$f":"COUNTIF(JanuáriJelenlét[3],\"T\")+COUNTIF(JanuáriJelenlét[3],\"I\")","v":0},{"$f":"COUNTIF(JanuáriJelenlét[4],\"T\")+COUNTIF(JanuáriJelenlét[4],\"I\")","v":0},{"$f":"COUNTIF(JanuáriJelenlét[5],\"T\")+COUNTIF(JanuáriJelenlét[5],\"I\")","v":0},{"$f":"COUNTIF(JanuáriJelenlét[6],\"T\")+COUNTIF(JanuáriJelenlét[6],\"I\")","v":0},{"$f":"COUNTIF(JanuáriJelenlét[7],\"T\")+COUNTIF(JanuáriJelenlét[7],\"I\")","v":0},{"$f":"COUNTIF(JanuáriJelenlét[8],\"T\")+COUNTIF(JanuáriJelenlét[8],\"I\")","v":0},{"$f":"COUNTIF(JanuáriJelenlét[9],\"T\")+COUNTIF(JanuáriJelenlét[9],\"I\")","v":0},{"$f":"COUNTIF(JanuáriJelenlét[10],\"T\")+COUNTIF(JanuáriJelenlét[10],\"I\")","v":0},{"$f":"COUNTIF(JanuáriJelenlét[11],\"T\")+COUNTIF(JanuáriJelenlét[11],\"I\")","v":0},{"$f":"COUNTIF(JanuáriJelenlét[12],\"T\")+COUNTIF(JanuáriJelenlét[12],\"I\")","v":0},{"$f":"COUNTIF(JanuáriJelenlét[13],\"T\")+COUNTIF(JanuáriJelenlét[13],\"I\")","v":0},{"$f":"COUNTIF(JanuáriJelenlét[14],\"T\")+COUNTIF(JanuáriJelenlét[14],\"I\")","v":0},{"$f":"COUNTIF(JanuáriJelenlét[15],\"T\")+COUNTIF(JanuáriJelenlét[15],\"I\")","v":0},{"$f":"COUNTIF(JanuáriJelenlét[16],\"T\")+COUNTIF(JanuáriJelenlét[16],\"I\")","v":0},{"$f":"COUNTIF(JanuáriJelenlét[17],\"T\")+COUNTIF(JanuáriJelenlét[17],\"I\")","v":0},{"$f":"COUNTIF(JanuáriJelenlét[18],\"T\")+COUNTIF(JanuáriJelenlét[18],\"I\")","v":0},{"$f":"COUNTIF(JanuáriJelenlét[19],\"T\")+COUNTIF(JanuáriJelenlét[19],\"I\")","v":0},{"$f":"COUNTIF(JanuáriJelenlét[20],\"T\")+COUNTIF(JanuáriJelenlét[20],\"I\")","v":0},{"$f":"COUNTIF(JanuáriJelenlét[21],\"T\")+COUNTIF(JanuáriJelenlét[21],\"I\")","v":0},{"$f":"COUNTIF(JanuáriJelenlét[22],\"T\")+COUNTIF(JanuáriJelenlét[22],\"I\")","v":0},{"$f":"COUNTIF(JanuáriJelenlét[23],\"T\")+COUNTIF(JanuáriJelenlét[23],\"I\")","v":0},{"$f":"COUNTIF(JanuáriJelenlét[24],\"T\")+COUNTIF(JanuáriJelenlét[24],\"I\")","v":0},{"$f":"COUNTIF(JanuáriJelenlét[25],\"T\")+COUNTIF(JanuáriJelenlét[25],\"I\")","v":0},{"$f":"COUNTIF(JanuáriJelenlét[26],\"T\")+COUNTIF(JanuáriJelenlét[26],\"I\")","v":0},{"$f":"COUNTIF(JanuáriJelenlét[27],\"T\")+COUNTIF(JanuáriJelenlét[27],\"I\")","v":0},{"$f":"COUNTIF(JanuáriJelenlét[28],\"T\")+COUNTIF(JanuáriJelenlét[28],\"I\")","v":0},{"$f":"COUNTIF(JanuáriJelenlét[29],\"T\")+COUNTIF(JanuáriJelenlét[29],\"I\")","v":0},null,null,{"$f":"SUBTOTAL(109,JanuáriJelenlét[K])","v":0},{"$f":"SUBTOTAL(109,JanuáriJelenlét[I])","v":0},{"$f":"SUBTOTAL(109,JanuáriJelenlét[T])","v":0},{"$f":"SUBTOTAL(109,JanuáriJelenlét[J])","v":0},{"$f":"SUBTOTAL(109,JanuáriJelenlét[Hiányzott napok száma])","v":0}]

{"sheet":"Február","index":8,"n_rows":12,"n_cols":39,"rows_kept":12,"merged":[[4,34,4,38]]}
["DIÁKJELENLÉTI NYILVÁNTARTÁS",{"$nulls":36},"Iskolaév kezdete:",{"$f":"NaptáriÉv","v":2012}]
[]
[null,null,{"$f":"SzínkulcsSzöveg","v":"SZÍNMAGYARÁZAT"},"K","Késett",null,null,"I","Igazolt",null,null,"T","Igazolatlan",null,null,"J","Jelen",null,null,"N","Nincs tanítás"]
[]
[null,{"$f":"DATE(NaptáriÉv+1,2,1)","v":"2013-02-01"},null,{"$f":"TEXT(WEEKDAY(DATE(NaptáriÉv+1,2,1),1),\"aaa\")","v":"P"},{"$f":"TEXT(WEEKDAY(DATE(NaptáriÉv+1,2,2),1),\"aaa\")","v":"Szo"},{"$f":"TEXT(WEEKDAY(DATE(NaptáriÉv+1,2,3),1),\"aaa\")","v":"V"},{"$f":"TEXT(WEEKDAY(DATE(NaptáriÉv+1,2,4),1),\"aaa\")","v":"H"},{"$f":"TEXT(WEEKDAY(DATE(NaptáriÉv+1,2,5),1),\"aaa\")","v":"K"},{"$f":"TEXT(WEEKDAY(DATE(NaptáriÉv+1,2,6),1),\"aaa\")","v":"Sze"},{"$f":"TEXT(WEEKDAY(DATE(NaptáriÉv+1,2,7),1),\"aaa\")","v":"Cs"},{"$f":"TEXT(WEEKDAY(DATE(NaptáriÉv+1,2,8),1),\"aaa\")","v":"P"},{"$f":"TEXT(WEEKDAY(DATE(NaptáriÉv+1,2,9),1),\"aaa\")","v":"Szo"},{"$f":"TEXT(WEEKDAY(DATE(NaptáriÉv+1,2,10),1),\"aaa\")","v":"V"},{"$f":"TEXT(WEEKDAY(DATE(NaptáriÉv+1,2,11),1),\"aaa\")","v":"H"},{"$f":"TEXT(WEEKDAY(DATE(NaptáriÉv+1,2,12),1),\"aaa\")","v":"K"},{"$f":"TEXT(WEEKDAY(DATE(NaptáriÉv+1,2,13),1),\"aaa\")","v":"Sze"},{"$f":"TEXT(WEEKDAY(DATE(NaptáriÉv+1,2,14),1),\"aaa\")","v":"Cs"},{"$f":"TEXT(WEEKDAY(DATE(NaptáriÉv+1,2,15),1),\"aaa\")","v":"P"},{"$f":"TEXT(WEEKDAY(DATE(NaptáriÉv+1,2,16),1),\"aaa\")","v":"Szo"},{"$f":"TEXT(WEEKDAY(DATE(NaptáriÉv+1,2,17),1),\"aaa\")","v":"V"},{"$f":"TEXT(WEEKDAY(DATE(NaptáriÉv+1,2,18),1),\"aaa\")","v":"H"},{"$f":"TEXT(WEEKDAY(DATE(NaptáriÉv+1,2,19),1),\"aaa\")","v":"K"},{"$f":"TEXT(WEEKDAY(DATE(NaptáriÉv+1,2,20),1),\"aaa\")","v":"Sze"},{"$f":"TEXT(WEEKDAY(DATE(NaptáriÉv+1,2,21),1),\"aaa\")","v":"Cs"},{"$f":"TEXT(WEEKDAY(DATE(NaptáriÉv+1,2,22),1),\"aaa\")","v":"P"},{"$f":"TEXT(WEEKDAY(DATE(NaptáriÉv+1,2,23),1),\"aaa\")","v":"Szo"},{"$f":"TEXT(WEEKDAY(DATE(NaptáriÉv+1,2,24),1),\"aaa\")","v":"V"},{"$f":"TEXT(WEEKDAY(DATE(NaptáriÉv+1,2,25),1),\"aaa\")","v":"H"},{"$f":"TEXT(WEEKDAY(DATE(NaptáriÉv+1,2,26),1),\"aaa\")","v":"K"},{"$f":"TEXT(WEEKDAY(DATE(NaptáriÉv+1,2,27),1),\"aaa\")","v":"Sze"},{"$f":"TEXT(WEEKDAY(DATE(NaptáriÉv+1,2,28),1),\"aaa\")","v":"Cs"},{"$f":"TEXT(WEEKDAY(DATE(NaptáriÉv+1,2,29),1),\"aaa\")","v":"P"},null,null,"Összesen"]
[null,"Diák azonosítója","Diák neve","1","2","3","4","5","6","7","8","9","10","11","12","13","14","15","16","17","18","19","20","21","22","23","24","25","26","27","28","29","30","31","K","I","T","J","Hiányzott napok száma"]
[null,null,{"$f":"IFERROR(VLOOKUP(FebruáriJelenlét[[#This Row],[Diák azonosítója]],DiákLista[],18,FALSE),\"\")","v":""},{"$nulls":31},0,0,0,0,{"$f":"SUM(FebruáriJelenlét[[#This Row],[I]:[T]])","v":0}]
[null,null,{"$f":"IFERROR(VLOOKUP(FebruáriJelenlét[[#This Row],[Diák azonosítója]],DiákLista[],18,FALSE),\"\")","v":""},{"$nulls":31},0,0,0,0,{"$f":"SUM(FebruáriJelenlét[[#This Row],[I]:[T]])","v":0}]
[null,null,{"$f":"IFERROR(VLOOKUP(FebruáriJelenlét[[#This Row],[Diák azonosítója]],DiákLista[],18,FALSE),\"\")","v":""},{"$nulls":31},0,0,0,0,{"$f":"SUM(FebruáriJelenlét[[#This Row],[I]:[T]])","v":0}]
[null,null,{"$f":"IFERROR(VLOOKUP(FebruáriJelenlét[[#This Row],[Diák azonosítója]],DiákLista[],18,FALSE),\"\")","v":""},{"$nulls":31},0,0,0,0,{"$f":"SUM(FebruáriJelenlét[[#This Row],[I]:[T]])","v":0}]
[null,null,{"$f":"IFERROR(VLOOKUP(FebruáriJelenlét[[#This Row],[Diák azonosítója]],DiákLista[],18,FALSE),\"\")","v":""},{"$nulls":31},0,0,0,0,{"$f":"SUM(FebruáriJelenlét[[#This Row],[I]:[T]])","v":0}]
[null,null,"Összes hiányzás",{"$f":"COUNTIF(FebruáriJelenlét[1],\"T\")+COUNTIF(FebruáriJelenlét[1],\"I\")","v":0},{"$f":"COUNTIF(FebruáriJelenlét[2],\"T\")+COUNTIF(FebruáriJelenlét[2],\"I\")","v":0},{"$f":"COUNTIF(FebruáriJelenlét[3],\"T\")+COUNTIF(FebruáriJelenlét[3],\"I\")","v":0},{"$f":"COUNTIF(FebruáriJelenlét[4],\"T\")+COUNTIF(FebruáriJelenlét[4],\"I\")","v":0},{"$f":"COUNTIF(FebruáriJelenlét[5],\"T\")+COUNTIF(FebruáriJelenlét[5],\"I\")","v":0},{"$f":"COUNTIF(FebruáriJelenlét[6],\"T\")+COUNTIF(FebruáriJelenlét[6],\"I\")","v":0},{"$f":"COUNTIF(FebruáriJelenlét[7],\"T\")+COUNTIF(FebruáriJelenlét[7],\"I\")","v":0},{"$f":"COUNTIF(FebruáriJelenlét[8],\"T\")+COUNTIF(FebruáriJelenlét[8],\"I\")","v":0},{"$f":"COUNTIF(FebruáriJelenlét[9],\"T\")+COUNTIF(FebruáriJelenlét[9],\"I\")","v":0},{"$f":"COUNTIF(FebruáriJelenlét[10],\"T\")+COUNTIF(FebruáriJelenlét[10],\"I\")","v":0},{"$f":"COUNTIF(FebruáriJelenlét[11],\"T\")+COUNTIF(FebruáriJelenlét[11],\"I\")","v":0},{"$f":"COUNTIF(FebruáriJelenlét[12],\"T\")+COUNTIF(FebruáriJelenlét[12],\"I\")","v":0},{"$f":"COUNTIF(FebruáriJelenlét[13],\"T\")+COUNTIF(FebruáriJelenlét[13],\"I\")","v":0},{"$f":"COUNTIF(FebruáriJelenlét[14],\"T\")+COUNTIF(FebruáriJelenlét[14],\"I\")","v":0},{"$f":"COUNTIF(FebruáriJelenlét[15],\"T\")+COUNTIF(FebruáriJelenlét[15],\"I\")","v":0},{"$f":"COUNTIF(FebruáriJelenlét[16],\"T\")+COUNTIF(FebruáriJelenlét[16],\"I\")","v":0},{"$f":"COUNTIF(FebruáriJelenlét[17],\"T\")+COUNTIF(FebruáriJelenlét[17],\"I\")","v":0},{"$f":"COUNTIF(FebruáriJelenlét[18],\"T\")+COUNTIF(FebruáriJelenlét[18],\"I\")","v":0},{"$f":"COUNTIF(FebruáriJelenlét[19],\"T\")+COUNTIF(FebruáriJelenlét[19],\"I\")","v":0},{"$f":"COUNTIF(FebruáriJelenlét[20],\"T\")+COUNTIF(FebruáriJelenlét[20],\"I\")","v":0},{"$f":"COUNTIF(FebruáriJelenlét[21],\"T\")+COUNTIF(FebruáriJelenlét[21],\"I\")","v":0},{"$f":"COUNTIF(FebruáriJelenlét[22],\"T\")+COUNTIF(FebruáriJelenlét[22],\"I\")","v":0},{"$f":"COUNTIF(FebruáriJelenlét[23],\"T\")+COUNTIF(FebruáriJelenlét[23],\"I\")","v":0},{"$f":"COUNTIF(FebruáriJelenlét[24],\"T\")+COUNTIF(FebruáriJelenlét[24],\"I\")","v":0},{"$f":"COUNTIF(FebruáriJelenlét[25],\"T\")+COUNTIF(FebruáriJelenlét[25],\"I\")","v":0},{"$f":"COUNTIF(FebruáriJelenlét[26],\"T\")+COUNTIF(FebruáriJelenlét[26],\"I\")","v":0},{"$f":"COUNTIF(FebruáriJelenlét[27],\"T\")+COUNTIF(FebruáriJelenlét[27],\"I\")","v":0},{"$f":"COUNTIF(FebruáriJelenlét[28],\"T\")+COUNTIF(FebruáriJelenlét[28],\"I\")","v":0},{"$f":"COUNTIF(FebruáriJelenlét[29],\"T\")+COUNTIF(FebruáriJelenlét[29],\"I\")","v":0},null,null,{"$f":"SUBTOTAL(109,FebruáriJelenlét[K])","v":0},{"$f":"SUBTOTAL(109,FebruáriJelenlét[I])","v":0},{"$f":"SUBTOTAL(109,FebruáriJelenlét[T])","v":0},{"$f":"SUBTOTAL(109,FebruáriJelenlét[J])","v":0},{"$f":"SUBTOTAL(109,FebruáriJelenlét[Hiányzott napok száma])","v":0}]

{"sheet":"Március","index":9,"n_rows":12,"n_cols":39,"rows_kept":12,"merged":[[4,34,4,38]]}
["DIÁKJELENLÉTI NYILVÁNTARTÁS",{"$nulls":36},"Iskolaév kezdete:",{"$f":"NaptáriÉv","v":2012}]
[]
[null,null,{"$f":"SzínkulcsSzöveg","v":"SZÍNMAGYARÁZAT"},"K","Késett",null,null,"I","Igazolt",null,null,"T","Igazolatlan",null,null,"J","Jelen",null,null,"N","Nincs tanítás"]
[]
[null,{"$f":"DATE(NaptáriÉv+1,3,1)","v":"2013-03-01"},null,{"$f":"TEXT(WEEKDAY(DATE(NaptáriÉv+1,3,1),1),\"aaa\")","v":"P"},{"$f":"TEXT(WEEKDAY(DATE(NaptáriÉv+1,3,2),1),\"aaa\")","v":"Szo"},{"$f":"TEXT(WEEKDAY(DATE(NaptáriÉv+1,3,3),1),\"aaa\")","v":"V"},{"$f":"TEXT(WEEKDAY(DATE(NaptáriÉv+1,3,4),1),\"aaa\")","v":"H"},{"$f":"TEXT(WEEKDAY(DATE(NaptáriÉv+1,3,5),1),\"aaa\")","v":"K"},{"$f":"TEXT(WEEKDAY(DATE(NaptáriÉv+1,3,6),1),\"aaa\")","v":"Sze"},{"$f":"TEXT(WEEKDAY(DATE(NaptáriÉv+1,3,7),1),\"aaa\")","v":"Cs"},{"$f":"TEXT(WEEKDAY(DATE(NaptáriÉv+1,3,8),1),\"aaa\")","v":"P"},{"$f":"TEXT(WEEKDAY(DATE(NaptáriÉv+1,3,9),1),\"aaa\")","v":"Szo"},{"$f":"TEXT(WEEKDAY(DATE(NaptáriÉv+1,3,10),1),\"aaa\")","v":"V"},{"$f":"TEXT(WEEKDAY(DATE(NaptáriÉv+1,3,11),1),\"aaa\")","v":"H"},{"$f":"TEXT(WEEKDAY(DATE(NaptáriÉv+1,3,12),1),\"aaa\")","v":"K"},{"$f":"TEXT(WEEKDAY(DATE(NaptáriÉv+1,3,13),1),\"aaa\")","v":"Sze"},{"$f":"TEXT(WEEKDAY(DATE(NaptáriÉv+1,3,14),1),\"aaa\")","v":"Cs"},{"$f":"TEXT(WEEKDAY(DATE(NaptáriÉv+1,3,15),1),\"aaa\")","v":"P"},{"$f":"TEXT(WEEKDAY(DATE(NaptáriÉv+1,3,16),1),\"aaa\")","v":"Szo"},{"$f":"TEXT(WEEKDAY(DATE(NaptáriÉv+1,3,17),1),\"aaa\")","v":"V"},{"$f":"TEXT(WEEKDAY(DATE(NaptáriÉv+1,3,18),1),\"aaa\")","v":"H"},{"$f":"TEXT(WEEKDAY(DATE(NaptáriÉv+1,3,19),1),\"aaa\")","v":"K"},{"$f":"TEXT(WEEKDAY(DATE(NaptáriÉv+1,3,20),1),\"aaa\")","v":"Sze"},{"$f":"TEXT(WEEKDAY(DATE(NaptáriÉv+1,3,21),1),\"aaa\")","v":"Cs"},{"$f":"TEXT(WEEKDAY(DATE(NaptáriÉv+1,3,22),1),\"aaa\")","v":"P"},{"$f":"TEXT(WEEKDAY(DATE(NaptáriÉv+1,3,23),1),\"aaa\")","v":"Szo"},{"$f":"TEXT(WEEKDAY(DATE(NaptáriÉv+1,3,24),1),\"aaa\")","v":"V"},{"$f":"TEXT(WEEKDAY(DATE(NaptáriÉv+1,3,25),1),\"aaa\")","v":"H"},{"$f":"TEXT(WEEKDAY(DATE(NaptáriÉv+1,3,26),1),\"aaa\")","v":"K"},{"$f":"TEXT(WEEKDAY(DATE(NaptáriÉv+1,3,27),1),\"aaa\")","v":"Sze"},{"$f":"TEXT(WEEKDAY(DATE(NaptáriÉv+1,3,28),1),\"aaa\")","v":"Cs"},{"$f":"TEXT(WEEKDAY(DATE(NaptáriÉv+1,3,29),1),\"aaa\")","v":"P"},{"$f":"TEXT(WEEKDAY(DATE(NaptáriÉv+1,3,30),1),\"aaa\")","v":"Szo"},{"$f":"TEXT(WEEKDAY(DATE(NaptáriÉv+1,3,31),1),\"aaa\")","v":"V"},"Összesen"]
[null,"Diák azonosítója","Diák neve","1","2","3","4","5","6","7","8","9","10","11","12","13","14","15","16","17","18","19","20","21","22","23","24","25","26","27","28","29","30","31","K","I","T","J","Hiányzott napok száma"]
[null,null,{"$f":"IFERROR(VLOOKUP(MárciusiJelenlét[[#This Row],[Diák azonosítója]],DiákLista[],18,FALSE),\"\")","v":""},{"$nulls":31},0,0,0,0,{"$f":"SUM(MárciusiJelenlét[[#This Row],[I]:[T]])","v":0}]
[null,null,{"$f":"IFERROR(VLOOKUP(MárciusiJelenlét[[#This Row],[Diák azonosítója]],DiákLista[],18,FALSE),\"\")","v":""},{"$nulls":31},0,0,0,0,{"$f":"SUM(MárciusiJelenlét[[#This Row],[I]:[T]])","v":0}]
[null,null,{"$f":"IFERROR(VLOOKUP(MárciusiJelenlét[[#This Row],[Diák azonosítója]],DiákLista[],18,FALSE),\"\")","v":""},{"$nulls":31},0,0,0,0,{"$f":"SUM(MárciusiJelenlét[[#This Row],[I]:[T]])","v":0}]
[null,null,{"$f":"IFERROR(VLOOKUP(MárciusiJelenlét[[#This Row],[Diák azonosítója]],DiákLista[],18,FALSE),\"\")","v":""},{"$nulls":31},0,0,0,0,{"$f":"SUM(MárciusiJelenlét[[#This Row],[I]:[T]])","v":0}]
[null,null,{"$f":"IFERROR(VLOOKUP(MárciusiJelenlét[[#This Row],[Diák azonosítója]],DiákLista[],18,FALSE),\"\")","v":""},{"$nulls":31},0,0,0,0,{"$f":"SUM(MárciusiJelenlét[[#This Row],[I]:[T]])","v":0}]
[null,null,"Összes hiányzás",{"$f":"COUNTIF(MárciusiJelenlét[1],\"T\")+COUNTIF(MárciusiJelenlét[1],\"I\")","v":0},{"$f":"COUNTIF(MárciusiJelenlét[2],\"T\")+COUNTIF(MárciusiJelenlét[2],\"I\")","v":0},{"$f":"COUNTIF(MárciusiJelenlét[3],\"T\")+COUNTIF(MárciusiJelenlét[3],\"I\")","v":0},{"$f":"COUNTIF(MárciusiJelenlét[4],\"T\")+COUNTIF(MárciusiJelenlét[4],\"I\")","v":0},{"$f":"COUNTIF(MárciusiJelenlét[5],\"T\")+COUNTIF(MárciusiJelenlét[5],\"I\")","v":0},{"$f":"COUNTIF(MárciusiJelenlét[6],\"T\")+COUNTIF(MárciusiJelenlét[6],\"I\")","v":0},{"$f":"COUNTIF(MárciusiJelenlét[7],\"T\")+COUNTIF(MárciusiJelenlét[7],\"I\")","v":0},{"$f":"COUNTIF(MárciusiJelenlét[8],\"T\")+COUNTIF(MárciusiJelenlét[8],\"I\")","v":0},{"$f":"COUNTIF(MárciusiJelenlét[9],\"T\")+COUNTIF(MárciusiJelenlét[9],\"I\")","v":0},{"$f":"COUNTIF(MárciusiJelenlét[10],\"T\")+COUNTIF(MárciusiJelenlét[10],\"I\")","v":0},{"$f":"COUNTIF(MárciusiJelenlét[11],\"T\")+COUNTIF(MárciusiJelenlét[11],\"I\")","v":0},{"$f":"COUNTIF(MárciusiJelenlét[12],\"T\")+COUNTIF(MárciusiJelenlét[12],\"I\")","v":0},{"$f":"COUNTIF(MárciusiJelenlét[13],\"T\")+COUNTIF(MárciusiJelenlét[13],\"I\")","v":0},{"$f":"COUNTIF(MárciusiJelenlét[14],\"T\")+COUNTIF(MárciusiJelenlét[14],\"I\")","v":0},{"$f":"COUNTIF(MárciusiJelenlét[15],\"T\")+COUNTIF(MárciusiJelenlét[15],\"I\")","v":0},{"$f":"COUNTIF(MárciusiJelenlét[16],\"T\")+COUNTIF(MárciusiJelenlét[16],\"I\")","v":0},{"$f":"COUNTIF(MárciusiJelenlét[17],\"T\")+COUNTIF(MárciusiJelenlét[17],\"I\")","v":0},{"$f":"COUNTIF(MárciusiJelenlét[18],\"T\")+COUNTIF(MárciusiJelenlét[18],\"I\")","v":0},{"$f":"COUNTIF(MárciusiJelenlét[19],\"T\")+COUNTIF(MárciusiJelenlét[19],\"I\")","v":0},{"$f":"COUNTIF(MárciusiJelenlét[20],\"T\")+COUNTIF(MárciusiJelenlét[20],\"I\")","v":0},{"$f":"COUNTIF(MárciusiJelenlét[21],\"T\")+COUNTIF(MárciusiJelenlét[21],\"I\")","v":0},{"$f":"COUNTIF(MárciusiJelenlét[22],\"T\")+COUNTIF(MárciusiJelenlét[22],\"I\")","v":0},{"$f":"COUNTIF(MárciusiJelenlét[23],\"T\")+COUNTIF(MárciusiJelenlét[23],\"I\")","v":0},{"$f":"COUNTIF(MárciusiJelenlét[24],\"T\")+COUNTIF(MárciusiJelenlét[24],\"I\")","v":0},{"$f":"COUNTIF(MárciusiJelenlét[25],\"T\")+COUNTIF(MárciusiJelenlét[25],\"I\")","v":0},{"$f":"COUNTIF(MárciusiJelenlét[26],\"T\")+COUNTIF(MárciusiJelenlét[26],\"I\")","v":0},{"$f":"COUNTIF(MárciusiJelenlét[27],\"T\")+COUNTIF(MárciusiJelenlét[27],\"I\")","v":0},{"$f":"COUNTIF(MárciusiJelenlét[28],\"T\")+COUNTIF(MárciusiJelenlét[28],\"I\")","v":0},{"$f":"COUNTIF(MárciusiJelenlét[29],\"T\")+COUNTIF(MárciusiJelenlét[29],\"I\")","v":0},null,null,{"$f":"SUBTOTAL(109,MárciusiJelenlét[K])","v":0},{"$f":"SUBTOTAL(109,MárciusiJelenlét[I])","v":0},{"$f":"SUBTOTAL(109,MárciusiJelenlét[T])","v":0},{"$f":"SUBTOTAL(109,MárciusiJelenlét[J])","v":0},{"$f":"SUBTOTAL(109,MárciusiJelenlét[Hiányzott napok száma])","v":0}]

{"sheet":"Április","index":10,"n_rows":12,"n_cols":39,"rows_kept":12,"merged":[[4,34,4,38]]}
["DIÁKJELENLÉTI NYILVÁNTARTÁS",{"$nulls":36},"Iskolaév kezdete:",{"$f":"NaptáriÉv","v":2012}]
[]
[null,null,{"$f":"SzínkulcsSzöveg","v":"SZÍNMAGYARÁZAT"},"K","Késett",null,null,"I","Igazolt",null,null,"T","Igazolatlan",null,null,"J","Jelen",null,null,"N","Nincs tanítás"]
[]
[null,{"$f":"DATE(NaptáriÉv+1,4,1)","v":"2013-04-01"},null,{"$f":"TEXT(WEEKDAY(DATE(NaptáriÉv+1,4,1),1),\"aaa\")","v":"H"},{"$f":"TEXT(WEEKDAY(DATE(NaptáriÉv+1,4,2),1),\"aaa\")","v":"K"},{"$f":"TEXT(WEEKDAY(DATE(NaptáriÉv+1,4,3),1),\"aaa\")","v":"Sze"},{"$f":"TEXT(WEEKDAY(DATE(NaptáriÉv+1,4,4),1),\"aaa\")","v":"Cs"},{"$f":"TEXT(WEEKDAY(DATE(NaptáriÉv+1,4,5),1),\"aaa\")","v":"P"},{"$f":"TEXT(WEEKDAY(DATE(NaptáriÉv+1,4,6),1),\"aaa\")","v":"Szo"},{"$f":"TEXT(WEEKDAY(DATE(NaptáriÉv+1,4,7),1),\"aaa\")","v":"V"},{"$f":"TEXT(WEEKDAY(DATE(NaptáriÉv+1,4,8),1),\"aaa\")","v":"H"},{"$f":"TEXT(WEEKDAY(DATE(NaptáriÉv+1,4,9),1),\"aaa\")","v":"K"},{"$f":"TEXT(WEEKDAY(DATE(NaptáriÉv+1,4,10),1),\"aaa\")","v":"Sze"},{"$f":"TEXT(WEEKDAY(DATE(NaptáriÉv+1,4,11),1),\"aaa\")","v":"Cs"},{"$f":"TEXT(WEEKDAY(DATE(NaptáriÉv+1,4,12),1),\"aaa\")","v":"P"},{"$f":"TEXT(WEEKDAY(DATE(NaptáriÉv+1,4,13),1),\"aaa\")","v":"Szo"},{"$f":"TEXT(WEEKDAY(DATE(NaptáriÉv+1,4,14),1),\"aaa\")","v":"V"},{"$f":"TEXT(WEEKDAY(DATE(NaptáriÉv+1,4,15),1),\"aaa\")","v":"H"},{"$f":"TEXT(WEEKDAY(DATE(NaptáriÉv+1,4,16),1),\"aaa\")","v":"K"},{"$f":"TEXT(WEEKDAY(DATE(NaptáriÉv+1,4,17),1),\"aaa\")","v":"Sze"},{"$f":"TEXT(WEEKDAY(DATE(NaptáriÉv+1,4,18),1),\"aaa\")","v":"Cs"},{"$f":"TEXT(WEEKDAY(DATE(NaptáriÉv+1,4,19),1),\"aaa\")","v":"P"},{"$f":"TEXT(WEEKDAY(DATE(NaptáriÉv+1,4,20),1),\"aaa\")","v":"Szo"},{"$f":"TEXT(WEEKDAY(DATE(NaptáriÉv+1,4,21),1),\"aaa\")","v":"V"},{"$f":"TEXT(WEEKDAY(DATE(NaptáriÉv+1,4,22),1),\"aaa\")","v":"H"},{"$f":"TEXT(WEEKDAY(DATE(NaptáriÉv+1,4,23),1),\"aaa\")","v":"K"},{"$f":"TEXT(WEEKDAY(DATE(NaptáriÉv+1,4,24),1),\"aaa\")","v":"Sze"},{"$f":"TEXT(WEEKDAY(DATE(NaptáriÉv+1,4,25),1),\"aaa\")","v":"Cs"},{"$f":"TEXT(WEEKDAY(DATE(NaptáriÉv+1,4,26),1),\"aaa\")","v":"P"},{"$f":"TEXT(WEEKDAY(DATE(NaptáriÉv+1,4,27),1),\"aaa\")","v":"Szo"},{"$f":"TEXT(WEEKDAY(DATE(NaptáriÉv+1,4,28),1),\"aaa\")","v":"V"},{"$f":"TEXT(WEEKDAY(DATE(NaptáriÉv+1,4,29),1),\"aaa\")","v":"H"},{"$f":"TEXT(WEEKDAY(DATE(NaptáriÉv+1,4,30),1),\"aaa\")","v":"K"},null,"Összesen"]
[null,"Diák azonosítója","Diák neve","1","2","3","4","5","6","7","8","9","10","11","12","13","14","15","16","17","18","19","20","21","22","23","24","25","26","27","28","29","30"," ","K","I","T","J","Hiányzott napok száma"]
[null,null,{"$f":"IFERROR(VLOOKUP(ÁprilisiJelenlét[[#This Row],[Diák azonosítója]],DiákLista[],18,FALSE),\"\")","v":""},{"$nulls":31},0,0,0,0,{"$f":"SUM(ÁprilisiJelenlét[[#This Row],[I]:[T]])","v":0}]
[null,null,{"$f":"IFERROR(VLOOKUP(ÁprilisiJelenlét[[#This Row],[Diák azonosítója]],DiákLista[],18,FALSE),\"\")","v":""},{"$nulls":31},0,0,0,0,{"$f":"SUM(ÁprilisiJelenlét[[#This Row],[I]:[T]])","v":0}]
[null,null,{"$f":"IFERROR(VLOOKUP(ÁprilisiJelenlét[[#This Row],[Diák azonosítója]],DiákLista[],18,FALSE),\"\")","v":""},{"$nulls":31},0,0,0,0,{"$f":"SUM(ÁprilisiJelenlét[[#This Row],[I]:[T]])","v":0}]
[null,null,{"$f":"IFERROR(VLOOKUP(ÁprilisiJelenlét[[#This Row],[Diák azonosítója]],DiákLista[],18,FALSE),\"\")","v":""},{"$nulls":31},0,0,0,0,{"$f":"SUM(ÁprilisiJelenlét[[#This Row],[I]:[T]])","v":0}]
[null,null,{"$f":"IFERROR(VLOOKUP(ÁprilisiJelenlét[[#This Row],[Diák azonosítója]],DiákLista[],18,FALSE),\"\")","v":""},{"$nulls":31},0,0,0,0,{"$f":"SUM(ÁprilisiJelenlét[[#This Row],[I]:[T]])","v":0}]
[null,null,"Összes hiányzás",{"$f":"COUNTIF(ÁprilisiJelenlét[1],\"T\")+COUNTIF(ÁprilisiJelenlét[1],\"I\")","v":0},{"$f":"COUNTIF(ÁprilisiJelenlét[2],\"T\")+COUNTIF(ÁprilisiJelenlét[2],\"I\")","v":0},{"$f":"COUNTIF(ÁprilisiJelenlét[3],\"T\")+COUNTIF(ÁprilisiJelenlét[3],\"I\")","v":0},{"$f":"COUNTIF(ÁprilisiJelenlét[4],\"T\")+COUNTIF(ÁprilisiJelenlét[4],\"I\")","v":0},{"$f":"COUNTIF(ÁprilisiJelenlét[5],\"T\")+COUNTIF(ÁprilisiJelenlét[5],\"I\")","v":0},{"$f":"COUNTIF(ÁprilisiJelenlét[6],\"T\")+COUNTIF(ÁprilisiJelenlét[6],\"I\")","v":0},{"$f":"COUNTIF(ÁprilisiJelenlét[7],\"T\")+COUNTIF(ÁprilisiJelenlét[7],\"I\")","v":0},{"$f":"COUNTIF(ÁprilisiJelenlét[8],\"T\")+COUNTIF(ÁprilisiJelenlét[8],\"I\")","v":0},{"$f":"COUNTIF(ÁprilisiJelenlét[9],\"T\")+COUNTIF(ÁprilisiJelenlét[9],\"I\")","v":0},{"$f":"COUNTIF(ÁprilisiJelenlét[10],\"T\")+COUNTIF(ÁprilisiJelenlét[10],\"I\")","v":0},{"$f":"COUNTIF(ÁprilisiJelenlét[11],\"T\")+COUNTIF(ÁprilisiJelenlét[11],\"I\")","v":0},{"$f":"COUNTIF(ÁprilisiJelenlét[12],\"T\")+COUNTIF(ÁprilisiJelenlét[12],\"I\")","v":0},{"$f":"COUNTIF(ÁprilisiJelenlét[13],\"T\")+COUNTIF(ÁprilisiJelenlét[13],\"I\")","v":0},{"$f":"COUNTIF(ÁprilisiJelenlét[14],\"T\")+COUNTIF(ÁprilisiJelenlét[14],\"I\")","v":0},{"$f":"COUNTIF(ÁprilisiJelenlét[15],\"T\")+COUNTIF(ÁprilisiJelenlét[15],\"I\")","v":0},{"$f":"COUNTIF(ÁprilisiJelenlét[16],\"T\")+COUNTIF(ÁprilisiJelenlét[16],\"I\")","v":0},{"$f":"COUNTIF(ÁprilisiJelenlét[17],\"T\")+COUNTIF(ÁprilisiJelenlét[17],\"I\")","v":0},{"$f":"COUNTIF(ÁprilisiJelenlét[18],\"T\")+COUNTIF(ÁprilisiJelenlét[18],\"I\")","v":0},{"$f":"COUNTIF(ÁprilisiJelenlét[19],\"T\")+COUNTIF(ÁprilisiJelenlét[19],\"I\")","v":0},{"$f":"COUNTIF(ÁprilisiJelenlét[20],\"T\")+COUNTIF(ÁprilisiJelenlét[20],\"I\")","v":0},{"$f":"COUNTIF(ÁprilisiJelenlét[21],\"T\")+COUNTIF(ÁprilisiJelenlét[21],\"I\")","v":0},{"$f":"COUNTIF(ÁprilisiJelenlét[22],\"T\")+COUNTIF(ÁprilisiJelenlét[22],\"I\")","v":0},{"$f":"COUNTIF(ÁprilisiJelenlét[23],\"T\")+COUNTIF(ÁprilisiJelenlét[23],\"I\")","v":0},{"$f":"COUNTIF(ÁprilisiJelenlét[24],\"T\")+COUNTIF(ÁprilisiJelenlét[24],\"I\")","v":0},{"$f":"COUNTIF(ÁprilisiJelenlét[25],\"T\")+COUNTIF(ÁprilisiJelenlét[25],\"I\")","v":0},{"$f":"COUNTIF(ÁprilisiJelenlét[26],\"T\")+COUNTIF(ÁprilisiJelenlét[26],\"I\")","v":0},{"$f":"COUNTIF(ÁprilisiJelenlét[27],\"T\")+COUNTIF(ÁprilisiJelenlét[27],\"I\")","v":0},{"$f":"COUNTIF(ÁprilisiJelenlét[28],\"T\")+COUNTIF(ÁprilisiJelenlét[28],\"I\")","v":0},{"$f":"COUNTIF(ÁprilisiJelenlét[29],\"T\")+COUNTIF(ÁprilisiJelenlét[29],\"I\")","v":0},null,null,{"$f":"SUBTOTAL(109,ÁprilisiJelenlét[K])","v":0},{"$f":"SUBTOTAL(109,ÁprilisiJelenlét[I])","v":0},{"$f":"SUBTOTAL(109,ÁprilisiJelenlét[T])","v":0},{"$f":"SUBTOTAL(109,ÁprilisiJelenlét[J])","v":0},{"$f":"SUBTOTAL(109,ÁprilisiJelenlét[Hiányzott napok száma])","v":0}]

{"sheet":"Május","index":11,"n_rows":12,"n_cols":39,"rows_kept":12,"merged":[[4,34,4,38]]}
["DIÁKJELENLÉTI NYILVÁNTARTÁS",{"$nulls":36},"Iskolaév kezdete:",{"$f":"NaptáriÉv","v":2012}]
[]
[null,null,{"$f":"SzínkulcsSzöveg","v":"SZÍNMAGYARÁZAT"},"K","Késett",null,null,"I","Igazolt",null,null,"T","Igazolatlan",null,null,"J","Jelen",null,null,"N","Nincs tanítás"]
[]
[null,{"$f":"DATE(NaptáriÉv+1,5,1)","v":"2013-05-01"},null,{"$f":"TEXT(WEEKDAY(DATE(NaptáriÉv+1,5,1),1),\"aaa\")","v":"Sze"},{"$f":"TEXT(WEEKDAY(DATE(NaptáriÉv+1,5,2),1),\"aaa\")","v":"Cs"},{"$f":"TEXT(WEEKDAY(DATE(NaptáriÉv+1,5,3),1),\"aaa\")","v":"P"},{"$f":"TEXT(WEEKDAY(DATE(NaptáriÉv+1,5,4),1),\"aaa\")","v":"Szo"},{"$f":"TEXT(WEEKDAY(DATE(NaptáriÉv+1,5,5),1),\"aaa\")","v":"V"},{"$f":"TEXT(WEEKDAY(DATE(NaptáriÉv+1,5,6),1),\"aaa\")","v":"H"},{"$f":"TEXT(WEEKDAY(DATE(NaptáriÉv+1,5,7),1),\"aaa\")","v":"K"},{"$f":"TEXT(WEEKDAY(DATE(NaptáriÉv+1,5,8),1),\"aaa\")","v":"Sze"},{"$f":"TEXT(WEEKDAY(DATE(NaptáriÉv+1,5,9),1),\"aaa\")","v":"Cs"},{"$f":"TEXT(WEEKDAY(DATE(NaptáriÉv+1,5,10),1),\"aaa\")","v":"P"},{"$f":"TEXT(WEEKDAY(DATE(NaptáriÉv+1,5,11),1),\"aaa\")","v":"Szo"},{"$f":"TEXT(WEEKDAY(DATE(NaptáriÉv+1,5,12),1),\"aaa\")","v":"V"},{"$f":"TEXT(WEEKDAY(DATE(NaptáriÉv+1,5,13),1),\"aaa\")","v":"H"},{"$f":"TEXT(WEEKDAY(DATE(NaptáriÉv+1,5,14),1),\"aaa\")","v":"K"},{"$f":"TEXT(WEEKDAY(DATE(NaptáriÉv+1,5,15),1),\"aaa\")","v":"Sze"},{"$f":"TEXT(WEEKDAY(DATE(NaptáriÉv+1,5,16),1),\"aaa\")","v":"Cs"},{"$f":"TEXT(WEEKDAY(DATE(NaptáriÉv+1,5,17),1),\"aaa\")","v":"P"},{"$f":"TEXT(WEEKDAY(DATE(NaptáriÉv+1,5,18),1),\"aaa\")","v":"Szo"},{"$f":"TEXT(WEEKDAY(DATE(NaptáriÉv+1,5,19),1),\"aaa\")","v":"V"},{"$f":"TEXT(WEEKDAY(DATE(NaptáriÉv+1,5,20),1),\"aaa\")","v":"H"},{"$f":"TEXT(WEEKDAY(DATE(NaptáriÉv+1,5,21),1),\"aaa\")","v":"K"},{"$f":"TEXT(WEEKDAY(DATE(NaptáriÉv+1,5,22),1),\"aaa\")","v":"Sze"},{"$f":"TEXT(WEEKDAY(DATE(NaptáriÉv+1,5,23),1),\"aaa\")","v":"Cs"},{"$f":"TEXT(WEEKDAY(DATE(NaptáriÉv+1,5,24),1),\"aaa\")","v":"P"},{"$f":"TEXT(WEEKDAY(DATE(NaptáriÉv+1,5,25),1),\"aaa\")","v":"Szo"},{"$f":"TEXT(WEEKDAY(DATE(NaptáriÉv+1,5,26),1),\"aaa\")","v":"V"},{"$f":"TEXT(WEEKDAY(DATE(NaptáriÉv+1,5,27),1),\"aaa\")","v":"H"},{"$f":"TEXT(WEEKDAY(DATE(NaptáriÉv+1,5,28),1),\"aaa\")","v":"K"},{"$f":"TEXT(WEEKDAY(DATE(NaptáriÉv+1,5,29),1),\"aaa\")","v":"Sze"},{"$f":"TEXT(WEEKDAY(DATE(NaptáriÉv+1,5,30),1),\"aaa\")","v":"Cs"},{"$f":"TEXT(WEEKDAY(DATE(NaptáriÉv+1,5,31),1),\"aaa\")","v":"P"},"Összesen"]
[null,"Diák azonosítója","Diák neve","1","2","3","4","5","6","7","8","9","10","11","12","13","14","15","16","17","18","19","20","21","22","23","24","25","26","27","28","29","30","31","K","I","T","J","Hiányzott napok száma"]
[null,null,{"$f":"IFERROR(VLOOKUP(MájusiJelenlét[[#This Row],[Diák azonosítója]],DiákLista[],18,FALSE),\"\")","v":""},{"$nulls":31},0,0,0,0,{"$f":"SUM(MájusiJelenlét[[#This Row],[I]:[T]])","v":0}]
[null,null,{"$f":"IFERROR(VLOOKUP(MájusiJelenlét[[#This Row],[Diák azonosítója]],DiákLista[],18,FALSE),\"\")","v":""},{"$nulls":31},0,0,0,0,{"$f":"SUM(MájusiJelenlét[[#This Row],[I]:[T]])","v":0}]
[null,null,{"$f":"IFERROR(VLOOKUP(MájusiJelenlét[[#This Row],[Diák azonosítója]],DiákLista[],18,FALSE),\"\")","v":""},{"$nulls":31},0,0,0,0,{"$f":"SUM(MájusiJelenlét[[#This Row],[I]:[T]])","v":0}]
[null,null,{"$f":"IFERROR(VLOOKUP(MájusiJelenlét[[#This Row],[Diák azonosítója]],DiákLista[],18,FALSE),\"\")","v":""},{"$nulls":31},0,0,0,0,{"$f":"SUM(MájusiJelenlét[[#This Row],[I]:[T]])","v":0}]
[null,null,{"$f":"IFERROR(VLOOKUP(MájusiJelenlét[[#This Row],[Diák azonosítója]],DiákLista[],18,FALSE),\"\")","v":""},{"$nulls":31},0,0,0,0,{"$f":"SUM(MájusiJelenlét[[#This Row],[I]:[T]])","v":0}]
[null,null,"Összes hiányzás",{"$f":"COUNTIF(MájusiJelenlét[1],\"T\")+COUNTIF(MájusiJelenlét[1],\"I\")","v":0},{"$f":"COUNTIF(MájusiJelenlét[2],\"T\")+COUNTIF(MájusiJelenlét[2],\"I\")","v":0},{"$f":"COUNTIF(MájusiJelenlét[3],\"T\")+COUNTIF(MájusiJelenlét[3],\"I\")","v":0},{"$f":"COUNTIF(MájusiJelenlét[4],\"T\")+COUNTIF(MájusiJelenlét[4],\"I\")","v":0},{"$f":"COUNTIF(MájusiJelenlét[5],\"T\")+COUNTIF(MájusiJelenlét[5],\"I\")","v":0},{"$f":"COUNTIF(MájusiJelenlét[6],\"T\")+COUNTIF(MájusiJelenlét[6],\"I\")","v":0},{"$f":"COUNTIF(MájusiJelenlét[7],\"T\")+COUNTIF(MájusiJelenlét[7],\"I\")","v":0},{"$f":"COUNTIF(MájusiJelenlét[8],\"T\")+COUNTIF(MájusiJelenlét[8],\"I\")","v":0},{"$f":"COUNTIF(MájusiJelenlét[9],\"T\")+COUNTIF(MájusiJelenlét[9],\"I\")","v":0},{"$f":"COUNTIF(MájusiJelenlét[10],\"T\")+COUNTIF(MájusiJelenlét[10],\"I\")","v":0},{"$f":"COUNTIF(MájusiJelenlét[11],\"T\")+COUNTIF(MájusiJelenlét[11],\"I\")","v":0},{"$f":"COUNTIF(MájusiJelenlét[12],\"T\")+COUNTIF(MájusiJelenlét[12],\"I\")","v":0},{"$f":"COUNTIF(MájusiJelenlét[13],\"T\")+COUNTIF(MájusiJelenlét[13],\"I\")","v":0},{"$f":"COUNTIF(MájusiJelenlét[14],\"T\")+COUNTIF(MájusiJelenlét[14],\"I\")","v":0},{"$f":"COUNTIF(MájusiJelenlét[15],\"T\")+COUNTIF(MájusiJelenlét[15],\"I\")","v":0},{"$f":"COUNTIF(MájusiJelenlét[16],\"T\")+COUNTIF(MájusiJelenlét[16],\"I\")","v":0},{"$f":"COUNTIF(MájusiJelenlét[17],\"T\")+COUNTIF(MájusiJelenlét[17],\"I\")","v":0},{"$f":"COUNTIF(MájusiJelenlét[18],\"T\")+COUNTIF(MájusiJelenlét[18],\"I\")","v":0},{"$f":"COUNTIF(MájusiJelenlét[19],\"T\")+COUNTIF(MájusiJelenlét[19],\"I\")","v":0},{"$f":"COUNTIF(MájusiJelenlét[20],\"T\")+COUNTIF(MájusiJelenlét[20],\"I\")","v":0},{"$f":"COUNTIF(MájusiJelenlét[21],\"T\")+COUNTIF(MájusiJelenlét[21],\"I\")","v":0},{"$f":"COUNTIF(MájusiJelenlét[22],\"T\")+COUNTIF(MájusiJelenlét[22],\"I\")","v":0},{"$f":"COUNTIF(MájusiJelenlét[23],\"T\")+COUNTIF(MájusiJelenlét[23],\"I\")","v":0},{"$f":"COUNTIF(MájusiJelenlét[24],\"T\")+COUNTIF(MájusiJelenlét[24],\"I\")","v":0},{"$f":"COUNTIF(MájusiJelenlét[25],\"T\")+COUNTIF(MájusiJelenlét[25],\"I\")","v":0},{"$f":"COUNTIF(MájusiJelenlét[26],\"T\")+COUNTIF(MájusiJelenlét[26],\"I\")","v":0},{"$f":"COUNTIF(MájusiJelenlét[27],\"T\")+COUNTIF(MájusiJelenlét[27],\"I\")","v":0},{"$f":"COUNTIF(MájusiJelenlét[28],\"T\")+COUNTIF(MájusiJelenlét[28],\"I\")","v":0},{"$f":"COUNTIF(MájusiJelenlét[29],\"T\")+COUNTIF(MájusiJelenlét[29],\"I\")","v":0},null,null,{"$f":"SUBTOTAL(109,MájusiJelenlét[K])","v":0},{"$f":"SUBTOTAL(109,MájusiJelenlét[I])","v":0},{"$f":"SUBTOTAL(109,MájusiJelenlét[T])","v":0},{"$f":"SUBTOTAL(109,MájusiJelenlét[J])","v":0},{"$f":"SUBTOTAL(109,MájusiJelenlét[Hiányzott napok száma])","v":0}]

{"sheet":"Június","index":12,"n_rows":12,"n_cols":39,"rows_kept":12,"merged":[[4,34,4,38]]}
["DIÁKJELENLÉTI NYILVÁNTARTÁS",{"$nulls":36},"Iskolaév kezdete:",{"$f":"NaptáriÉv","v":2012}]
[]
[null,null,{"$f":"SzínkulcsSzöveg","v":"SZÍNMAGYARÁZAT"},"K","Késett",null,null,"I","Igazolt",null,null,"T","Igazolatlan",null,null,"J","Jelen",null,null,"N","Nincs tanítás"]
[]
[null,{"$f":"DATE(NaptáriÉv+1,6,1)","v":"2013-06-01"},null,{"$f":"TEXT(WEEKDAY(DATE(NaptáriÉv+1,6,1),1),\"aaa\")","v":"Szo"},{"$f":"TEXT(WEEKDAY(DATE(NaptáriÉv+1,6,2),1),\"aaa\")","v":"V"},{"$f":"TEXT(WEEKDAY(DATE(NaptáriÉv+1,6,3),1),\"aaa\")","v":"H"},{"$f":"TEXT(WEEKDAY(DATE(NaptáriÉv+1,6,4),1),\"aaa\")","v":"K"},{"$f":"TEXT(WEEKDAY(DATE(NaptáriÉv+1,6,5),1),\"aaa\")","v":"Sze"},{"$f":"TEXT(WEEKDAY(DATE(NaptáriÉv+1,6,6),1),\"aaa\")","v":"Cs"},{"$f":"TEXT(WEEKDAY(DATE(NaptáriÉv+1,6,7),1),\"aaa\")","v":"P"},{"$f":"TEXT(WEEKDAY(DATE(NaptáriÉv+1,6,8),1),\"aaa\")","v":"Szo"},{"$f":"TEXT(WEEKDAY(DATE(NaptáriÉv+1,6,9),1),\"aaa\")","v":"V"},{"$f":"TEXT(WEEKDAY(DATE(NaptáriÉv+1,6,10),1),\"aaa\")","v":"H"},{"$f":"TEXT(WEEKDAY(DATE(NaptáriÉv+1,6,11),1),\"aaa\")","v":"K"},{"$f":"TEXT(WEEKDAY(DATE(NaptáriÉv+1,6,12),1),\"aaa\")","v":"Sze"},{"$f":"TEXT(WEEKDAY(DATE(NaptáriÉv+1,6,13),1),\"aaa\")","v":"Cs"},{"$f":"TEXT(WEEKDAY(DATE(NaptáriÉv+1,6,14),1),\"aaa\")","v":"P"},{"$f":"TEXT(WEEKDAY(DATE(NaptáriÉv+1,6,15),1),\"aaa\")","v":"Szo"},{"$f":"TEXT(WEEKDAY(DATE(NaptáriÉv+1,6,16),1),\"aaa\")","v":"V"},{"$f":"TEXT(WEEKDAY(DATE(NaptáriÉv+1,6,17),1),\"aaa\")","v":"H"},{"$f":"TEXT(WEEKDAY(DATE(NaptáriÉv+1,6,18),1),\"aaa\")","v":"K"},{"$f":"TEXT(WEEKDAY(DATE(NaptáriÉv+1,6,19),1),\"aaa\")","v":"Sze"},{"$f":"TEXT(WEEKDAY(DATE(NaptáriÉv+1,6,20),1),\"aaa\")","v":"Cs"},{"$f":"TEXT(WEEKDAY(DATE(NaptáriÉv+1,6,21),1),\"aaa\")","v":"P"},{"$f":"TEXT(WEEKDAY(DATE(NaptáriÉv+1,6,22),1),\"aaa\")","v":"Szo"},{"$f":"TEXT(WEEKDAY(DATE(NaptáriÉv+1,6,23),1),\"aaa\")","v":"V"},{"$f":"TEXT(WEEKDAY(DATE(NaptáriÉv+1,6,24),1),\"aaa\")","v":"H"},{"$f":"TEXT(WEEKDAY(DATE(NaptáriÉv+1,6,25),1),\"aaa\")","v":"K"},{"$f":"TEXT(WEEKDAY(DATE(NaptáriÉv+1,6,26),1),\"aaa\")","v":"Sze"},{"$f":"TEXT(WEEKDAY(DATE(NaptáriÉv+1,6,27),1),\"aaa\")","v":"Cs"},{"$f":"TEXT(WEEKDAY(DATE(NaptáriÉv+1,6,28),1),\"aaa\")","v":"P"},{"$f":"TEXT(WEEKDAY(DATE(NaptáriÉv+1,6,29),1),\"aaa\")","v":"Szo"},{"$f":"TEXT(WEEKDAY(DATE(NaptáriÉv+1,6,30),1),\"aaa\")","v":"V"},null,"Összesen"]
[null,"Diák azonosítója","Diák neve","1","2","3","4","5","6","7","8","9","10","11","12","13","14","15","16","17","18","19","20","21","22","23","24","25","26","27","28","29","30"," ","K","I","T","J","Hiányzott napok száma"]
[null,null,{"$f":"IFERROR(VLOOKUP(JúniusiJelenlét[[#This Row],[Diák azonosítója]],DiákLista[],18,FALSE),\"\")","v":""},{"$nulls":31},0,0,0,0,{"$f":"SUM(JúniusiJelenlét[[#This Row],[I]:[T]])","v":0}]
[null,null,{"$f":"IFERROR(VLOOKUP(JúniusiJelenlét[[#This Row],[Diák azonosítója]],DiákLista[],18,FALSE),\"\")","v":""},{"$nulls":31},0,0,0,0,{"$f":"SUM(JúniusiJelenlét[[#This Row],[I]:[T]])","v":0}]
[null,null,{"$f":"IFERROR(VLOOKUP(JúniusiJelenlét[[#This Row],[Diák azonosítója]],DiákLista[],18,FALSE),\"\")","v":""},{"$nulls":31},0,0,0,0,{"$f":"SUM(JúniusiJelenlét[[#This Row],[I]:[T]])","v":0}]
[null,null,{"$f":"IFERROR(VLOOKUP(JúniusiJelenlét[[#This Row],[Diák azonosítója]],DiákLista[],18,FALSE),\"\")","v":""},{"$nulls":31},0,0,0,0,{"$f":"SUM(JúniusiJelenlét[[#This Row],[I]:[T]])","v":0}]
[null,null,{"$f":"IFERROR(VLOOKUP(JúniusiJelenlét[[#This Row],[Diák azonosítója]],DiákLista[],18,FALSE),\"\")","v":""},{"$nulls":31},0,0,0,0,{"$f":"SUM(JúniusiJelenlét[[#This Row],[I]:[T]])","v":0}]
[null,null,"Összes hiányzás",{"$f":"COUNTIF(JúniusiJelenlét[1],\"T\")+COUNTIF(JúniusiJelenlét[1],\"I\")","v":0},{"$f":"COUNTIF(JúniusiJelenlét[2],\"T\")+COUNTIF(JúniusiJelenlét[2],\"I\")","v":0},{"$f":"COUNTIF(JúniusiJelenlét[3],\"T\")+COUNTIF(JúniusiJelenlét[3],\"I\")","v":0},{"$f":"COUNTIF(JúniusiJelenlét[4],\"T\")+COUNTIF(JúniusiJelenlét[4],\"I\")","v":0},{"$f":"COUNTIF(JúniusiJelenlét[5],\"T\")+COUNTIF(JúniusiJelenlét[5],\"I\")","v":0},{"$f":"COUNTIF(JúniusiJelenlét[6],\"T\")+COUNTIF(JúniusiJelenlét[6],\"I\")","v":0},{"$f":"COUNTIF(JúniusiJelenlét[7],\"T\")+COUNTIF(JúniusiJelenlét[7],\"I\")","v":0},{"$f":"COUNTIF(JúniusiJelenlét[8],\"T\")+COUNTIF(JúniusiJelenlét[8],\"I\")","v":0},{"$f":"COUNTIF(JúniusiJelenlét[9],\"T\")+COUNTIF(JúniusiJelenlét[9],\"I\")","v":0},{"$f":"COUNTIF(JúniusiJelenlét[10],\"T\")+COUNTIF(JúniusiJelenlét[10],\"I\")","v":0},{"$f":"COUNTIF(JúniusiJelenlét[11],\"T\")+COUNTIF(JúniusiJelenlét[11],\"I\")","v":0},{"$f":"COUNTIF(JúniusiJelenlét[12],\"T\")+COUNTIF(JúniusiJelenlét[12],\"I\")","v":0},{"$f":"COUNTIF(JúniusiJelenlét[13],\"T\")+COUNTIF(JúniusiJelenlét[13],\"I\")","v":0},{"$f":"COUNTIF(JúniusiJelenlét[14],\"T\")+COUNTIF(JúniusiJelenlét[14],\"I\")","v":0},{"$f":"COUNTIF(JúniusiJelenlét[15],\"T\")+COUNTIF(JúniusiJelenlét[15],\"I\")","v":0},{"$f":"COUNTIF(JúniusiJelenlét[16],\"T\")+COUNTIF(JúniusiJelenlét[16],\"I\")","v":0},{"$f":"COUNTIF(JúniusiJelenlét[17],\"T\")+COUNTIF(JúniusiJelenlét[17],\"I\")","v":0},{"$f":"COUNTIF(JúniusiJelenlét[18],\"T\")+COUNTIF(JúniusiJelenlét[18],\"I\")","v":0},{"$f":"COUNTIF(JúniusiJelenlét[19],\"T\")+COUNTIF(JúniusiJelenlét[19],\"I\")","v":0},{"$f":"COUNTIF(JúniusiJelenlét[20],\"T\")+COUNTIF(JúniusiJelenlét[20],\"I\")","v":0},{"$f":"COUNTIF(JúniusiJelenlét[21],\"T\")+COUNTIF(JúniusiJelenlét[21],\"I\")","v":0},{"$f":"COUNTIF(JúniusiJelenlét[22],\"T\")+COUNTIF(JúniusiJelenlét[22],\"I\")","v":0},{"$f":"COUNTIF(JúniusiJelenlét[23],\"T\")+COUNTIF(JúniusiJelenlét[23],\"I\")","v":0},{"$f":"COUNTIF(JúniusiJelenlét[24],\"T\")+COUNTIF(JúniusiJelenlét[24],\"I\")","v":0},{"$f":"COUNTIF(JúniusiJelenlét[25],\"T\")+COUNTIF(JúniusiJelenlét[25],\"I\")","v":0},{"$f":"COUNTIF(JúniusiJelenlét[26],\"T\")+COUNTIF(JúniusiJelenlét[26],\"I\")","v":0},{"$f":"COUNTIF(JúniusiJelenlét[27],\"T\")+COUNTIF(JúniusiJelenlét[27],\"I\")","v":0},{"$f":"COUNTIF(JúniusiJelenlét[28],\"T\")+COUNTIF(JúniusiJelenlét[28],\"I\")","v":0},{"$f":"COUNTIF(JúniusiJelenlét[29],\"T\")+COUNTIF(JúniusiJelenlét[29],\"I\")","v":0},null,null,{"$f":"SUBTOTAL(109,JúniusiJelenlét[K])","v":0},{"$f":"SUBTOTAL(109,JúniusiJelenlét[I])","v":0},{"$f":"SUBTOTAL(109,JúniusiJelenlét[T])","v":0},{"$f":"SUBTOTAL(109,JúniusiJelenlét[J])","v":0},{"$f":"SUBTOTAL(109,JúniusiJelenlét[Hiányzott napok száma])","v":0}]

{"sheet":"Július","index":13,"n_rows":12,"n_cols":39,"rows_kept":12,"merged":[[4,34,4,38]]}
["DIÁKJELENLÉTI NYILVÁNTARTÁS",{"$nulls":36},"Iskolaév kezdete:",{"$f":"NaptáriÉv","v":2012}]
[]
[null,null,{"$f":"SzínkulcsSzöveg","v":"SZÍNMAGYARÁZAT"},"K","Késett",null,null,"I","Igazolt",null,null,"T","Igazolatlan",null,null,"J","Jelen",null,null,"N","Nincs tanítás"]
[]
[null,{"$f":"DATE(NaptáriÉv+1,7,1)","v":"2013-07-01"},null,{"$f":"TEXT(WEEKDAY(DATE(NaptáriÉv+1,7,1),1),\"aaa\")","v":"H"},{"$f":"TEXT(WEEKDAY(DATE(NaptáriÉv+1,7,2),1),\"aaa\")","v":"K"},{"$f":"TEXT(WEEKDAY(DATE(NaptáriÉv+1,7,3),1),\"aaa\")","v":"Sze"},{"$f":"TEXT(WEEKDAY(DATE(NaptáriÉv+1,7,4),1),\"aaa\")","v":"Cs"},{"$f":"TEXT(WEEKDAY(DATE(NaptáriÉv+1,7,5),1),\"aaa\")","v":"P"},{"$f":"TEXT(WEEKDAY(DATE(NaptáriÉv+1,7,6),1),\"aaa\")","v":"Szo"},{"$f":"TEXT(WEEKDAY(DATE(NaptáriÉv+1,7,7),1),\"aaa\")","v":"V"},{"$f":"TEXT(WEEKDAY(DATE(NaptáriÉv+1,7,8),1),\"aaa\")","v":"H"},{"$f":"TEXT(WEEKDAY(DATE(NaptáriÉv+1,7,9),1),\"aaa\")","v":"K"},{"$f":"TEXT(WEEKDAY(DATE(NaptáriÉv+1,7,10),1),\"aaa\")","v":"Sze"},{"$f":"TEXT(WEEKDAY(DATE(NaptáriÉv+1,7,11),1),\"aaa\")","v":"Cs"},{"$f":"TEXT(WEEKDAY(DATE(NaptáriÉv+1,7,12),1),\"aaa\")","v":"P"},{"$f":"TEXT(WEEKDAY(DATE(NaptáriÉv+1,7,13),1),\"aaa\")","v":"Szo"},{"$f":"TEXT(WEEKDAY(DATE(NaptáriÉv+1,7,14),1),\"aaa\")","v":"V"},{"$f":"TEXT(WEEKDAY(DATE(NaptáriÉv+1,7,15),1),\"aaa\")","v":"H"},{"$f":"TEXT(WEEKDAY(DATE(NaptáriÉv+1,7,16),1),\"aaa\")","v":"K"},{"$f":"TEXT(WEEKDAY(DATE(NaptáriÉv+1,7,17),1),\"aaa\")","v":"Sze"},{"$f":"TEXT(WEEKDAY(DATE(NaptáriÉv+1,7,18),1),\"aaa\")","v":"Cs"},{"$f":"TEXT(WEEKDAY(DATE(NaptáriÉv+1,7,19),1),\"aaa\")","v":"P"},{"$f":"TEXT(WEEKDAY(DATE(NaptáriÉv+1,7,20),1),\"aaa\")","v":"Szo"},{"$f":"TEXT(WEEKDAY(DATE(NaptáriÉv+1,7,21),1),\"aaa\")","v":"V"},{"$f":"TEXT(WEEKDAY(DATE(NaptáriÉv+1,7,22),1),\"aaa\")","v":"H"},{"$f":"TEXT(WEEKDAY(DATE(NaptáriÉv+1,7,23),1),\"aaa\")","v":"K"},{"$f":"TEXT(WEEKDAY(DATE(NaptáriÉv+1,7,24),1),\"aaa\")","v":"Sze"},{"$f":"TEXT(WEEKDAY(DATE(NaptáriÉv+1,7,25),1),\"aaa\")","v":"Cs"},{"$f":"TEXT(WEEKDAY(DATE(NaptáriÉv+1,7,26),1),\"aaa\")","v":"P"},{"$f":"TEXT(WEEKDAY(DATE(NaptáriÉv+1,7,27),1),\"aaa\")","v":"Szo"},{"$f":"TEXT(WEEKDAY(DATE(NaptáriÉv+1,7,28),1),\"aaa\")","v":"V"},{"$f":"TEXT(WEEKDAY(DATE(NaptáriÉv+1,7,29),1),\"aaa\")","v":"H"},{"$f":"TEXT(WEEKDAY(DATE(NaptáriÉv+1,7,30),1),\"aaa\")","v":"K"},{"$f":"TEXT(WEEKDAY(DATE(NaptáriÉv+1,7,31),1),\"aaa\")","v":"Sze"},"Összesen"]
[null,"Diák azonosítója","Diák neve","1","2","3","4","5","6","7","8","9","10","11","12","13","14","15","16","17","18","19","20","21","22","23","24","25","26","27","28","29","30","31","K","I","T","J","Hiányzott napok száma"]
[null,null,{"$f":"IFERROR(VLOOKUP(JúliusiJelenlét[[#This Row],[Diák azonosítója]],DiákLista[],18,FALSE),\"\")","v":""},{"$nulls":31},0,0,0,0,{"$f":"SUM(JúliusiJelenlét[[#This Row],[I]:[T]])","v":0}]
[null,null,{"$f":"IFERROR(VLOOKUP(JúliusiJelenlét[[#This Row],[Diák azonosítója]],DiákLista[],18,FALSE),\"\")","v":""},{"$nulls":31},0,0,0,0,{"$f":"SUM(JúliusiJelenlét[[#This Row],[I]:[T]])","v":0}]
[null,null,{"$f":"IFERROR(VLOOKUP(JúliusiJelenlét[[#This Row],[Diák azonosítója]],DiákLista[],18,FALSE),\"\")","v":""},{"$nulls":31},0,0,0,0,{"$f":"SUM(JúliusiJelenlét[[#This Row],[I]:[T]])","v":0}]
[null,null,{"$f":"IFERROR(VLOOKUP(JúliusiJelenlét[[#This Row],[Diák azonosítója]],DiákLista[],18,FALSE),\"\")","v":""},{"$nulls":31},0,0,0,0,{"$f":"SUM(JúliusiJelenlét[[#This Row],[I]:[T]])","v":0}]
[null,null,{"$f":"IFERROR(VLOOKUP(JúliusiJelenlét[[#This Row],[Diák azonosítója]],DiákLista[],18,FALSE),\"\")","v":""},{"$nulls":31},0,0,0,0,{"$f":"SUM(JúliusiJelenlét[[#This Row],[I]:[T]])","v":0}]
[null,null,"Összes hiányzás",{"$f":"COUNTIF(JúliusiJelenlét[1],\"T\")+COUNTIF(JúliusiJelenlét[1],\"I\")","v":0},{"$f":"COUNTIF(JúliusiJelenlét[2],\"T\")+COUNTIF(JúliusiJelenlét[2],\"I\")","v":0},{"$f":"COUNTIF(JúliusiJelenlét[3],\"T\")+COUNTIF(JúliusiJelenlét[3],\"I\")","v":0},{"$f":"COUNTIF(JúliusiJelenlét[4],\"T\")+COUNTIF(JúliusiJelenlét[4],\"I\")","v":0},{"$f":"COUNTIF(JúliusiJelenlét[5],\"T\")+COUNTIF(JúliusiJelenlét[5],\"I\")","v":0},{"$f":"COUNTIF(JúliusiJelenlét[6],\"T\")+COUNTIF(JúliusiJelenlét[6],\"I\")","v":0},{"$f":"COUNTIF(JúliusiJelenlét[7],\"T\")+COUNTIF(JúliusiJelenlét[7],\"I\")","v":0},{"$f":"COUNTIF(JúliusiJelenlét[8],\"T\")+COUNTIF(JúliusiJelenlét[8],\"I\")","v":0},{"$f":"COUNTIF(JúliusiJelenlét[9],\"T\")+COUNTIF(JúliusiJelenlét[9],\"I\")","v":0},{"$f":"COUNTIF(JúliusiJelenlét[10],\"T\")+COUNTIF(JúliusiJelenlét[10],\"I\")","v":0},{"$f":"COUNTIF(JúliusiJelenlét[11],\"T\")+COUNTIF(JúliusiJelenlét[11],\"I\")","v":0},{"$f":"COUNTIF(JúliusiJelenlét[12],\"T\")+COUNTIF(JúliusiJelenlét[12],\"I\")","v":0},{"$f":"COUNTIF(JúliusiJelenlét[13],\"T\")+COUNTIF(JúliusiJelenlét[13],\"I\")","v":0},{"$f":"COUNTIF(JúliusiJelenlét[14],\"T\")+COUNTIF(JúliusiJelenlét[14],\"I\")","v":0},{"$f":"COUNTIF(JúliusiJelenlét[15],\"T\")+COUNTIF(JúliusiJelenlét[15],\"I\")","v":0},{"$f":"COUNTIF(JúliusiJelenlét[16],\"T\")+COUNTIF(JúliusiJelenlét[16],\"I\")","v":0},{"$f":"COUNTIF(JúliusiJelenlét[17],\"T\")+COUNTIF(JúliusiJelenlét[17],\"I\")","v":0},{"$f":"COUNTIF(JúliusiJelenlét[18],\"T\")+COUNTIF(JúliusiJelenlét[18],\"I\")","v":0},{"$f":"COUNTIF(JúliusiJelenlét[19],\"T\")+COUNTIF(JúliusiJelenlét[19],\"I\")","v":0},{"$f":"COUNTIF(JúliusiJelenlét[20],\"T\")+COUNTIF(JúliusiJelenlét[20],\"I\")","v":0},{"$f":"COUNTIF(JúliusiJelenlét[21],\"T\")+COUNTIF(JúliusiJelenlét[21],\"I\")","v":0},{"$f":"COUNTIF(JúliusiJelenlét[22],\"T\")+COUNTIF(JúliusiJelenlét[22],\"I\")","v":0},{"$f":"COUNTIF(JúliusiJelenlét[23],\"T\")+COUNTIF(JúliusiJelenlét[23],\"I\")","v":0},{"$f":"COUNTIF(JúliusiJelenlét[24],\"T\")+COUNTIF(JúliusiJelenlét[24],\"I\")","v":0},{"$f":"COUNTIF(JúliusiJelenlét[25],\"T\")+COUNTIF(JúliusiJelenlét[25],\"I\")","v":0},{"$f":"COUNTIF(JúliusiJelenlét[26],\"T\")+COUNTIF(JúliusiJelenlét[26],\"I\")","v":0},{"$f":"COUNTIF(JúliusiJelenlét[27],\"T\")+COUNTIF(JúliusiJelenlét[27],\"I\")","v":0},{"$f":"COUNTIF(JúliusiJelenlét[28],\"T\")+COUNTIF(JúliusiJelenlét[28],\"I\")","v":0},{"$f":"COUNTIF(JúliusiJelenlét[29],\"T\")+COUNTIF(JúliusiJelenlét[29],\"I\")","v":0},null,null,{"$f":"SUBTOTAL(109,JúliusiJelenlét[K])","v":0},{"$f":"SUBTOTAL(109,JúliusiJelenlét[I])","v":0},{"$f":"SUBTOTAL(109,JúliusiJelenlét[T])","v":0},{"$f":"SUBTOTAL(109,JúliusiJelenlét[J])","v":0},{"$f":"SUBTOTAL(109,JúliusiJelenlét[Hiányzott napok száma])","v":0}]

{"sheet":"Jelenléti kimutatás","index":14,"n_rows":40,"n_cols":37,"rows_kept":40,"merged":[[2,3,2,14],[2,15,2,17],[2,18,2,21],[2,22,2,29],[2,30,2,31],[2,32,2,35],[3,1,3,2],[3,3,3,14],[3,15,3,17],[3,18,3,21],[3,22,3,29],[3,30,3,31],[3,32,3,35],[4,1,4,9],[4,10,4,21],[4,22,4,29],[4,30,4,36],[5,1,5,9],[5,10,5,21],[5,22,5,29],[5,30,5,36],[6,1,6,9],[6,10,6,21],[6,22,6,29],[6,30,6,36],[7,1,7,9],[7,10,7,21],[7,22,7,29],[7,30,7,36],[8,1,8,9],[8,10,8,21],[8,22,8,29],[8,30,8,36],[9,1,9,9],[9,10,9,21],[9,22,9,29],[9,30,9,36],[13,1,14,32],[13,33,13,36],[15,1,16,1],[15,33,16,33],[15,34,16,34],[15,35,16,35],[15,36,16,36],[17,1,18,1],[17,33,18,33],[17,34,18,34],[17,35,18,35],[17,36,18,36],[19,1,20,1],[19,33,20,33],[19,34,20,34],[19,35,20,35],[19,36,20,36],[21,1,22,1],[21,33,22,33],[21,34,22,34],[21,35,22,35],[21,36,22,36],[23,1,24,1],[23,33,24,33],[23,34,24,34],[23,35,24,35],[23,36,24,36],[25,1,26,1],[25,33,26,33],[25,34,26,34],[25,35,26,35],[25,36,26,36],[27,1,28,1],[27,33,28,33],[27,34,28,34],[27,35,28,35],[27,36,28,36],[29,1,30,1],[29,33,30,33],[29,34,30,34],[29,35,30,35],[29,36,30,36],[31,1,32,1],[31,33,32,33],[31,34,32,34],[31,35,32,35],[31,36,32,36],[33,1,34,1],[33,33,34,33],[33,34,34,34],[33,35,34,35],[33,36,34,36],[35,1,36,1],[35,33,36,33],[35,34,36,34],[35,35,36,35],[35,36,36,36],[37,1,38,1],[37,33,38,33],[37,34,38,34],[37,35,38,35],[37,36,38,36],[39,30,39,32]]}
[{"$f":"\"Jelenléti nyilvántartás: \"","v":"Jelenléti nyilvántartás: "},{"$nulls":7},{"$f":"D4","v":"Ambrus Zsolt"}]
[]
[null,"Diák azonosítója",null,"Diák neve",{"$nulls":11},"Nem",null,null,"Születési dátum",{"$nulls":3},"Iskola",{"$nulls":7},"Évfolyam",null,"Tanár",{"$nulls":3},"Terem"]
[null,"D001",null,{"$f":"IFERROR(VLOOKUP(DiákKeresése,DiákLista[],18,FALSE),\"\")","v":"Ambrus Zsolt"},{"$nulls":11},{"$f":"IFERROR(VLOOKUP(DiákKeresése,DiákLista[],4,FALSE),\"\")","v":"F"},null,null,{"$f":"IFERROR(VLOOKUP(DiákKeresése,DiákLista[],5,FALSE),\"\")","v":"1997-03-28"},{"$nulls":3},"Képzőművészeti Iskola ",{"$nulls":7},7,null,"Bedecs Anna",{"$nulls":3},123]
[null,"1. szülő vagy gondviselő neve",{"$nulls":8},"Rokoni kapcsolat",{"$nulls":11},"Munkahelyi telefonszám",{"$nulls":7},"Otthoni telefonszám"]
[null,{"$f":"IFERROR(VLOOKUP(DiákKeresése,DiákLista[],6,FALSE),\"\")","v":"Balázs Erzsébet"},{"$nulls":8},{"$f":"IFERROR(VLOOKUP(DiákKeresése,DiákLista[],7,FALSE),\"\")","v":"Zsolt"},{"$nulls":11},{"$f":"IFERROR(VLOOKUP(DiákKeresése,DiákLista[],8,FALSE),\"\")","v":1235550134},{"$nulls":7},{"$f":"IFERROR(VLOOKUP(DiákKeresése,DiákLista[],9,FALSE),\"\")","v":2345550134}]
[null,"2. szülő vagy gondviselő neve",{"$nulls":8},"Rokoni kapcsolat",{"$nulls":11},"Munkahelyi telefonszám",{"$nulls":7},"Otthoni telefonszám"]
[null,{"$f":"IFERROR(VLOOKUP(DiákKeresése,DiákLista[],10,FALSE),\"\")","v":"Barkóczi Miklós"},{"$nulls":8},{"$f":"IFERROR(VLOOKUP(DiákKeresése,DiákLista[],11,FALSE),\"\")","v":"Apa"},{"$nulls":11},{"$f":"IFERROR(VLOOKUP(DiákKeresése,DiákLista[],12,FALSE),\"\")","v":1235550134},{"$nulls":7},{"$f":"IFERROR(VLOOKUP(DiákKeresése,DiákLista[],13,FALSE),\"\")","v":2345550134}]
[null,"Sürgős esetben értesítendő",{"$nulls":8},"Rokoni kapcsolat",{"$nulls":11},"Munkahelyi telefonszám",{"$nulls":7},"Otthoni telefonszám"]
[null,{"$f":"IFERROR(VLOOKUP(DiákKeresése,DiákLista[],14,FALSE),\"\")","v":"Belinszki Balázs"},{"$nulls":8},{"$f":"IFERROR(VLOOKUP(DiákKeresése,DiákLista[],15,FALSE),\"\")","v":"Nagyapa"},{"$nulls":11},{"$f":"IFERROR(VLOOKUP(DiákKeresése,DiákLista[],16,FALSE),\"\")","v":7895550189},{"$nulls":7},{"$f":"IFERROR(VLOOKUP(DiákKeresése,DiákLista[],17,FALSE),\"\")","v":7895550134}]
[]
[null,{"$f":"Augusztus!C3","v":"SZÍNMAGYARÁZAT"},{"$f":"Augusztus!D3","v":"K"},{"$f":"Augusztus!E3","v":"Késett"},null,null,{"$f":"Augusztus!H3","v":"I"},{"$f":"Augusztus!I3","v":"Igazolt"},null,null,{"$f":"Augusztus!L3","v":"T"},{"$f":"Augusztus!M3","v":"Igazolatlan"},{"$nulls":3},{"$f":"Augusztus!P3","v":"J"},{"$f":"Augusztus!Q3","v":"Jelen"},null,null,{"$f":"Augusztus!T3","v":"N"},{"$f":"Augusztus!U3","v":"Nincs tanítás"}]
[]
[null,"Jelenlét",{"$nulls":31},"Jelenléti összesítő"]
[{"$nulls":33},"K","I","T","J"]
[null,"Augusztus",1,2,3,4,5,6,7,8,9,10,11,12,13,14,15,16,17,18,19,20,21,22,23,24,25,26,27,28,29,30,31,2,1,0,19]
[null,null,{"$f":"IFERROR(VLOOKUP(DiákKeresése,AugusztusiJelenlét[],3,FALSE),\"\")","v":"J"},{"$f":"IFERROR(VLOOKUP(DiákKeresése,AugusztusiJelenlét[],4,FALSE),\"\")","v":"J"},{"$f":"IFERROR(VLOOKUP(DiákKeresése,AugusztusiJelenlét[],5,FALSE),\"\")","v":"K"},{"$f":"IFERROR(VLOOKUP(DiákKeresése,AugusztusiJelenlét[],6,FALSE),\"\")","v":"K"},{"$f":"IFERROR(VLOOKUP(DiákKeresése,AugusztusiJelenlét[],7,FALSE),\"\")","v":"J"},{"$f":"IFERROR(VLOOKUP(DiákKeresése,AugusztusiJelenlét[],8,FALSE),\"\")","v":"N"},{"$f":"IFERROR(VLOOKUP(DiákKeresése,AugusztusiJelenlét[],9,FALSE),\"\")","v":"N"},{"$f":"IFERROR(VLOOKUP(DiákKeresése,AugusztusiJelenlét[],10,FALSE),\"\")","v":"J"},{"$f":"IFERROR(VLOOKUP(DiákKeresése,AugusztusiJelenlét[],11,FALSE),\"\")","v":"J"},{"$f":"IFERROR(VLOOKUP(DiákKeresése,AugusztusiJelenlét[],12,FALSE),\"\")","v":"I"},{"$f":"IFERROR(VLOOKUP(DiákKeresése,AugusztusiJelenlét[],13,FALSE),\"\")","v":"J"},{"$f":"IFERROR(VLOOKUP(DiákKeresése,AugusztusiJelenlét[],14,FALSE),\"\")","v":"J"},{"$f":"IFERROR(VLOOKUP(DiákKeresése,AugusztusiJelenlét[],15,FALSE),\"\")","v":"N"},{"$f":"IFERROR(VLOOKUP(DiákKeresése,AugusztusiJelenlét[],16,FALSE),\"\")","v":"N"},{"$f":"IFERROR(VLOOKUP(DiákKeresése,AugusztusiJelenlét[],17,FALSE),\"\")","v":"J"},{"$f":"IFERROR(VLOOKUP(DiákKeresése,AugusztusiJelenlét[],18,FALSE),\"\")","v":"J"},{"$f":"IFERROR(VLOOKUP(DiákKeresése,AugusztusiJelenlét[],19,FALSE),\"\")","v":"J"},{"$f":"IFERROR(VLOOKUP(DiákKeresése,AugusztusiJelenlét[],20,FALSE),\"\")","v":"J"},{"$f":"IFERROR(VLOOKUP(DiákKeresése,AugusztusiJelenlét[],21,FALSE),\"\")","v":"J"},{"$f":"IFERROR(VLOOKUP(DiákKeresése,AugusztusiJelenlét[],22,FALSE),\"\")","v":"N"},{"$f":"IFERROR(VLOOKUP(DiákKeresése,AugusztusiJelenlét[],23,FALSE),\"\")","v":"N"},{"$f":"IFERROR(VLOOKUP(DiákKeresése,AugusztusiJelenlét[],24,FALSE),\"\")","v":"J"},{"$f":"IFERROR(VLOOKUP(DiákKeresése,AugusztusiJelenlét[],25,FALSE),\"\")","v":"J"},{"$f":"IFERROR(VLOOKUP(DiákKeresése,AugusztusiJelenlét[],26,FALSE),\"\")","v":"J"},{"$f":"IFERROR(VLOOKUP(DiákKeresése,AugusztusiJelenlét[],27,FALSE),\"\")","v":"J"},{"$f":"IFERROR(VLOOKUP(DiákKeresése,AugusztusiJelenlét[],28,FALSE),\"\")","v":"J"},{"$f":"IFERROR(VLOOKUP(DiákKeresése,AugusztusiJelenlét[],29,FALSE),\"\")","v":"N"},{"$f":"IFERROR(VLOOKUP(DiákKeresése,AugusztusiJelenlét[],30,FALSE),\"\")","v":"N"},{"$f":"IFERROR(VLOOKUP(DiákKeresése,AugusztusiJelenlét[],31,FALSE),\"\")","v":"J"},{"$f":"IFERROR(VLOOKUP(DiákKeresése,AugusztusiJelenlét[],32,FALSE),\"\")","v":"J"},{"$f":"IFERROR(VLOOKUP(DiákKeresése,AugusztusiJelenlét[],33,FALSE),\"\")","v":"J"}]
[null,"Szeptember",1,2,3,4,5,6,7,8,9,10,11,12,13,14,15,16,17,18,19,20,21,22,23,24,25,26,27,28,29,30,null,0,0,0,0]
[null,null,{"$f":"IFERROR(VLOOKUP(DiákKeresése,DochádzkaVSeptembri[],3,FALSE),\"\")","v":""},{"$f":"IFERROR(VLOOKUP(DiákKeresése,DochádzkaVSeptembri[],4,FALSE),\"\")","v":""},{"$f":"IFERROR(VLOOKUP(DiákKeresése,DochádzkaVSeptembri[],5,FALSE),\"\")","v":""},{"$f":"IFERROR(VLOOKUP(DiákKeresése,DochádzkaVSeptembri[],6,FALSE),\"\")","v":""},{"$f":"IFERROR(VLOOKUP(DiákKeresése,DochádzkaVSeptembri[],7,FALSE),\"\")","v":""},{"$f":"IFERROR(VLOOKUP(DiákKeresése,DochádzkaVSeptembri[],8,FALSE),\"\")","v":""},{"$f":"IFERROR(VLOOKUP(DiákKeresése,DochádzkaVSeptembri[],9,FALSE),\"\")","v":""},{"$f":"IFERROR(VLOOKUP(DiákKeresése,DochádzkaVSeptembri[],10,FALSE),\"\")","v":""},{"$f":"IFERROR(VLOOKUP(DiákKeresése,DochádzkaVSeptembri[],11,FALSE),\"\")","v":""},{"$f":"IFERROR(VLOOKUP(DiákKeresése,DochádzkaVSeptembri[],12,FALSE),\"\")","v":""},{"$f":"IFERROR(VLOOKUP(DiákKeresése,DochádzkaVSeptembri[],13,FALSE),\"\")","v":""},{"$f":"IFERROR(VLOOKUP(DiákKeresése,DochádzkaVSeptembri[],14,FALSE),\"\")","v":""},{"$f":"IFERROR(VLOOKUP(DiákKeresése,DochádzkaVSeptembri[],15,FALSE),\"\")","v":""},{"$f":"IFERROR(VLOOKUP(DiákKeresése,DochádzkaVSeptembri[],16,FALSE),\"\")","v":""},{"$f":"IFERROR(VLOOKUP(DiákKeresése,DochádzkaVSeptembri[],17,FALSE),\"\")","v":""},{"$f":"IFERROR(VLOOKUP(DiákKeresése,DochádzkaVSeptembri[],18,FALSE),\"\")","v":""},{"$f":"IFERROR(VLOOKUP(DiákKeresése,DochádzkaVSeptembri[],19,FALSE),\"\")","v":""},{"$f":"IFERROR(VLOOKUP(DiákKeresése,DochádzkaVSeptembri[],20,FALSE),\"\")","v":""},{"$f":"IFERROR(VLOOKUP(DiákKeresése,DochádzkaVSeptembri[],21,FALSE),\"\")","v":""},{"$f":"IFERROR(VLOOKUP(DiákKeresése,DochádzkaVSeptembri[],22,FALSE),\"\")","v":""},{"$f":"IFERROR(VLOOKUP(DiákKeresése,DochádzkaVSeptembri[],23,FALSE),\"\")","v":""},{"$f":"IFERROR(VLOOKUP(DiákKeresése,DochádzkaVSeptembri[],24,FALSE),\"\")","v":""},{"$f":"IFERROR(VLOOKUP(DiákKeresése,DochádzkaVSeptembri[],25,FALSE),\"\")","v":""},{"$f":"IFERROR(VLOOKUP(DiákKeresése,DochádzkaVSeptembri[],26,FALSE),\"\")","v":""},{"$f":"IFERROR(VLOOKUP(DiákKeresése,DochádzkaVSeptembri[],27,FALSE),\"\")","v":""},{"$f":"IFERROR(VLOOKUP(DiákKeresése,DochádzkaVSeptembri[],28,FALSE),\"\")","v":""},{"$f":"IFERROR(VLOOKUP(DiákKeresése,DochádzkaVSeptembri[],29,FALSE),\"\")","v":""},{"$f":"IFERROR(VLOOKUP(DiákKeresése,DochádzkaVSeptembri[],30,FALSE),\"\")","v":""},{"$f":"IFERROR(VLOOKUP(DiákKeresése,DochádzkaVSeptembri[],31,FALSE),\"\")","v":""},{"$f":"IFERROR(VLOOKUP(DiákKeresése,DochádzkaVSeptembri[],32,FALSE),\"\")","v":""}]
[null,"Október",1,2,3,4,5,6,7,8,9,10,11,12,13,14,15,16,17,18,19,20,21,22,23,24,25,26,27,28,29,30,31,0,0,0,0]
[null,null,{"$f":"IFERROR(VLOOKUP(DiákKeresése,OktóberiJelenlét[],3,FALSE),\"\")","v":""},{"$f":"IFERROR(VLOOKUP(DiákKeresése,OktóberiJelenlét[],4,FALSE),\"\")","v":""},{"$f":"IFERROR(VLOOKUP(DiákKeresése,OktóberiJelenlét[],5,FALSE),\"\")","v":""},{"$f":"IFERROR(VLOOKUP(DiákKeresése,OktóberiJelenlét[],6,FALSE),\"\")","v":""},{"$f":"IFERROR(VLOOKUP(DiákKeresése,OktóberiJelenlét[],7,FALSE),\"\")","v":""},{"$f":"IFERROR(VLOOKUP(DiákKeresése,OktóberiJelenlét[],8,FALSE),\"\")","v":""},{"$f":"IFERROR(VLOOKUP(DiákKeresése,OktóberiJelenlét[],9,FALSE),\"\")","v":""},{"$f":"IFERROR(VLOOKUP(DiákKeresése,OktóberiJelenlét[],10,FALSE),\"\")","v":""},{"$f":"IFERROR(VLOOKUP(DiákKeresése,OktóberiJelenlét[],11,FALSE),\"\")","v":""},{"$f":"IFERROR(VLOOKUP(DiákKeresése,OktóberiJelenlét[],12,FALSE),\"\")","v":""},{"$f":"IFERROR(VLOOKUP(DiákKeresése,OktóberiJelenlét[],13,FALSE),\"\")","v":""},{"$f":"IFERROR(VLOOKUP(DiákKeresése,OktóberiJelenlét[],14,FALSE),\"\")","v":""},{"$f":"IFERROR(VLOOKUP(DiákKeresése,OktóberiJelenlét[],15,FALSE),\"\")","v":""},{"$f":"IFERROR(VLOOKUP(DiákKeresése,OktóberiJelenlét[],16,FALSE),\"\")","v":""},{"$f":"IFERROR(VLOOKUP(DiákKeresése,OktóberiJelenlét[],17,FALSE),\"\")","v":""},{"$f":"IFERROR(VLOOKUP(DiákKeresése,OktóberiJelenlét[],18,FALSE),\"\")","v":""},{"$f":"IFERROR(VLOOKUP(DiákKeresése,OktóberiJelenlét[],19,FALSE),\"\")","v":""},{"$f":"IFERROR(VLOOKUP(DiákKeresése,OktóberiJelenlét[],20,FALSE),\"\")","v":""},{"$f":"IFERROR(VLOOKUP(DiákKeresése,OktóberiJelenlét[],21,FALSE),\"\")","v":""},{"$f":"IFERROR(VLOOKUP(DiákKeresése,OktóberiJelenlét[],22,FALSE),\"\")","v":""},{"$f":"IFERROR(VLOOKUP(DiákKeresése,OktóberiJelenlét[],23,FALSE),\"\")","v":""},{"$f":"IFERROR(VLOOKUP(DiákKeresése,OktóberiJelenlét[],24,FALSE),\"\")","v":""},{"$f":"IFERROR(VLOOKUP(DiákKeresése,OktóberiJelenlét[],25,FALSE),\"\")","v":""},{"$f":"IFERROR(VLOOKUP(DiákKeresése,OktóberiJelenlét[],26,FALSE),\"\")","v":""},{"$f":"IFERROR(VLOOKUP(DiákKeresése,OktóberiJelenlét[],27,FALSE),\"\")","v":""},{"$f":"IFERROR(VLOOKUP(DiákKeresése,OktóberiJelenlét[],28,FALSE),\"\")","v":""},{"$f":"IFERROR(VLOOKUP(DiákKeresése,OktóberiJelenlét[],29,FALSE),\"\")","v":""},{"$f":"IFERROR(VLOOKUP(DiákKeresése,OktóberiJelenlét[],30,FALSE),\"\")","v":""},{"$f":"IFERROR(VLOOKUP(DiákKeresése,OktóberiJelenlét[],31,FALSE),\"\")","v":""},{"$f":"IFERROR(VLOOKUP(DiákKeresése,OktóberiJelenlét[],32,FALSE),\"\")","v":""},{"$f":"IFERROR(VLOOKUP(DiákKeresése,OktóberiJelenlét[],33,FALSE),\"\")","v":""}]
[null,"November",1,2,3,4,5,6,7,8,9,10,11,12,13,14,15,16,17,18,19,20,21,22,23,24,25,26,27,28,29,30,null,0,0,0,0]
[null,null,{"$f":"IFERROR(VLOOKUP(DiákKeresése,NovemberiJelenlét[],3,FALSE),\"\")","v":""},{"$f":"IFERROR(VLOOKUP(DiákKeresése,NovemberiJelenlét[],4,FALSE),\"\")","v":""},{"$f":"IFERROR(VLOOKUP(DiákKeresése,NovemberiJelenlét[],5,FALSE),\"\")","v":""},{"$f":"IFERROR(VLOOKUP(DiákKeresése,NovemberiJelenlét[],6,FALSE),\"\")","v":""},{"$f":"IFERROR(VLOOKUP(DiákKeresése,NovemberiJelenlét[],7,FALSE),\"\")","v":""},{"$f":"IFERROR(VLOOKUP(DiákKeresése,NovemberiJelenlét[],8,FALSE),\"\")","v":""},{"$f":"IFERROR(VLOOKUP(DiákKeresése,NovemberiJelenlét[],9,FALSE),\"\")","v":""},{"$f":"IFERROR(VLOOKUP(DiákKeresése,NovemberiJelenlét[],10,FALSE),\"\")","v":""},{"$f":"IFERROR(VLOOKUP(DiákKeresése,NovemberiJelenlét[],11,FALSE),\"\")","v":""},{"$f":"IFERROR(VLOOKUP(DiákKeresése,NovemberiJelenlét[],12,FALSE),\"\")","v":""},{"$f":"IFERROR(VLOOKUP(DiákKeresése,NovemberiJelenlét[],13,FALSE),\"\")","v":""},{"$f":"IFERROR(VLOOKUP(DiákKeresése,NovemberiJelenlét[],14,FALSE),\"\")","v":""},{"$f":"IFERROR(VLOOKUP(DiákKeresése,NovemberiJelenlét[],15,FALSE),\"\")","v":""},{"$f":"IFERROR(VLOOKUP(DiákKeresése,NovemberiJelenlét[],16,FALSE),\"\")","v":""},{"$f":"IFERROR(VLOOKUP(DiákKeresése,NovemberiJelenlét[],17,FALSE),\"\")","v":""},{"$f":"IFERROR(VLOOKUP(DiákKeresése,NovemberiJelenlét[],18,FALSE),\"\")","v":""},{"$f":"IFERROR(VLOOKUP(DiákKeresése,NovemberiJelenlét[],19,FALSE),\"\")","v":""},{"$f":"IFERROR(VLOOKUP(DiákKeresése,NovemberiJelenlét[],20,FALSE),\"\")","v":""},{"$f":"IFERROR(VLOOKUP(DiákKeresése,NovemberiJelenlét[],21,FALSE),\"\")","v":""},{"$f":"IFERROR(VLOOKUP(DiákKeresése,NovemberiJelenlét[],22,FALSE),\"\")","v":""},{"$f":"IFERROR(VLOOKUP(DiákKeresése,NovemberiJelenlét[],23,FALSE),\"\")","v":""},{"$f":"IFERROR(VLOOKUP(DiákKeresése,NovemberiJelenlét[],24,FALSE),\"\")","v":""},{"$f":"IFERROR(VLOOKUP(DiákKeresése,NovemberiJelenlét[],25,FALSE),\"\")","v":""},{"$f":"IFERROR(VLOOKUP(DiákKeresése,NovemberiJelenlét[],26,FALSE),\"\")","v":""},{"$f":"IFERROR(VLOOKUP(DiákKeresése,NovemberiJelenlét[],27,FALSE),\"\")","v":""},{"$f":"IFERROR(VLOOKUP(DiákKeresése,NovemberiJelenlét[],28,FALSE),\"\")","v":""},{"$f":"IFERROR(VLOOKUP(DiákKeresése,NovemberiJelenlét[],29,FALSE),\"\")","v":""},{"$f":"IFERROR(VLOOKUP(DiákKeresése,NovemberiJelenlét[],30,FALSE),\"\")","v":""},{"$f":"IFERROR(VLOOKUP(DiákKeresése,NovemberiJelenlét[],31,FALSE),\"\")","v":""},{"$f":"IFERROR(VLOOKUP(DiákKeresése,NovemberiJelenlét[],32,FALSE),\"\")","v":""}]
[null,"December",1,2,3,4,5,6,7,8,9,10,11,12,13,14,15,16,17,18,19,20,21,22,23,24,25,26,27,28,29,30,31,0,0,0,0]
[null,null,{"$f":"IFERROR(VLOOKUP(DiákKeresése,DecemberiJelenlét[],3,FALSE),\"\")","v":""},{"$f":"IFERROR(VLOOKUP(DiákKeresése,DecemberiJelenlét[],4,FALSE),\"\")","v":""},{"$f":"IFERROR(VLOOKUP(DiákKeresése,DecemberiJelenlét[],5,FALSE),\"\")","v":""},{"$f":"IFERROR(VLOOKUP(DiákKeresése,DecemberiJelenlét[],6,FALSE),\"\")","v":""},{"$f":"IFERROR(VLOOKUP(DiákKeresése,DecemberiJelenlét[],7,FALSE),\"\")","v":""},{"$f":"IFERROR(VLOOKUP(DiákKeresése,DecemberiJelenlét[],8,FALSE),\"\")","v":""},{"$f":"IFERROR(VLOOKUP(DiákKeresése,DecemberiJelenlét[],9,FALSE),\"\")","v":""},{"$f":"IFERROR(VLOOKUP(DiákKeresése,DecemberiJelenlét[],10,FALSE),\"\")","v":""},{"$f":"IFERROR(VLOOKUP(DiákKeresése,DecemberiJelenlét[],11,FALSE),\"\")","v":""},{"$f":"IFERROR(VLOOKUP(DiákKeresése,DecemberiJelenlét[],12,FALSE),\"\")","v":""},{"$f":"IFERROR(VLOOKUP(DiákKeresése,DecemberiJelenlét[],13,FALSE),\"\")","v":""},{"$f":"IFERROR(VLOOKUP(DiákKeresése,DecemberiJelenlét[],14,FALSE),\"\")","v":""},{"$f":"IFERROR(VLOOKUP(DiákKeresése,DecemberiJelenlét[],15,FALSE),\"\")","v":""},{"$f":"IFERROR(VLOOKUP(DiákKeresése,DecemberiJelenlét[],16,FALSE),\"\")","v":""},{"$f":"IFERROR(VLOOKUP(DiákKeresése,DecemberiJelenlét[],17,FALSE),\"\")","v":""},{"$f":"IFERROR(VLOOKUP(DiákKeresése,DecemberiJelenlét[],18,FALSE),\"\")","v":""},{"$f":"IFERROR(VLOOKUP(DiákKeresése,DecemberiJelenlét[],19,FALSE),\"\")","v":""},{"$f":"IFERROR(VLOOKUP(DiákKeresése,DecemberiJelenlét[],20,FALSE),\"\")","v":""},{"$f":"IFERROR(VLOOKUP(DiákKeresése,DecemberiJelenlét[],21,FALSE),\"\")","v":""},{"$f":"IFERROR(VLOOKUP(DiákKeresése,DecemberiJelenlét[],22,FALSE),\"\")","v":""},{"$f":"IFERROR(VLOOKUP(DiákKeresése,DecemberiJelenlét[],23,FALSE),\"\")","v":""},{"$f":"IFERROR(VLOOKUP(DiákKeresése,DecemberiJelenlét[],24,FALSE),\"\")","v":""},{"$f":"IFERROR(VLOOKUP(DiákKeresése,DecemberiJelenlét[],25,FALSE),\"\")","v":""},{"$f":"IFERROR(VLOOKUP(DiákKeresése,DecemberiJelenlét[],26,FALSE),\"\")","v":""},{"$f":"IFERROR(VLOOKUP(DiákKeresése,DecemberiJelenlét[],27,FALSE),\"\")","v":""},{"$f":"IFERROR(VLOOKUP(DiákKeresése,DecemberiJelenlét[],28,FALSE),\"\")","v":""},{"$f":"IFERROR(VLOOKUP(DiákKeresése,DecemberiJelenlét[],29,FALSE),\"\")","v":""},{"$f":"IFERROR(VLOOKUP(DiákKeresése,DecemberiJelenlét[],30,FALSE),\"\")","v":""},{"$f":"IFERROR(VLOOKUP(DiákKeresése,DecemberiJelenlét[],31,FALSE),\"\")","v":""},{"$f":"IFERROR(VLOOKUP(DiákKeresése,DecemberiJelenlét[],32,FALSE),\"\")","v":""},{"$f":"IFERROR(VLOOKUP(DiákKeresése,DecemberiJelenlét[],33,FALSE),\"\")","v":""}]
[null,"Január",1,2,3,4,5,6,7,8,9,10,11,12,13,14,15,16,17,18,19,20,21,22,23,24,25,26,27,28,29,30,31,0,0,0,0]
[null,null,{"$f":"IFERROR(VLOOKUP(DiákKeresése,JanuáriJelenlét[],3,FALSE),\"\")","v":""},{"$f":"IFERROR(VLOOKUP(DiákKeresése,JanuáriJelenlét[],4,FALSE),\"\")","v":""},{"$f":"IFERROR(VLOOKUP(DiákKeresése,JanuáriJelenlét[],5,FALSE),\"\")","v":""},{"$f":"IFERROR(VLOOKUP(DiákKeresése,JanuáriJelenlét[],6,FALSE),\"\")","v":""},{"$f":"IFERROR(VLOOKUP(DiákKeresése,JanuáriJelenlét[],7,FALSE),\"\")","v":""},{"$f":"IFERROR(VLOOKUP(DiákKeresése,JanuáriJelenlét[],8,FALSE),\"\")","v":""},{"$f":"IFERROR(VLOOKUP(DiákKeresése,JanuáriJelenlét[],9,FALSE),\"\")","v":""},{"$f":"IFERROR(VLOOKUP(DiákKeresése,JanuáriJelenlét[],10,FALSE),\"\")","v":""},{"$f":"IFERROR(VLOOKUP(DiákKeresése,JanuáriJelenlét[],11,FALSE),\"\")","v":""},{"$f":"IFERROR(VLOOKUP(DiákKeresése,JanuáriJelenlét[],12,FALSE),\"\")","v":""},{"$f":"IFERROR(VLOOKUP(DiákKeresése,JanuáriJelenlét[],13,FALSE),\"\")","v":""},{"$f":"IFERROR(VLOOKUP(DiákKeresése,JanuáriJelenlét[],14,FALSE),\"\")","v":""},{"$f":"IFERROR(VLOOKUP(DiákKeresése,JanuáriJelenlét[],15,FALSE),\"\")","v":""},{"$f":"IFERROR(VLOOKUP(DiákKeresése,JanuáriJelenlét[],16,FALSE),\"\")","v":""},{"$f":"IFERROR(VLOOKUP(DiákKeresése,JanuáriJelenlét[],17,FALSE),\"\")","v":""},{"$f":"IFERROR(VLOOKUP(DiákKeresése,JanuáriJelenlét[],18,FALSE),\"\")","v":""},{"$f":"IFERROR(VLOOKUP(DiákKeresése,JanuáriJelenlét[],19,FALSE),\"\")","v":""},{"$f":"IFERROR(VLOOKUP(DiákKeresése,JanuáriJelenlét[],20,FALSE),\"\")","v":""},{"$f":"IFERROR(VLOOKUP(DiákKeresése,JanuáriJelenlét[],21,FALSE),\"\")","v":""},{"$f":"IFERROR(VLOOKUP(DiákKeresése,JanuáriJelenlét[],22,FALSE),\"\")","v":""},{"$f":"IFERROR(VLOOKUP(DiákKeresése,JanuáriJelenlét[],23,FALSE),\"\")","v":""},{"$f":"IFERROR(VLOOKUP(DiákKeresése,JanuáriJelenlét[],24,FALSE),\"\")","v":""},{"$f":"IFERROR(VLOOKUP(DiákKeresése,JanuáriJelenlét[],25,FALSE),\"\")","v":""},{"$f":"IFERROR(VLOOKUP(DiákKeresése,JanuáriJelenlét[],26,FALSE),\"\")","v":""},{"$f":"IFERROR(VLOOKUP(DiákKeresése,JanuáriJelenlét[],27,FALSE),\"\")","v":""},{"$f":"IFERROR(VLOOKUP(DiákKeresése,JanuáriJelenlét[],28,FALSE),\"\")","v":""},{"$f":"IFERROR(VLOOKUP(DiákKeresése,JanuáriJelenlét[],29,FALSE),\"\")","v":""},{"$f":"IFERROR(VLOOKUP(DiákKeresése,JanuáriJelenlét[],30,FALSE),\"\")","v":""},{"$f":"IFERROR(VLOOKUP(DiákKeresése,JanuáriJelenlét[],31,FALSE),\"\")","v":""},{"$f":"IFERROR(VLOOKUP(DiákKeresése,JanuáriJelenlét[],32,FALSE),\"\")","v":""},{"$f":"IFERROR(VLOOKUP(DiákKeresése,JanuáriJelenlét[],33,FALSE),\"\")","v":""}]
[null,"Február",1,2,3,4,5,6,7,8,9,10,11,12,13,14,15,16,17,18,19,20,21,22,23,24,25,26,27,28,29,null,null,0,0,0,0]
[null,null,{"$f":"IFERROR(VLOOKUP(DiákKeresése,FebruáriJelenlét[],3,FALSE),\"\")","v":""},{"$f":"IFERROR(VLOOKUP(DiákKeresése,FebruáriJelenlét[],4,FALSE),\"\")","v":""},{"$f":"IFERROR(VLOOKUP(DiákKeresése,FebruáriJelenlét[],5,FALSE),\"\")","v":""},{"$f":"IFERROR(VLOOKUP(DiákKeresése,FebruáriJelenlét[],6,FALSE),\"\")","v":""},{"$f":"IFERROR(VLOOKUP(DiákKeresése,FebruáriJelenlét[],7,FALSE),\"\")","v":""},{"$f":"IFERROR(VLOOKUP(DiákKeresése,FebruáriJelenlét[],8,FALSE),\"\")","v":""},{"$f":"IFERROR(VLOOKUP(DiákKeresése,FebruáriJelenlét[],9,FALSE),\"\")","v":""},{"$f":"IFERROR(VLOOKUP(DiákKeresése,FebruáriJelenlét[],10,FALSE),\"\")","v":""},{"$f":"IFERROR(VLOOKUP(DiákKeresése,FebruáriJelenlét[],11,FALSE),\"\")","v":""},{"$f":"IFERROR(VLOOKUP(DiákKeresése,FebruáriJelenlét[],12,FALSE),\"\")","v":""},{"$f":"IFERROR(VLOOKUP(DiákKeresése,FebruáriJelenlét[],13,FALSE),\"\")","v":""},{"$f":"IFERROR(VLOOKUP(DiákKeresése,FebruáriJelenlét[],14,FALSE),\"\")","v":""},{"$f":"IFERROR(VLOOKUP(DiákKeresése,FebruáriJelenlét[],15,FALSE),\"\")","v":""},{"$f":"IFERROR(VLOOKUP(DiákKeresése,FebruáriJelenlét[],16,FALSE),\"\")","v":""},{"$f":"IFERROR(VLOOKUP(DiákKeresése,FebruáriJelenlét[],17,FALSE),\"\")","v":""},{"$f":"IFERROR(VLOOKUP(DiákKeresése,FebruáriJelenlét[],18,FALSE),\"\")","v":""},{"$f":"IFERROR(VLOOKUP(DiákKeresése,FebruáriJelenlét[],19,FALSE),\"\")","v":""},{"$f":"IFERROR(VLOOKUP(DiákKeresése,FebruáriJelenlét[],20,FALSE),\"\")","v":""},{"$f":"IFERROR(VLOOKUP(DiákKeresése,FebruáriJelenlét[],21,FALSE),\"\")","v":""},{"$f":"IFERROR(VLOOKUP(DiákKeresése,FebruáriJelenlét[],22,FALSE),\"\")","v":""},{"$f":"IFERROR(VLOOKUP(DiákKeresése,FebruáriJelenlét[],23,FALSE),\"\")","v":""},{"$f":"IFERROR(VLOOKUP(DiákKeresése,FebruáriJelenlét[],24,FALSE),\"\")","v":""},{"$f":"IFERROR(VLOOKUP(DiákKeresése,FebruáriJelenlét[],25,FALSE),\"\")","v":""},{"$f":"IFERROR(VLOOKUP(DiákKeresése,FebruáriJelenlét[],26,FALSE),\"\")","v":""},{"$f":"IFERROR(VLOOKUP(DiákKeresése,FebruáriJelenlét[],27,FALSE),\"\")","v":""},{"$f":"IFERROR(VLOOKUP(DiákKeresése,FebruáriJelenlét[],28,FALSE),\"\")","v":""},{"$f":"IFERROR(VLOOKUP(DiákKeresése,FebruáriJelenlét[],29,FALSE),\"\")","v":""},{"$f":"IFERROR(VLOOKUP(DiákKeresése,FebruáriJelenlét[],30,FALSE),\"\")","v":""},{"$f":"IFERROR(VLOOKUP(DiákKeresése,FebruáriJelenlét[],31,FALSE),\"\")","v":""}]
[null,"Március",1,2,3,4,5,6,7,8,9,10,11,12,13,14,15,16,17,18,19,20,21,22,23,24,25,26,27,28,29,30,31,0,0,0,0]
[null,null,{"$f":"IFERROR(VLOOKUP(DiákKeresése,MárciusiJelenlét[],3,FALSE),\"\")","v":""},{"$f":"IFERROR(VLOOKUP(DiákKeresése,MárciusiJelenlét[],4,FALSE),\"\")","v":""},{"$f":"IFERROR(VLOOKUP(DiákKeresése,MárciusiJelenlét[],5,FALSE),\"\")","v":""},{"$f":"IFERROR(VLOOKUP(DiákKeresése,MárciusiJelenlét[],6,FALSE),\"\")","v":""},{"$f":"IFERROR(VLOOKUP(DiákKeresése,MárciusiJelenlét[],7,FALSE),\"\")","v":""},{"$f":"IFERROR(VLOOKUP(DiákKeresése,MárciusiJelenlét[],8,FALSE),\"\")","v":""},{"$f":"IFERROR(VLOOKUP(DiákKeresése,MárciusiJelenlét[],9,FALSE),\"\")","v":""},{"$f":"IFERROR(VLOOKUP(DiákKeresése,MárciusiJelenlét[],10,FALSE),\"\")","v":""},{"$f":"IFERROR(VLOOKUP(DiákKeresése,MárciusiJelenlét[],11,FALSE),\"\")","v":""},{"$f":"IFERROR(VLOOKUP(DiákKeresése,MárciusiJelenlét[],12,FALSE),\"\")","v":""},{"$f":"IFERROR(VLOOKUP(DiákKeresése,MárciusiJelenlét[],13,FALSE),\"\")","v":""},{"$f":"IFERROR(VLOOKUP(DiákKeresése,MárciusiJelenlét[],14,FALSE),\"\")","v":""},{"$f":"IFERROR(VLOOKUP(DiákKeresése,MárciusiJelenlét[],15,FALSE),\"\")","v":""},{"$f":"IFERROR(VLOOKUP(DiákKeresése,MárciusiJelenlét[],16,FALSE),\"\")","v":""},{"$f":"IFERROR(VLOOKUP(DiákKeresése,MárciusiJelenlét[],17,FALSE),\"\")","v":""},{"$f":"IFERROR(VLOOKUP(DiákKeresése,MárciusiJelenlét[],18,FALSE),\"\")","v":""},{"$f":"IFERROR(VLOOKUP(DiákKeresése,MárciusiJelenlét[],19,FALSE),\"\")","v":""},{"$f":"IFERROR(VLOOKUP(DiákKeresése,MárciusiJelenlét[],20,FALSE),\"\")","v":""},{"$f":"IFERROR(VLOOKUP(DiákKeresése,MárciusiJelenlét[],21,FALSE),\"\")","v":""},{"$f":"IFERROR(VLOOKUP(DiákKeresése,MárciusiJelenlét[],22,FALSE),\"\")","v":""},{"$f":"IFERROR(VLOOKUP(DiákKeresése,MárciusiJelenlét[],23,FALSE),\"\")","v":""},{"$f":"IFERROR(VLOOKUP(DiákKeresése,MárciusiJelenlét[],24,FALSE),\"\")","v":""},{"$f":"IFERROR(VLOOKUP(DiákKeresése,MárciusiJelenlét[],25,FALSE),\"\")","v":""},{"$f":"IFERROR(VLOOKUP(DiákKeresése,MárciusiJelenlét[],26,FALSE),\"\")","v":""},{"$f":"IFERROR(VLOOKUP(DiákKeresése,MárciusiJelenlét[],27,FALSE),\"\")","v":""},{"$f":"IFERROR(VLOOKUP(DiákKeresése,MárciusiJelenlét[],28,FALSE),\"\")","v":""},{"$f":"IFERROR(VLOOKUP(DiákKeresése,MárciusiJelenlét[],29,FALSE),\"\")","v":""},{"$f":"IFERROR(VLOOKUP(DiákKeresése,MárciusiJelenlét[],30,FALSE),\"\")","v":""},{"$f":"IFERROR(VLOOKUP(DiákKeresése,MárciusiJelenlét[],31,FALSE),\"\")","v":""},{"$f":"IFERROR(VLOOKUP(DiákKeresése,MárciusiJelenlét[],32,FALSE),\"\")","v":""},{"$f":"IFERROR(VLOOKUP(DiákKeresése,MárciusiJelenlét[],33,FALSE),\"\")","v":""}]
[null,"Április",1,2,3,4,5,6,7,8,9,10,11,12,13,14,15,16,17,18,19,20,21,22,23,24,25,26,27,28,29,30,null,0,0,0,0]
[null,null,{"$f":"IFERROR(VLOOKUP(DiákKeresése,ÁprilisiJelenlét[],3,FALSE),\"\")","v":""},{"$f":"IFERROR(VLOOKUP(DiákKeresése,ÁprilisiJelenlét[],4,FALSE),\"\")","v":""},{"$f":"IFERROR(VLOOKUP(DiákKeresése,ÁprilisiJelenlét[],5,FALSE),\"\")","v":""},{"$f":"IFERROR(VLOOKUP(DiákKeresése,ÁprilisiJelenlét[],6,FALSE),\"\")","v":""},{"$f":"IFERROR(VLOOKUP(DiákKeresése,ÁprilisiJelenlét[],7,FALSE),\"\")","v":""},{"$f":"IFERROR(VLOOKUP(DiákKeresése,ÁprilisiJelenlét[],8,FALSE),\"\")","v":""},{"$f":"IFERROR(VLOOKUP(DiákKeresése,ÁprilisiJelenlét[],9,FALSE),\"\")","v":""},{"$f":"IFERROR(VLOOKUP(DiákKeresése,ÁprilisiJelenlét[],10,FALSE),\"\")","v":""},{"$f":"IFERROR(VLOOKUP(DiákKeresése,ÁprilisiJelenlét[],11,FALSE),\"\")","v":""},{"$f":"IFERROR(VLOOKUP(DiákKeresése,ÁprilisiJelenlét[],12,FALSE),\"\")","v":""},{"$f":"IFERROR(VLOOKUP(DiákKeresése,ÁprilisiJelenlét[],13,FALSE),\"\")","v":""},{"$f":"IFERROR(VLOOKUP(DiákKeresése,ÁprilisiJelenlét[],14,FALSE),\"\")","v":""},{"$f":"IFERROR(VLOOKUP(DiákKeresése,ÁprilisiJelenlét[],15,FALSE),\"\")","v":""},{"$f":"IFERROR(VLOOKUP(DiákKeresése,ÁprilisiJelenlét[],16,FALSE),\"\")","v":""},{"$f":"IFERROR(VLOOKUP(DiákKeresése,ÁprilisiJelenlét[],17,FALSE),\"\")","v":""},{"$f":"IFERROR(VLOOKUP(DiákKeresése,ÁprilisiJelenlét[],18,FALSE),\"\")","v":""},{"$f":"IFERROR(VLOOKUP(DiákKeresése,ÁprilisiJelenlét[],19,FALSE),\"\")","v":""},{"$f":"IFERROR(VLOOKUP(DiákKeresése,ÁprilisiJelenlét[],20,FALSE),\"\")","v":""},{"$f":"IFERROR(VLOOKUP(DiákKeresése,ÁprilisiJelenlét[],21,FALSE),\"\")","v":""},{"$f":"IFERROR(VLOOKUP(DiákKeresése,ÁprilisiJelenlét[],22,FALSE),\"\")","v":""},{"$f":"IFERROR(VLOOKUP(DiákKeresése,ÁprilisiJelenlét[],23,FALSE),\"\")","v":""},{"$f":"IFERROR(VLOOKUP(DiákKeresése,ÁprilisiJelenlét[],24,FALSE),\"\")","v":""},{"$f":"IFERROR(VLOOKUP(DiákKeresése,ÁprilisiJelenlét[],25,FALSE),\"\")","v":""},{"$f":"IFERROR(VLOOKUP(DiákKeresése,ÁprilisiJelenlét[],26,FALSE),\"\")","v":""},{"$f":"IFERROR(VLOOKUP(DiákKeresése,ÁprilisiJelenlét[],27,FALSE),\"\")","v":""},{"$f":"IFERROR(VLOOKUP(DiákKeresése,ÁprilisiJelenlét[],28,FALSE),\"\")","v":""},{"$f":"IFERROR(VLOOKUP(DiákKeresése,ÁprilisiJelenlét[],29,FALSE),\"\")","v":""},{"$f":"IFERROR(VLOOKUP(DiákKeresése,ÁprilisiJelenlét[],30,FALSE),\"\")","v":""},{"$f":"IFERROR(VLOOKUP(DiákKeresése,ÁprilisiJelenlét[],31,FALSE),\"\")","v":""},{"$f":"IFERROR(VLOOKUP(DiákKeresése,ÁprilisiJelenlét[],32,FALSE),\"\")","v":""}]
[null,"Május",1,2,3,4,5,6,7,8,9,10,11,12,13,14,15,16,17,18,19,20,21,22,23,24,25,26,27,28,29,30,31,0,0,0,0]
[null,null,{"$f":"IFERROR(VLOOKUP(DiákKeresése,MájusiJelenlét[],3,FALSE),\"\")","v":""},{"$f":"IFERROR(VLOOKUP(DiákKeresése,MájusiJelenlét[],4,FALSE),\"\")","v":""},{"$f":"IFERROR(VLOOKUP(DiákKeresése,MájusiJelenlét[],5,FALSE),\"\")","v":""},{"$f":"IFERROR(VLOOKUP(DiákKeresése,MájusiJelenlét[],6,FALSE),\"\")","v":""},{"$f":"IFERROR(VLOOKUP(DiákKeresése,MájusiJelenlét[],7,FALSE),\"\")","v":""},{"$f":"IFERROR(VLOOKUP(DiákKeresése,MájusiJelenlét[],8,FALSE),\"\")","v":""},{"$f":"IFERROR(VLOOKUP(DiákKeresése,MájusiJelenlét[],9,FALSE),\"\")","v":""},{"$f":"IFERROR(VLOOKUP(DiákKeresése,MájusiJelenlét[],10,FALSE),\"\")","v":""},{"$f":"IFERROR(VLOOKUP(DiákKeresése,MájusiJelenlét[],11,FALSE),\"\")","v":""},{"$f":"IFERROR(VLOOKUP(DiákKeresése,MájusiJelenlét[],12,FALSE),\"\")","v":""},{"$f":"IFERROR(VLOOKUP(DiákKeresése,MájusiJelenlét[],13,FALSE),\"\")","v":""},{"$f":"IFERROR(VLOOKUP(DiákKeresése,MájusiJelenlét[],14,FALSE),\"\")","v":""},{"$f":"IFERROR(VLOOKUP(DiákKeresése,MájusiJelenlét[],15,FALSE),\"\")","v":""},{"$f":"IFERROR(VLOOKUP(DiákKeresése,MájusiJelenlét[],16,FALSE),\"\")","v":""},{"$f":"IFERROR(VLOOKUP(DiákKeresése,MájusiJelenlét[],17,FALSE),\"\")","v":""},{"$f":"IFERROR(VLOOKUP(DiákKeresése,MájusiJelenlét[],18,FALSE),\"\")","v":""},{"$f":"IFERROR(VLOOKUP(DiákKeresése,MájusiJelenlét[],19,FALSE),\"\")","v":""},{"$f":"IFERROR(VLOOKUP(DiákKeresése,MájusiJelenlét[],20,FALSE),\"\")","v":""},{"$f":"IFERROR(VLOOKUP(DiákKeresése,MájusiJelenlét[],21,FALSE),\"\")","v":""},{"$f":"IFERROR(VLOOKUP(DiákKeresése,MájusiJelenlét[],22,FALSE),\"\")","v":""},{"$f":"IFERROR(VLOOKUP(DiákKeresése,MájusiJelenlét[],23,FALSE),\"\")","v":""},{"$f":"IFERROR(VLOOKUP(DiákKeresése,MájusiJelenlét[],24,FALSE),\"\")","v":""},{"$f":"IFERROR(VLOOKUP(DiákKeresése,MájusiJelenlét[],25,FALSE),\"\")","v":""},{"$f":"IFERROR(VLOOKUP(DiákKeresése,MájusiJelenlét[],26,FALSE),\"\")","v":""},{"$f":"IFERROR(VLOOKUP(DiákKeresése,MájusiJelenlét[],27,FALSE),\"\")","v":""},{"$f":"IFERROR(VLOOKUP(DiákKeresése,MájusiJelenlét[],28,FALSE),\"\")","v":""},{"$f":"IFERROR(VLOOKUP(DiákKeresése,MájusiJelenlét[],29,FALSE),\"\")","v":""},{"$f":"IFERROR(VLOOKUP(DiákKeresése,MájusiJelenlét[],30,FALSE),\"\")","v":""},{"$f":"IFERROR(VLOOKUP(DiákKeresése,MájusiJelenlét[],31,FALSE),\"\")","v":""},{"$f":"IFERROR(VLOOKUP(DiákKeresése,MájusiJelenlét[],32,FALSE),\"\")","v":""},{"$f":"IFERROR(VLOOKUP(DiákKeresése,MájusiJelenlét[],33,FALSE),\"\")","v":""}]
[null,"Június",1,2,3,4,5,6,7,8,9,10,11,12,13,14,15,16,17,18,19,20,21,22,23,24,25,26,27,28,29,30,null,0,0,0,0]
[null,null,{"$f":"IFERROR(VLOOKUP(DiákKeresése,JúniusiJelenlét[],3,FALSE),\"\")","v":""},{"$f":"IFERROR(VLOOKUP(DiákKeresése,JúniusiJelenlét[],4,FALSE),\"\")","v":""},{"$f":"IFERROR(VLOOKUP(DiákKeresése,JúniusiJelenlét[],5,FALSE),\"\")","v":""},{"$f":"IFERROR(VLOOKUP(DiákKeresése,JúniusiJelenlét[],6,FALSE),\"\")","v":""},{"$f":"IFERROR(VLOOKUP(DiákKeresése,JúniusiJelenlét[],7,FALSE),\"\")","v":""},{"$f":"IFERROR(VLOOKUP(DiákKeresése,JúniusiJelenlét[],8,FALSE),\"\")","v":""},{"$f":"IFERROR(VLOOKUP(DiákKeresése,JúniusiJelenlét[],9,FALSE),\"\")","v":""},{"$f":"IFERROR(VLOOKUP(DiákKeresése,JúniusiJelenlét[],10,FALSE),\"\")","v":""},{"$f":"IFERROR(VLOOKUP(DiákKeresése,JúniusiJelenlét[],11,FALSE),\"\")","v":""},{"$f":"IFERROR(VLOOKUP(DiákKeresése,JúniusiJelenlét[],12,FALSE),\"\")","v":""},{"$f":"IFERROR(VLOOKUP(DiákKeresése,JúniusiJelenlét[],13,FALSE),\"\")","v":""},{"$f":"IFERROR(VLOOKUP(DiákKeresése,JúniusiJelenlét[],14,FALSE),\"\")","v":""},{"$f":"IFERROR(VLOOKUP(DiákKeresése,JúniusiJelenlét[],15,FALSE),\"\")","v":""},{"$f":"IFERROR(VLOOKUP(DiákKeresése,JúniusiJelenlét[],16,FALSE),\"\")","v":""},{"$f":"IFERROR(VLOOKUP(DiákKeresése,JúniusiJelenlét[],17,FALSE),\"\")","v":""},{"$f":"IFERROR(VLOOKUP(DiákKeresése,JúniusiJelenlét[],18,FALSE),\"\")","v":""},{"$f":"IFERROR(VLOOKUP(DiákKeresése,JúniusiJelenlét[],19,FALSE),\"\")","v":""},{"$f":"IFERROR(VLOOKUP(DiákKeresése,JúniusiJelenlét[],20,FALSE),\"\")","v":""},{"$f":"IFERROR(VLOOKUP(DiákKeresése,JúniusiJelenlét[],21,FALSE),\"\")","v":""},{"$f":"IFERROR(VLOOKUP(DiákKeresése,JúniusiJelenlét[],22,FALSE),\"\")","v":""},{"$f":"IFERROR(VLOOKUP(DiákKeresése,JúniusiJelenlét[],23,FALSE),\"\")","v":""},{"$f":"IFERROR(VLOOKUP(DiákKeresése,JúniusiJelenlét[],24,FALSE),\"\")","v":""},{"$f":"IFERROR(VLOOKUP(DiákKeresése,JúniusiJelenlét[],25,FALSE),\"\")","v":""},{"$f":"IFERROR(VLOOKUP(DiákKeresése,JúniusiJelenlét[],26,FALSE),\"\")","v":""},{"$f":"IFERROR(VLOOKUP(DiákKeresése,JúniusiJelenlét[],27,FALSE),\"\")","v":""},{"$f":"IFERROR(VLOOKUP(DiákKeresése,JúniusiJelenlét[],28,FALSE),\"\")","v":""},{"$f":"IFERROR(VLOOKUP(DiákKeresése,JúniusiJelenlét[],29,FALSE),\"\")","v":""},{"$f":"IFERROR(VLOOKUP(DiákKeresése,JúniusiJelenlét[],30,FALSE),\"\")","v":""},{"$f":"IFERROR(VLOOKUP(DiákKeresése,JúniusiJelenlét[],31,FALSE),\"\")","v":""},{"$f":"IFERROR(VLOOKUP(DiákKeresése,JúniusiJelenlét[],32,FALSE),\"\")","v":""}]
[null,"Július",1,2,3,4,5,6,7,8,9,10,11,12,13,14,15,16,17,18,19,20,21,22,23,24,25,26,27,28,29,30,31,0,0,0,0]
[null,null,{"$f":"IFERROR(VLOOKUP(DiákKeresése,JúliusiJelenlét[],3,FALSE),\"\")","v":""},{"$f":"IFERROR(VLOOKUP(DiákKeresése,JúliusiJelenlét[],4,FALSE),\"\")","v":""},{"$f":"IFERROR(VLOOKUP(DiákKeresése,JúliusiJelenlét[],5,FALSE),\"\")","v":""},{"$f":"IFERROR(VLOOKUP(DiákKeresése,JúliusiJelenlét[],6,FALSE),\"\")","v":""},{"$f":"IFERROR(VLOOKUP(DiákKeresése,JúliusiJelenlét[],7,FALSE),\"\")","v":""},{"$f":"IFERROR(VLOOKUP(DiákKeresése,JúliusiJelenlét[],8,FALSE),\"\")","v":""},{"$f":"IFERROR(VLOOKUP(DiákKeresése,JúliusiJelenlét[],9,FALSE),\"\")","v":""},{"$f":"IFERROR(VLOOKUP(DiákKeresése,JúliusiJelenlét[],10,FALSE),\"\")","v":""},{"$f":"IFERROR(VLOOKUP(DiákKeresése,JúliusiJelenlét[],11,FALSE),\"\")","v":""},{"$f":"IFERROR(VLOOKUP(DiákKeresése,JúliusiJelenlét[],12,FALSE),\"\")","v":""},{"$f":"IFERROR(VLOOKUP(DiákKeresése,JúliusiJelenlét[],13,FALSE),\"\")","v":""},{"$f":"IFERROR(VLOOKUP(DiákKeresése,JúliusiJelenlét[],14,FALSE),\"\")","v":""},{"$f":"IFERROR(VLOOKUP(DiákKeresése,JúliusiJelenlét[],15,FALSE),\"\")","v":""},{"$f":"IFERROR(VLOOKUP(DiákKeresése,JúliusiJelenlét[],16,FALSE),\"\")","v":""},{"$f":"IFERROR(VLOOKUP(DiákKeresése,JúliusiJelenlét[],17,FALSE),\"\")","v":""},{"$f":"IFERROR(VLOOKUP(DiákKeresése,JúliusiJelenlét[],18,FALSE),\"\")","v":""},{"$f":"IFERROR(VLOOKUP(DiákKeresése,JúliusiJelenlét[],19,FALSE),\"\")","v":""},{"$f":"IFERROR(VLOOKUP(DiákKeresése,JúliusiJelenlét[],20,FALSE),\"\")","v":""},{"$f":"IFERROR(VLOOKUP(DiákKeresése,JúliusiJelenlét[],21,FALSE),\"\")","v":""},{"$f":"IFERROR(VLOOKUP(DiákKeresése,JúliusiJelenlét[],22,FALSE),\"\")","v":""},{"$f":"IFERROR(VLOOKUP(DiákKeresése,JúliusiJelenlét[],23,FALSE),\"\")","v":""},{"$f":"IFERROR(VLOOKUP(DiákKeresése,JúliusiJelenlét[],24,FALSE),\"\")","v":""},{"$f":"IFERROR(VLOOKUP(DiákKeresése,JúliusiJelenlét[],25,FALSE),\"\")","v":""},{"$f":"IFERROR(VLOOKUP(DiákKeresése,JúliusiJelenlét[],26,FALSE),\"\")","v":""},{"$f":"IFERROR(VLOOKUP(DiákKeresése,JúliusiJelenlét[],27,FALSE),\"\")","v":""},{"$f":"IFERROR(VLOOKUP(DiákKeresése,JúliusiJelenlét[],28,FALSE),\"\")","v":""},{"$f":"IFERROR(VLOOKUP(DiákKeresése,JúliusiJelenlét[],29,FALSE),\"\")","v":""},{"$f":"IFERROR(VLOOKUP(DiákKeresése,JúliusiJelenlét[],30,FALSE),\"\")","v":""},{"$f":"IFERROR(VLOOKUP(DiákKeresése,JúliusiJelenlét[],31,FALSE),\"\")","v":""},{"$f":"IFERROR(VLOOKUP(DiákKeresése,JúliusiJelenlét[],32,FALSE),\"\")","v":""},{"$f":"IFERROR(VLOOKUP(DiákKeresése,JúliusiJelenlét[],33,FALSE),\"\")","v":""}]
[{"$nulls":30},"Összesen",null,null,{"$f":"SUM(AH16:AH39)","v":2},{"$f":"SUM(AI16:AI39)","v":1},{"$f":"SUM(AJ16:AJ39)","v":0},{"$f":"SUM(AK16:AK39)","v":19}]